OrganisationNameLabel,OrganisationURI,EffectiveDate,Directorate/ServiceWhereExpenditureIncurred,ServiceCategoryLabel,ServiceCategoryURI,Supplier,SupplierRegisteredCompany Number,PaymentDate,TransactionNumber,NetAmount,IrrecoverableVAT,PurposeOfSpend,PurposeOfSpend,Procurement (Me,ProcurementClassification:ProclassLabel,ProcrementClassification:ProClassCode
South Lakeland District Council,http://opendatacommunities.org/id/district-council/south-lakeland,31/10/2018,ICT Group,Central Services,http://opendatacommunities.org/def/concept/finance/sercop/objective/102,The Networking People (Northwest) LTD,,08-10-2018,0000080149,516.02,0,FWF-60E - FortiWifi-60E,FWF-60E - FortiWifi-60E,Software Maintenance,270000,Information Communications Technology
South Lakeland District Council,http://opendatacommunities.org/id/district-council/south-lakeland,31/10/2018,Westmorland Centre Parking Office,Highways & Transport Services,http://opendatacommunities.org/def/concept/finance/sercop/objective/107,ADECCO UK LIMITED,00593232,10-10-2018,0000080249,455.4,0,Agency staff covering Parking Attendant,Agency staff covering Parking Attendant,Contract & Agency staff,261400,HR Temporary & Agency Staff
South Lakeland District Council,http://opendatacommunities.org/id/district-council/south-lakeland,31/10/2018,Human Resources,Central Services,http://opendatacommunities.org/def/concept/finance/sercop/objective/102,ADECCO UK LIMITED,00593232,10-10-2018,0000080292,558.68,0,Mrs M P 014070680,Mrs M P 014070680,Contract & Agency staff,261400,HR Temporary & Agency Staff
South Lakeland District Council,http://opendatacommunities.org/id/district-council/south-lakeland,31/10/2018,Revenues and Benefits,Central Services,http://opendatacommunities.org/def/concept/finance/sercop/objective/102,PITNEY BOWES LTD,00182037,08-10-2018,0000080433,562.5,0,2018-19 Stationery & office supplies,2018-19 Stationery & office supplies,Stationery/Office Supplies,301200,Mail Services� Postage
South Lakeland District Council,http://opendatacommunities.org/id/district-council/south-lakeland,31/10/2018,Development Implementation,Cultural Environmental Regulatory & Planning Services,http://opendatacommunities.org/def/concept/finance/sercop/objective/104,Audioworks (Northwest) Ltd,05186126,10-10-2018,0000080465,269,0,Repair of Faulty Amplifier at,Repair of Faulty Amplifier at,Equipment Furniture Materials,291000,Arts & Leisure Services Events
South Lakeland District Council,http://opendatacommunities.org/id/district-council/south-lakeland,31/10/2018,Electoral Services,Central Services,http://opendatacommunities.org/def/concept/finance/sercop/objective/102,GATES TRAVEL SERVICE,,03-10-2018,0000080549,23.8,0,Train tickets (Kendal - Preston) for,Train tickets (Kendal - Preston) for,Training Costs,261600,HR Travel & Subsistence
South Lakeland District Council,http://opendatacommunities.org/id/district-council/south-lakeland,31/10/2018,Electoral Services,Central Services,http://opendatacommunities.org/def/concept/finance/sercop/objective/102,GATES TRAVEL SERVICE,,03-10-2018,0000080550,23.8,0,Train tickets (Kendal - Preston) for,Train tickets (Kendal - Preston) for,Training Costs,261600,HR Travel & Subsistence
South Lakeland District Council,http://opendatacommunities.org/id/district-council/south-lakeland,31/10/2018,Human Resources,Central Services,http://opendatacommunities.org/def/concept/finance/sercop/objective/102,ADECCO UK LIMITED,00593232,10-10-2018,0000080637,558.68,0,Mrs M P 014070680,Mrs M P 014070680,Contract & Agency staff,261400,HR Temporary & Agency Staff
South Lakeland District Council,http://opendatacommunities.org/id/district-council/south-lakeland,31/10/2018,Westmorland Centre Parking Office,Highways & Transport Services,http://opendatacommunities.org/def/concept/finance/sercop/objective/107,ADECCO UK LIMITED,00593232,10-10-2018,0000080642,455.4,0,Agency staff covering Parking Attendant,Agency staff covering Parking Attendant,Contract & Agency staff,261400,HR Temporary & Agency Staff
South Lakeland District Council,http://opendatacommunities.org/id/district-council/south-lakeland,31/10/2018,Printing Section,Central Services,http://opendatacommunities.org/def/concept/finance/sercop/objective/102,Konica Minolta Bus Solutions (UK) Ltd,,08-10-2018,0000080650,1979.73,0,Rental and Click Charges for all Konica,Rental and Click Charges for all Konica,Photocopier Rentals,192000,Facilities Reprographics
South Lakeland District Council,http://opendatacommunities.org/id/district-council/south-lakeland,31/10/2018,Human Resources,Central Services,http://opendatacommunities.org/def/concept/finance/sercop/objective/102,CUMBRIA COUNTY COUNCIL,,29-10-2018,0000080652,54,0,DBS Application form,DBS Application form,Legal & Counsels Fees,908000,Public Bodies Council support services
South Lakeland District Council,http://opendatacommunities.org/id/district-council/south-lakeland,31/10/2018,Development Strategy,Cultural Environmental Regulatory & Planning Services,http://opendatacommunities.org/def/concept/finance/sercop/objective/104,CARLISLE CITY COUNCIL,,08-10-2018,0000080655,25,0,Place on 'Structural Repair of Historic,Place on 'Structural Repair of Historic,Training Costs,908000,Public Bodies Council support services
South Lakeland District Council,http://opendatacommunities.org/id/district-council/south-lakeland,31/10/2018,Business Support Community Services,Central Services,http://opendatacommunities.org/def/concept/finance/sercop/objective/102,ESRI (UK) Ltd,05649212,08-10-2018,0000080661,507,0,ArcGIS for Desktop Primary Maintenance,ArcGIS for Desktop Primary Maintenance,Software Maintenance,270000,Information Communications Technology
South Lakeland District Council,http://opendatacommunities.org/id/district-council/south-lakeland,31/10/2018,Business Support Community Services,Central Services,http://opendatacommunities.org/def/concept/finance/sercop/objective/102,KEEP BRITAIN TIDY,03496361,03-10-2018,0000080709,945,0,Litter from Vehicles Enforcement,Litter from Vehicles Enforcement,Training Costs,181600,Environment Street Cleansing
South Lakeland District Council,http://opendatacommunities.org/id/district-council/south-lakeland,31/10/2018,Development Implementation,Central Services,http://opendatacommunities.org/def/concept/finance/sercop/objective/102,GATES TRAVEL SERVICE,,03-10-2018,0000080726,92.1,0,Train travel for S T to attend,Train travel for S T to attend,Training Costs,261600,HR Travel & Subsistence
South Lakeland District Council,http://opendatacommunities.org/id/district-council/south-lakeland,31/10/2018,Business Support Community Services,Cultural Environmental Regulatory & Planning Services,http://opendatacommunities.org/def/concept/finance/sercop/objective/104,Klipspringer Ltd,07676073,03-10-2018,0000080728,97,0,Calibration of Reference Thermometer,Calibration of Reference Thermometer,Equipment Furniture Materials,119999,Catering Not Elsewhere Classified
South Lakeland District Council,http://opendatacommunities.org/id/district-council/south-lakeland,31/10/2018,Leisure and Wellbeing,Cultural Environmental Regulatory & Planning Services,http://opendatacommunities.org/def/concept/finance/sercop/objective/104,SOUTH LAKES TREE SURGEONS & LANDSCAPES,05342745,03-10-2018,0000080732,450,0,"Kendal Leisure Centre, fell 2 cherry","Kendal Leisure Centre, fell 2 cherry",Arboricultural Work,241210,Horticultural Tree Trimming
South Lakeland District Council,http://opendatacommunities.org/id/district-council/south-lakeland,31/10/2018,Business Support Community Services,Cultural Environmental Regulatory & Planning Services,http://opendatacommunities.org/def/concept/finance/sercop/objective/104,UNITED UTILITIES WATER PLC,2366678,15-10-2018,0000080745,758.68,0,Private Water Analysis - August 2018,Private Water Analysis - August 2018,Sampling & Inspection fees,371300,Utilities Water
South Lakeland District Council,http://opendatacommunities.org/id/district-council/south-lakeland,31/10/2018,Development Strategy,Cultural Environmental Regulatory & Planning Services,http://opendatacommunities.org/def/concept/finance/sercop/objective/104,MTP Media (2008) Ltd,06491633,15-10-2018,0000080746,1450,0,Bowness & Windermere town map -,Bowness & Windermere town map -,Other Consultants,191600,Facilities Printing
South Lakeland District Council,http://opendatacommunities.org/id/district-council/south-lakeland,31/10/2018,Business Support Community Services,Central Services,http://opendatacommunities.org/def/concept/finance/sercop/objective/102,CUMBRIA COUNTY COUNCIL,,31-10-2018,0000080747,460,0,LAND CHARGE SEARCH ENQUIRIES COMMONS,LAND CHARGE SEARCH ENQUIRIES COMMONS,Other Local Authorities,908000,Public Bodies Council support services
South Lakeland District Council,http://opendatacommunities.org/id/district-council/south-lakeland,31/10/2018,Business Support Community Services,Internal Trading Accounts,,K S INTERNATIONAL LTD,02703321,03-10-2018,0000080749,119,0,Parts,Parts,Transport-Repair & Maintenance,381500,Vehicle Mgt Parts
South Lakeland District Council,http://opendatacommunities.org/id/district-council/south-lakeland,31/10/2018,Business Support Community Services,Internal Trading Accounts,,K S INTERNATIONAL LTD,02703321,03-10-2018,0000080749,15,0,Parts,Parts,Transport-Uninsured Damage,381500,Vehicle Mgt Parts
South Lakeland District Council,http://opendatacommunities.org/id/district-council/south-lakeland,31/10/2018,Development Management,Cultural Environmental Regulatory & Planning Services,http://opendatacommunities.org/def/concept/finance/sercop/objective/104,CHRIS BOWKER LTD,01642561,10-10-2018,0000080767,90,0,Checking of electriacl work under Part,Checking of electriacl work under Part,Electrican Inspection,101100,Building Electrical
South Lakeland District Council,http://opendatacommunities.org/id/district-council/south-lakeland,31/10/2018,Printing Section,Central Services,http://opendatacommunities.org/def/concept/finance/sercop/objective/102,DIXON PRINTING CO LTD,,08-10-2018,0000080769,748,0,"15,000 A3 90gsm Blue Plue Perf paper","15,000 A3 90gsm Blue Plue Perf paper",Paper Supplies,191600,Facilities Printing
South Lakeland District Council,http://opendatacommunities.org/id/district-council/south-lakeland,31/10/2018,Policy & Partnerships,Central Services,http://opendatacommunities.org/def/concept/finance/sercop/objective/102,GRANGE OVER SANDS TOWN COUNCIL,,03-10-2018,0000080775,40,0,Community Climate Change drop in,Community Climate Change drop in,Hospitality,908000,Public Bodies Council support services
South Lakeland District Council,http://opendatacommunities.org/id/district-council/south-lakeland,31/10/2018,Development Implementation,Highways & Transport Services,http://opendatacommunities.org/def/concept/finance/sercop/objective/107,Bloom Procurement Services Ltd,,03-10-2018,0000080780,21315,0,SLDC - Parking Study (WYG),SLDC - Parking Study (WYG),Other Consultants,151900,Consultancy Management
South Lakeland District Council,http://opendatacommunities.org/id/district-council/south-lakeland,31/10/2018,Social Enterprise Admin,Highways & Transport Services,http://opendatacommunities.org/def/concept/finance/sercop/objective/107,BEMROSE BOOTH PARAGON LTD,04891375,03-10-2018,0000080783,2866.12,0,"304,000 ACS Reflex Tickets for Multi","304,000 ACS Reflex Tickets for Multi",Printing,191600,Facilities Printing
South Lakeland District Council,http://opendatacommunities.org/id/district-council/south-lakeland,31/10/2018,Customer Services,Central Services,http://opendatacommunities.org/def/concept/finance/sercop/objective/102,SHRED-IT,04047194,22-10-2018,0000080786,160.78,0,REMOVAL OF CONFIDENTIAL WASTE,REMOVAL OF CONFIDENTIAL WASTE,Stationery/Office Supplies,279999,ICT Not Elsewhere Classified
South Lakeland District Council,http://opendatacommunities.org/id/district-council/south-lakeland,31/10/2018,Business Support Community Services,Cultural Environmental Regulatory & Planning Services,http://opendatacommunities.org/def/concept/finance/sercop/objective/104,Outsrc Ltd,07691779,03-10-2018,0000080794,200,0,Hosting of Go Easy Website for 12,Hosting of Go Easy Website for 12,Equipment Furniture Materials,271515,ICT Website Development
South Lakeland District Council,http://opendatacommunities.org/id/district-council/south-lakeland,31/10/2018,Social Enterprise Admin,Highways & Transport Services,http://opendatacommunities.org/def/concept/finance/sercop/objective/107,ADECCO UK LIMITED,00593232,15-10-2018,0000080795,455.4,0,Agency Cover Car Park Assistants,Agency Cover Car Park Assistants,Contract & Agency staff,261400,HR Temporary & Agency Staff
South Lakeland District Council,http://opendatacommunities.org/id/district-council/south-lakeland,31/10/2018,Human Resources,Central Services,http://opendatacommunities.org/def/concept/finance/sercop/objective/102,ADECCO UK LIMITED,00593232,10-10-2018,0000080796,558.68,0,Mrs M P 014070680,Mrs M P 014070680,Contract & Agency staff,261400,HR Temporary & Agency Staff
South Lakeland District Council,http://opendatacommunities.org/id/district-council/south-lakeland,31/10/2018,Social Enterprise Admin,Highways & Transport Services,http://opendatacommunities.org/def/concept/finance/sercop/objective/107,ADECCO UK LIMITED,00593232,15-10-2018,0000080797,262.2,0,Agency Cover Car Park Assistants,Agency Cover Car Park Assistants,Contract & Agency staff,261400,HR Temporary & Agency Staff
South Lakeland District Council,http://opendatacommunities.org/id/district-council/south-lakeland,31/10/2018,Business Support Community Services,Central Services,http://opendatacommunities.org/def/concept/finance/sercop/objective/102,ADECCO UK LIMITED,00593232,03-10-2018,0000080798,404.49,0,PAI Technician from 20/11/2017,PAI Technician from 20/11/2017,Contract & Agency staff,261400,HR Temporary & Agency Staff
South Lakeland District Council,http://opendatacommunities.org/id/district-council/south-lakeland,31/10/2018,Environment and Housing,Housing Services,http://opendatacommunities.org/def/concept/finance/sercop/objective/108,FIONA & JOHN ARMER,,03-10-2018,0000080804,410,0,Monthly rent for F,Monthly rent for F,Homelessness Prevention,250000,Housing
South Lakeland District Council,http://opendatacommunities.org/id/district-council/south-lakeland,31/10/2018,Business Support Community Services,Cultural Environmental Regulatory & Planning Services,http://opendatacommunities.org/def/concept/finance/sercop/objective/104,MILNTHORPE KENNELS & CATTERY,08932302,03-10-2018,0000080805,2699.74,0,Stray dog kenneling fees 2018/19,Stray dog kenneling fees 2018/19,Kenneling Fees,181500,Environment Animal Services
South Lakeland District Council,http://opendatacommunities.org/id/district-council/south-lakeland,31/10/2018,Development Implementation,Central Services,http://opendatacommunities.org/def/concept/finance/sercop/objective/102,ADECCO UK LIMITED,00593232,03-10-2018,0000080806,294.84,0,Cleaner for SLDC - M P - April,Cleaner for SLDC - M P - April,Contract & Agency staff,261400,HR Temporary & Agency Staff
South Lakeland District Council,http://opendatacommunities.org/id/district-council/south-lakeland,31/10/2018,Development Implementation,Cultural Environmental Regulatory & Planning Services,http://opendatacommunities.org/def/concept/finance/sercop/objective/104,ADECCO UK LIMITED,00593232,03-10-2018,0000080807,572.52,0,Economic Development Programme Support,Economic Development Programme Support,Other Consultants,261400,HR Temporary & Agency Staff
South Lakeland District Council,http://opendatacommunities.org/id/district-council/south-lakeland,31/10/2018,Business Support Community Services,Central Services,http://opendatacommunities.org/def/concept/finance/sercop/objective/102,WaterSense Ltd,,08-10-2018,0000080808,4357.5,0,Risk Assessments of Private Water,Risk Assessments of Private Water,Contract & Agency staff,182030,Environment Water Assessment & Treatment
South Lakeland District Council,http://opendatacommunities.org/id/district-council/south-lakeland,31/10/2018,Kendal Town Hall,Central Services,http://opendatacommunities.org/def/concept/finance/sercop/objective/102,BERENDSEN UK LTD,00228604,08-10-2018,0000080809,142.64,0,Weekly cleaning and exchange of mats at,Weekly cleaning and exchange of mats at,Cleaning Supplies & Services,161000,Domestic Goods Commercial
South Lakeland District Council,http://opendatacommunities.org/id/district-council/south-lakeland,31/10/2018,Kendal Town Hall,Cultural Environmental Regulatory & Planning Services,http://opendatacommunities.org/def/concept/finance/sercop/objective/104,BERENDSEN UK LTD,00228604,08-10-2018,0000080809,24,0,Weekly cleaning and exchange of mats at,Weekly cleaning and exchange of mats at,Cleaning Supplies & Services,161000,Domestic Goods Commercial
South Lakeland District Council,http://opendatacommunities.org/id/district-council/south-lakeland,31/10/2018,Development Implementation,Cultural Environmental Regulatory & Planning Services,http://opendatacommunities.org/def/concept/finance/sercop/objective/104,THOMAS GRAHAM & SONS LTD,00656879,03-10-2018,0000080810,202.16,0,C Fold Paper Hand Towesl Blue 1 Ply,C Fold Paper Hand Towesl Blue 1 Ply,Cleaning Supplies & Services,101400,Building General Materials
South Lakeland District Council,http://opendatacommunities.org/id/district-council/south-lakeland,31/10/2018,Business Support Community Services,Internal Trading Accounts,,FAUN ZOELLER (UK) LTD,00751804,03-10-2018,0000080811,978.55,0,Repair SL210,Repair SL210,Transport-Uninsured Damage,381400,Vehicle Mgt Maintenance
South Lakeland District Council,http://opendatacommunities.org/id/district-council/south-lakeland,31/10/2018,Business Support Community Services,Internal Trading Accounts,,EK MOTOR FACTORS LTD,00838524,03-10-2018,0000080812,11.45,0,Parts,Parts,Transport-Repair & Maintenance,381400,Vehicle Mgt Maintenance
South Lakeland District Council,http://opendatacommunities.org/id/district-council/south-lakeland,31/10/2018,Business Support Community Services,Internal Trading Accounts,,FAUN ZOELLER (UK) LTD,00751804,03-10-2018,0000080813,498.4,0,Repair SL210,Repair SL210,Transport-Repair & Maintenance,381400,Vehicle Mgt Maintenance
South Lakeland District Council,http://opendatacommunities.org/id/district-council/south-lakeland,31/10/2018,Business Support Community Services,Internal Trading Accounts,,TPS Preston,,03-10-2018,0000080814,21.04,0,Parts,Parts,Transport-Repair & Maintenance,381400,Vehicle Mgt Maintenance
South Lakeland District Council,http://opendatacommunities.org/id/district-council/south-lakeland,31/10/2018,Business Support Community Services,Internal Trading Accounts,,EK MOTOR FACTORS LTD,00838524,03-10-2018,0000080815,5.86,0,Parts,Parts,Transport-Repair & Maintenance,381400,Vehicle Mgt Maintenance
South Lakeland District Council,http://opendatacommunities.org/id/district-council/south-lakeland,31/10/2018,Business Support Community Services,Internal Trading Accounts,,EK MOTOR FACTORS LTD,00838524,03-10-2018,0000080816,130.85,0,Parts,Parts,Transport-Repair & Maintenance,381400,Vehicle Mgt Maintenance
South Lakeland District Council,http://opendatacommunities.org/id/district-council/south-lakeland,31/10/2018,Business Support Community Services,Internal Trading Accounts,,HYDRAIR TRUCK & TRAILER PARTS LTD,,03-10-2018,0000080817,70.08,0,Parts,Parts,Transport-Repair & Maintenance,381500,Vehicle Mgt Parts
South Lakeland District Council,http://opendatacommunities.org/id/district-council/south-lakeland,31/10/2018,Business Support Community Services,Internal Trading Accounts,,HYDRAIR TRUCK & TRAILER PARTS LTD,,03-10-2018,0000080818,156.16,0,Parts,Parts,Transport-Repair & Maintenance,381500,Vehicle Mgt Parts
South Lakeland District Council,http://opendatacommunities.org/id/district-council/south-lakeland,31/10/2018,Business Support Community Services,Internal Trading Accounts,,Harry Park Tyres Ltd,08131208,03-10-2018,0000080819,2190,0,Tyres,Tyres,Vehicle - Tyres,381500,Vehicle Mgt Parts
South Lakeland District Council,http://opendatacommunities.org/id/district-council/south-lakeland,31/10/2018,Business Support Community Services,Cultural Environmental Regulatory & Planning Services,http://opendatacommunities.org/def/concept/finance/sercop/objective/104,BRIAN ARMISTEAD LTD T/A SINKFALL RECYCLI,04133280,03-10-2018,0000080820,1150.68,0,Green waste tipping - 2018/19,Green waste tipping - 2018/19,Tipping & Disposal Charges,391110,Construction Buildings Construction
South Lakeland District Council,http://opendatacommunities.org/id/district-council/south-lakeland,31/10/2018,Business Support Community Services,Internal Trading Accounts,,S J Bargh,00532272,03-10-2018,0000080821,136,0,MOTs 2018/19 & vehicle cleaning,MOTs 2018/19 & vehicle cleaning,MOT/Servicing Costs,381400,Vehicle Mgt Maintenance
South Lakeland District Council,http://opendatacommunities.org/id/district-council/south-lakeland,31/10/2018,Business Support Community Services,Internal Trading Accounts,,S J Bargh,00532272,03-10-2018,0000080822,113.3,0,MOTs 2018/19 & vehicle cleaning,MOTs 2018/19 & vehicle cleaning,MOT/Servicing Costs,381400,Vehicle Mgt Maintenance
South Lakeland District Council,http://opendatacommunities.org/id/district-council/south-lakeland,31/10/2018,Business Support Community Services,Internal Trading Accounts,,HAKO MACHINES LIMITED,01414225,03-10-2018,0000080823,587.5,0,6 x compact sweepers,6 x compact sweepers,Transport-Repair & Maintenance,131000,Cleaning & Janitorial Cleaning Materials
South Lakeland District Council,http://opendatacommunities.org/id/district-council/south-lakeland,31/10/2018,Business Support Community Services,Transport Planning Policy,http://opendatacommunities.org/def/concept/finance/sercop/objective/107,ARCO LIMITED,00133804,03-10-2018,0000080824,102.53,0,Cleaning materials,Cleaning materials,Cleaning Supplies & Services,141100,Clothing Protective
South Lakeland District Council,http://opendatacommunities.org/id/district-council/south-lakeland,31/10/2018,Business Support Community Services,Cultural Environmental Regulatory & Planning Services,http://opendatacommunities.org/def/concept/finance/sercop/objective/104,ARCO LIMITED,00133804,03-10-2018,0000080824,40.76,0,Cleaning materials,Cleaning materials,Equipment Furniture Materials,141100,Clothing Protective
South Lakeland District Council,http://opendatacommunities.org/id/district-council/south-lakeland,31/10/2018,Business Support Community Services,Cultural Environmental Regulatory & Planning Services,http://opendatacommunities.org/def/concept/finance/sercop/objective/104,ARCO LIMITED,00133804,03-10-2018,0000080824,133.15,0,Cleaning materials,Cleaning materials,Protective Clothing & Uniforms,141100,Clothing Protective
South Lakeland District Council,http://opendatacommunities.org/id/district-council/south-lakeland,31/10/2018,Business Support Community Services,Internal Trading Accounts,,S J Bargh,00532272,03-10-2018,0000080825,158,0,MOTs 2018/19 & vehicle cleaning,MOTs 2018/19 & vehicle cleaning,MOT/Servicing Costs,381400,Vehicle Mgt Maintenance
South Lakeland District Council,http://opendatacommunities.org/id/district-council/south-lakeland,31/10/2018,Business Support Community Services,Cultural Environmental Regulatory & Planning Services,http://opendatacommunities.org/def/concept/finance/sercop/objective/104,Masterstaff Limited,02777593,03-10-2018,0000080826,2595.5,0,Agency staff,Agency staff,Contract & Agency staff,261300,HR Recruitment & Assessment
South Lakeland District Council,http://opendatacommunities.org/id/district-council/south-lakeland,31/10/2018,Business Support Community Services,Internal Trading Accounts,,QPS PLASTIC LTD,,03-10-2018,0000080827,109.45,0,Curtains,Curtains,Transport-Repair & Maintenance,109999,Building Not Elsewhere Classified
South Lakeland District Council,http://opendatacommunities.org/id/district-council/south-lakeland,31/10/2018,Business Support Community Services,Internal Trading Accounts,,EK MOTOR FACTORS LTD,00838524,03-10-2018,0000080828,52.47,0,Parts,Parts,Transport-Repair & Maintenance,381400,Vehicle Mgt Maintenance
South Lakeland District Council,http://opendatacommunities.org/id/district-council/south-lakeland,31/10/2018,Business Support Community Services,Internal Trading Accounts,,EK MOTOR FACTORS LTD,00838524,03-10-2018,0000080829,46.94,0,Parts,Parts,Vehicle - Tyres,381400,Vehicle Mgt Maintenance
South Lakeland District Council,http://opendatacommunities.org/id/district-council/south-lakeland,31/10/2018,Printing Section,Central Services,http://opendatacommunities.org/def/concept/finance/sercop/objective/102,ROSEFOX PAPER LIMITED,01655083,08-10-2018,0000080830,91.33,0,Target 160gsm SRA3,Target 160gsm SRA3,Stationery/Office Supplies,341000,Stationery Paper
South Lakeland District Council,http://opendatacommunities.org/id/district-council/south-lakeland,31/10/2018,Printing Section,Central Services,http://opendatacommunities.org/def/concept/finance/sercop/objective/102,ROSEFOX PAPER LIMITED,01655083,08-10-2018,0000080830,15.48,0,Target 160gsm SRA3,Target 160gsm SRA3,Stationery/Office Supplies,341000,Stationery Paper
South Lakeland District Council,http://opendatacommunities.org/id/district-council/south-lakeland,31/10/2018,Business Support Community Services,Cultural Environmental Regulatory & Planning Services,http://opendatacommunities.org/def/concept/finance/sercop/objective/104,RPC BPI RECYCLED PRODUCTS,350729,03-10-2018,0000080831,5704.18,0,Black liners - 455x785x990 50/F 400/PK,Black liners - 455x785x990 50/F 400/PK,Job Consumables,182013,Environment Waste Mgt Waste Collection
South Lakeland District Council,http://opendatacommunities.org/id/district-council/south-lakeland,31/10/2018,Business Support Community Services,Internal Trading Accounts,,S J Bargh,00532272,03-10-2018,0000080832,65,0,MOTs 2018/19 & vehicle cleaning,MOTs 2018/19 & vehicle cleaning,MOT/Servicing Costs,381400,Vehicle Mgt Maintenance
South Lakeland District Council,http://opendatacommunities.org/id/district-council/south-lakeland,31/10/2018,Social Enterprise Admin,Highways & Transport Services,http://opendatacommunities.org/def/concept/finance/sercop/objective/107,Orbility,,03-10-2018,0000080833,2059.26,0,"To Supply, deliver and fit 1 Magnetic","To Supply, deliver and fit 1 Magnetic",Fixed Plant & Machinery Maint,111200,Catering Food & Beverages
South Lakeland District Council,http://opendatacommunities.org/id/district-council/south-lakeland,31/10/2018,Leisure and Wellbeing,Cultural Environmental Regulatory & Planning Services,http://opendatacommunities.org/def/concept/finance/sercop/objective/104,CONTINENTAL LANDSCAPES LTD,2108452,08-10-2018,0000080834,3852.09,0,Gravedigging for April 2018 - March 2019,Gravedigging for April 2018 - March 2019,Gravedigging,391310,Construction Open Spaces Construction
South Lakeland District Council,http://opendatacommunities.org/id/district-council/south-lakeland,31/10/2018,Leisure and Wellbeing,Cultural Environmental Regulatory & Planning Services,http://opendatacommunities.org/def/concept/finance/sercop/objective/104,CONTINENTAL LANDSCAPES LTD,2108452,08-10-2018,0000080835,2000,0,For disposal of waste for Kendal Fell,For disposal of waste for Kendal Fell,Tipping & Disposal Charges,391310,Construction Open Spaces Construction
South Lakeland District Council,http://opendatacommunities.org/id/district-council/south-lakeland,31/10/2018,Leisure and Wellbeing,Highways & Transport Services,http://opendatacommunities.org/def/concept/finance/sercop/objective/107,CONTINENTAL LANDSCAPES LTD,2108452,08-10-2018,0000080836,12.74,0,Parks Routine Maintenance 2018-19,Parks Routine Maintenance 2018-19,Grounds,391310,Construction Open Spaces Construction
South Lakeland District Council,http://opendatacommunities.org/id/district-council/south-lakeland,31/10/2018,Leisure and Wellbeing,Highways & Transport Services,http://opendatacommunities.org/def/concept/finance/sercop/objective/107,CONTINENTAL LANDSCAPES LTD,2108452,08-10-2018,0000080836,127.44,0,Parks Routine Maintenance 2018-19,Parks Routine Maintenance 2018-19,Grounds,391310,Construction Open Spaces Construction
South Lakeland District Council,http://opendatacommunities.org/id/district-council/south-lakeland,31/10/2018,Leisure and Wellbeing,Highways & Transport Services,http://opendatacommunities.org/def/concept/finance/sercop/objective/107,CONTINENTAL LANDSCAPES LTD,2108452,08-10-2018,0000080836,1.27,0,Parks Routine Maintenance 2018-19,Parks Routine Maintenance 2018-19,Grounds,391310,Construction Open Spaces Construction
South Lakeland District Council,http://opendatacommunities.org/id/district-council/south-lakeland,31/10/2018,Leisure and Wellbeing,Highways & Transport Services,http://opendatacommunities.org/def/concept/finance/sercop/objective/107,CONTINENTAL LANDSCAPES LTD,2108452,08-10-2018,0000080836,12.74,0,Parks Routine Maintenance 2018-19,Parks Routine Maintenance 2018-19,Grounds,391310,Construction Open Spaces Construction
South Lakeland District Council,http://opendatacommunities.org/id/district-council/south-lakeland,31/10/2018,Leisure and Wellbeing,Highways & Transport Services,http://opendatacommunities.org/def/concept/finance/sercop/objective/107,CONTINENTAL LANDSCAPES LTD,2108452,08-10-2018,0000080836,127.44,0,Parks Routine Maintenance 2018-19,Parks Routine Maintenance 2018-19,Grounds,391310,Construction Open Spaces Construction
South Lakeland District Council,http://opendatacommunities.org/id/district-council/south-lakeland,31/10/2018,Leisure and Wellbeing,Highways & Transport Services,http://opendatacommunities.org/def/concept/finance/sercop/objective/107,CONTINENTAL LANDSCAPES LTD,2108452,08-10-2018,0000080836,12.74,0,Parks Routine Maintenance 2018-19,Parks Routine Maintenance 2018-19,Grounds,391310,Construction Open Spaces Construction
South Lakeland District Council,http://opendatacommunities.org/id/district-council/south-lakeland,31/10/2018,Leisure and Wellbeing,Highways & Transport Services,http://opendatacommunities.org/def/concept/finance/sercop/objective/107,CONTINENTAL LANDSCAPES LTD,2108452,08-10-2018,0000080836,25.49,0,Parks Routine Maintenance 2018-19,Parks Routine Maintenance 2018-19,Grounds,391310,Construction Open Spaces Construction
South Lakeland District Council,http://opendatacommunities.org/id/district-council/south-lakeland,31/10/2018,Leisure and Wellbeing,Highways & Transport Services,http://opendatacommunities.org/def/concept/finance/sercop/objective/107,CONTINENTAL LANDSCAPES LTD,2108452,08-10-2018,0000080836,15.93,0,Parks Routine Maintenance 2018-19,Parks Routine Maintenance 2018-19,Grounds,391310,Construction Open Spaces Construction
South Lakeland District Council,http://opendatacommunities.org/id/district-council/south-lakeland,31/10/2018,Leisure and Wellbeing,Highways & Transport Services,http://opendatacommunities.org/def/concept/finance/sercop/objective/107,CONTINENTAL LANDSCAPES LTD,2108452,08-10-2018,0000080836,159.3,0,Parks Routine Maintenance 2018-19,Parks Routine Maintenance 2018-19,Grounds,391310,Construction Open Spaces Construction
South Lakeland District Council,http://opendatacommunities.org/id/district-council/south-lakeland,31/10/2018,Leisure and Wellbeing,Highways & Transport Services,http://opendatacommunities.org/def/concept/finance/sercop/objective/107,CONTINENTAL LANDSCAPES LTD,2108452,08-10-2018,0000080836,6.37,0,Parks Routine Maintenance 2018-19,Parks Routine Maintenance 2018-19,Grounds,391310,Construction Open Spaces Construction
South Lakeland District Council,http://opendatacommunities.org/id/district-council/south-lakeland,31/10/2018,Leisure and Wellbeing,Highways & Transport Services,http://opendatacommunities.org/def/concept/finance/sercop/objective/107,CONTINENTAL LANDSCAPES LTD,2108452,08-10-2018,0000080836,63.72,0,Parks Routine Maintenance 2018-19,Parks Routine Maintenance 2018-19,Grounds,391310,Construction Open Spaces Construction
South Lakeland District Council,http://opendatacommunities.org/id/district-council/south-lakeland,31/10/2018,Leisure and Wellbeing,Highways & Transport Services,http://opendatacommunities.org/def/concept/finance/sercop/objective/107,CONTINENTAL LANDSCAPES LTD,2108452,08-10-2018,0000080836,25.49,0,Parks Routine Maintenance 2018-19,Parks Routine Maintenance 2018-19,Grounds,391310,Construction Open Spaces Construction
South Lakeland District Council,http://opendatacommunities.org/id/district-council/south-lakeland,31/10/2018,Leisure and Wellbeing,Highways & Transport Services,http://opendatacommunities.org/def/concept/finance/sercop/objective/107,CONTINENTAL LANDSCAPES LTD,2108452,08-10-2018,0000080836,6.37,0,Parks Routine Maintenance 2018-19,Parks Routine Maintenance 2018-19,Grounds,391310,Construction Open Spaces Construction
South Lakeland District Council,http://opendatacommunities.org/id/district-council/south-lakeland,31/10/2018,Leisure and Wellbeing,Highways & Transport Services,http://opendatacommunities.org/def/concept/finance/sercop/objective/107,CONTINENTAL LANDSCAPES LTD,2108452,08-10-2018,0000080836,4.14,0,Parks Routine Maintenance 2018-19,Parks Routine Maintenance 2018-19,Grounds,391310,Construction Open Spaces Construction
South Lakeland District Council,http://opendatacommunities.org/id/district-council/south-lakeland,31/10/2018,Leisure and Wellbeing,Highways & Transport Services,http://opendatacommunities.org/def/concept/finance/sercop/objective/107,CONTINENTAL LANDSCAPES LTD,2108452,08-10-2018,0000080836,6.37,0,Parks Routine Maintenance 2018-19,Parks Routine Maintenance 2018-19,Grounds,391310,Construction Open Spaces Construction
South Lakeland District Council,http://opendatacommunities.org/id/district-council/south-lakeland,31/10/2018,Leisure and Wellbeing,Highways & Transport Services,http://opendatacommunities.org/def/concept/finance/sercop/objective/107,CONTINENTAL LANDSCAPES LTD,2108452,08-10-2018,0000080836,76.46,0,Parks Routine Maintenance 2018-19,Parks Routine Maintenance 2018-19,Grounds,391310,Construction Open Spaces Construction
South Lakeland District Council,http://opendatacommunities.org/id/district-council/south-lakeland,31/10/2018,Leisure and Wellbeing,Highways & Transport Services,http://opendatacommunities.org/def/concept/finance/sercop/objective/107,CONTINENTAL LANDSCAPES LTD,2108452,08-10-2018,0000080836,3.19,0,Parks Routine Maintenance 2018-19,Parks Routine Maintenance 2018-19,Grounds,391310,Construction Open Spaces Construction
South Lakeland District Council,http://opendatacommunities.org/id/district-council/south-lakeland,31/10/2018,Leisure and Wellbeing,Highways & Transport Services,http://opendatacommunities.org/def/concept/finance/sercop/objective/107,CONTINENTAL LANDSCAPES LTD,2108452,08-10-2018,0000080836,5.73,0,Parks Routine Maintenance 2018-19,Parks Routine Maintenance 2018-19,Grounds,391310,Construction Open Spaces Construction
South Lakeland District Council,http://opendatacommunities.org/id/district-council/south-lakeland,31/10/2018,Leisure and Wellbeing,Highways & Transport Services,http://opendatacommunities.org/def/concept/finance/sercop/objective/107,CONTINENTAL LANDSCAPES LTD,2108452,08-10-2018,0000080836,6.37,0,Parks Routine Maintenance 2018-19,Parks Routine Maintenance 2018-19,Grounds,391310,Construction Open Spaces Construction
South Lakeland District Council,http://opendatacommunities.org/id/district-council/south-lakeland,31/10/2018,Leisure and Wellbeing,Highways & Transport Services,http://opendatacommunities.org/def/concept/finance/sercop/objective/107,CONTINENTAL LANDSCAPES LTD,2108452,08-10-2018,0000080836,70.09,0,Parks Routine Maintenance 2018-19,Parks Routine Maintenance 2018-19,Grounds,391310,Construction Open Spaces Construction
South Lakeland District Council,http://opendatacommunities.org/id/district-council/south-lakeland,31/10/2018,Leisure and Wellbeing,Highways & Transport Services,http://opendatacommunities.org/def/concept/finance/sercop/objective/107,CONTINENTAL LANDSCAPES LTD,2108452,08-10-2018,0000080836,133.81,0,Parks Routine Maintenance 2018-19,Parks Routine Maintenance 2018-19,Grounds,391310,Construction Open Spaces Construction
South Lakeland District Council,http://opendatacommunities.org/id/district-council/south-lakeland,31/10/2018,Leisure and Wellbeing,Highways & Transport Services,http://opendatacommunities.org/def/concept/finance/sercop/objective/107,CONTINENTAL LANDSCAPES LTD,2108452,08-10-2018,0000080836,6.37,0,Parks Routine Maintenance 2018-19,Parks Routine Maintenance 2018-19,Grounds,391310,Construction Open Spaces Construction
South Lakeland District Council,http://opendatacommunities.org/id/district-council/south-lakeland,31/10/2018,Leisure and Wellbeing,Highways & Transport Services,http://opendatacommunities.org/def/concept/finance/sercop/objective/107,CONTINENTAL LANDSCAPES LTD,2108452,08-10-2018,0000080836,12.74,0,Parks Routine Maintenance 2018-19,Parks Routine Maintenance 2018-19,Grounds,391310,Construction Open Spaces Construction
South Lakeland District Council,http://opendatacommunities.org/id/district-council/south-lakeland,31/10/2018,Leisure and Wellbeing,Highways & Transport Services,http://opendatacommunities.org/def/concept/finance/sercop/objective/107,CONTINENTAL LANDSCAPES LTD,2108452,08-10-2018,0000080836,12.74,0,Parks Routine Maintenance 2018-19,Parks Routine Maintenance 2018-19,Grounds,391310,Construction Open Spaces Construction
South Lakeland District Council,http://opendatacommunities.org/id/district-council/south-lakeland,31/10/2018,Leisure and Wellbeing,Highways & Transport Services,http://opendatacommunities.org/def/concept/finance/sercop/objective/107,CONTINENTAL LANDSCAPES LTD,2108452,08-10-2018,0000080836,191.16,0,Parks Routine Maintenance 2018-19,Parks Routine Maintenance 2018-19,Grounds,391310,Construction Open Spaces Construction
South Lakeland District Council,http://opendatacommunities.org/id/district-council/south-lakeland,31/10/2018,Leisure and Wellbeing,Highways & Transport Services,http://opendatacommunities.org/def/concept/finance/sercop/objective/107,CONTINENTAL LANDSCAPES LTD,2108452,08-10-2018,0000080836,6.37,0,Parks Routine Maintenance 2018-19,Parks Routine Maintenance 2018-19,Grounds,391310,Construction Open Spaces Construction
South Lakeland District Council,http://opendatacommunities.org/id/district-council/south-lakeland,31/10/2018,Leisure and Wellbeing,Highways & Transport Services,http://opendatacommunities.org/def/concept/finance/sercop/objective/107,CONTINENTAL LANDSCAPES LTD,2108452,08-10-2018,0000080836,57.35,0,Parks Routine Maintenance 2018-19,Parks Routine Maintenance 2018-19,Grounds,391310,Construction Open Spaces Construction
South Lakeland District Council,http://opendatacommunities.org/id/district-council/south-lakeland,31/10/2018,Leisure and Wellbeing,Highways & Transport Services,http://opendatacommunities.org/def/concept/finance/sercop/objective/107,CONTINENTAL LANDSCAPES LTD,2108452,08-10-2018,0000080836,12.74,0,Parks Routine Maintenance 2018-19,Parks Routine Maintenance 2018-19,Grounds,391310,Construction Open Spaces Construction
South Lakeland District Council,http://opendatacommunities.org/id/district-council/south-lakeland,31/10/2018,Leisure and Wellbeing,Highways & Transport Services,http://opendatacommunities.org/def/concept/finance/sercop/objective/107,CONTINENTAL LANDSCAPES LTD,2108452,08-10-2018,0000080836,25.49,0,Parks Routine Maintenance 2018-19,Parks Routine Maintenance 2018-19,Grounds,391310,Construction Open Spaces Construction
South Lakeland District Council,http://opendatacommunities.org/id/district-council/south-lakeland,31/10/2018,Leisure and Wellbeing,Highways & Transport Services,http://opendatacommunities.org/def/concept/finance/sercop/objective/107,CONTINENTAL LANDSCAPES LTD,2108452,08-10-2018,0000080836,19.12,0,Parks Routine Maintenance 2018-19,Parks Routine Maintenance 2018-19,Grounds,391310,Construction Open Spaces Construction
South Lakeland District Council,http://opendatacommunities.org/id/district-council/south-lakeland,31/10/2018,Leisure and Wellbeing,Highways & Transport Services,http://opendatacommunities.org/def/concept/finance/sercop/objective/107,CONTINENTAL LANDSCAPES LTD,2108452,08-10-2018,0000080836,19.12,0,Parks Routine Maintenance 2018-19,Parks Routine Maintenance 2018-19,Grounds,391310,Construction Open Spaces Construction
South Lakeland District Council,http://opendatacommunities.org/id/district-council/south-lakeland,31/10/2018,Leisure and Wellbeing,Cultural Environmental Regulatory & Planning Services,http://opendatacommunities.org/def/concept/finance/sercop/objective/104,CONTINENTAL LANDSCAPES LTD,2108452,08-10-2018,0000080836,10195.1,0,Parks Routine Maintenance 2018-19,Parks Routine Maintenance 2018-19,Grounds,391310,Construction Open Spaces Construction
South Lakeland District Council,http://opendatacommunities.org/id/district-council/south-lakeland,31/10/2018,Leisure and Wellbeing,Cultural Environmental Regulatory & Planning Services,http://opendatacommunities.org/def/concept/finance/sercop/objective/104,CONTINENTAL LANDSCAPES LTD,2108452,08-10-2018,0000080836,25.49,0,Parks Routine Maintenance 2018-19,Parks Routine Maintenance 2018-19,Grounds,391310,Construction Open Spaces Construction
South Lakeland District Council,http://opendatacommunities.org/id/district-council/south-lakeland,31/10/2018,Leisure and Wellbeing,Cultural Environmental Regulatory & Planning Services,http://opendatacommunities.org/def/concept/finance/sercop/objective/104,CONTINENTAL LANDSCAPES LTD,2108452,08-10-2018,0000080836,49701.07,0,Parks Routine Maintenance 2018-19,Parks Routine Maintenance 2018-19,Grounds,391310,Construction Open Spaces Construction
South Lakeland District Council,http://opendatacommunities.org/id/district-council/south-lakeland,31/10/2018,Leisure and Wellbeing,Cultural Environmental Regulatory & Planning Services,http://opendatacommunities.org/def/concept/finance/sercop/objective/104,CONTINENTAL LANDSCAPES LTD,2108452,08-10-2018,0000080836,509.75,0,Parks Routine Maintenance 2018-19,Parks Routine Maintenance 2018-19,Grounds CCC Grass Verges,391310,Construction Open Spaces Construction
South Lakeland District Council,http://opendatacommunities.org/id/district-council/south-lakeland,31/10/2018,Leisure and Wellbeing,Cultural Environmental Regulatory & Planning Services,http://opendatacommunities.org/def/concept/finance/sercop/objective/104,CONTINENTAL LANDSCAPES LTD,2108452,08-10-2018,0000080836,1911.58,0,Parks Routine Maintenance 2018-19,Parks Routine Maintenance 2018-19,Grounds,391310,Construction Open Spaces Construction
South Lakeland District Council,http://opendatacommunities.org/id/district-council/south-lakeland,31/10/2018,Leisure and Wellbeing,External Trading Accounts,,CONTINENTAL LANDSCAPES LTD,2108452,08-10-2018,0000080836,111.51,0,Parks Routine Maintenance 2018-19,Parks Routine Maintenance 2018-19,Grounds,391310,Construction Open Spaces Construction
South Lakeland District Council,http://opendatacommunities.org/id/district-council/south-lakeland,31/10/2018,Leisure and Wellbeing,Cultural Environmental Regulatory & Planning Services,http://opendatacommunities.org/def/concept/finance/sercop/objective/104,CONTINENTAL LANDSCAPES LTD,2108452,08-10-2018,0000080837,3904,0,Completion of all SLDC playground,Completion of all SLDC playground,Play Areas Maintenance,391310,Construction Open Spaces Construction
South Lakeland District Council,http://opendatacommunities.org/id/district-council/south-lakeland,31/10/2018,Democratic and Member Services,Central Services,http://opendatacommunities.org/def/concept/finance/sercop/objective/102,Thomas Fattorini Ltd,153351,15-10-2018,0000080838,181.25,0,Replace existing shoulder pins with 3,Replace existing shoulder pins with 3,Equipment Furniture Materials,290000,Arts & Leisure Services
South Lakeland District Council,http://opendatacommunities.org/id/district-council/south-lakeland,31/10/2018,Business Support Community Services,Internal Trading Accounts,,ALAN MYERSCOUGH LTD,02027076,03-10-2018,0000080839,500,0,Repair SL074,Repair SL074,Vehicle Insured Damage,381400,Vehicle Mgt Maintenance
South Lakeland District Council,http://opendatacommunities.org/id/district-council/south-lakeland,31/10/2018,Business Support Community Services,Internal Trading Accounts,,GARWOOD EUROPE LTD,04333504,15-10-2018,0000080840,58,0,Button covers,Button covers,Transport-Repair & Maintenance,182011,Environment Waste Management Consumables
South Lakeland District Council,http://opendatacommunities.org/id/district-council/south-lakeland,31/10/2018,Business Support Community Services,Internal Trading Accounts,,DENNIS EAGLE LTD,03794455,03-10-2018,0000080841,164.68,0,Parts,Parts,Transport-Repair & Maintenance,381300,Vehicle Mgt Industrial
South Lakeland District Council,http://opendatacommunities.org/id/district-council/south-lakeland,31/10/2018,Business Support Community Services,Internal Trading Accounts,,HYDRAIR TRUCK & TRAILER PARTS LTD,,03-10-2018,0000080842,35.04,0,Parts,Parts,Transport-Uninsured Damage,381500,Vehicle Mgt Parts
South Lakeland District Council,http://opendatacommunities.org/id/district-council/south-lakeland,31/10/2018,Business Support Community Services,Internal Trading Accounts,,BERENDSEN UK LTD,00228604,08-10-2018,0000080843,258.16,0,Workwear hire 01/04/18 - 31/03/19,Workwear hire 01/04/18 - 31/03/19,Protective Clothing & Uniforms,161000,Domestic Goods Commercial
South Lakeland District Council,http://opendatacommunities.org/id/district-council/south-lakeland,31/10/2018,Business Support Community Services,Internal Trading Accounts,,M G D LTD,,03-10-2018,0000080844,35,0,MOTs 2018/19,MOTs 2018/19,MOT/Servicing Costs,381400,Vehicle Mgt Maintenance
South Lakeland District Council,http://opendatacommunities.org/id/district-council/south-lakeland,31/10/2018,Business Support Community Services,Internal Trading Accounts,,Gemco Service Limited,03514486,03-10-2018,0000080845,995,0,Service contract for brake tester,Service contract for brake tester,Equipment Furniture Materials,381400,Vehicle Mgt Maintenance
South Lakeland District Council,http://opendatacommunities.org/id/district-council/south-lakeland,31/10/2018,Kendal Town Hall,Cultural Environmental Regulatory & Planning Services,http://opendatacommunities.org/def/concept/finance/sercop/objective/104,THOMAS GRAHAM & SONS LTD,00656879,08-10-2018,0000080846,85.28,0,6 x 25 red bio wipes for KTH,6 x 25 red bio wipes for KTH,Cleaning Supplies & Services,101400,Building General Materials
South Lakeland District Council,http://opendatacommunities.org/id/district-council/south-lakeland,31/10/2018,Kendal Town Hall,Cultural Environmental Regulatory & Planning Services,http://opendatacommunities.org/def/concept/finance/sercop/objective/104,THOMAS GRAHAM & SONS LTD,00656879,08-10-2018,0000080846,383.55,0,6 x 25 red bio wipes for KTH,6 x 25 red bio wipes for KTH,Equipment Furniture Materials,101400,Building General Materials
South Lakeland District Council,http://opendatacommunities.org/id/district-council/south-lakeland,31/10/2018,Financial Services,Non-Service Payments,,CYCLESCHEME LTD,05363678,03-10-2018,0000080848,833.33,0,Cycle LC W418934,Cycle LC W418934,General,389999,Vehicle Mgt Not Else Class
South Lakeland District Council,http://opendatacommunities.org/id/district-council/south-lakeland,31/10/2018,Development Implementation,Transport,http://opendatacommunities.org/def/concept/finance/sercop/objective/107,LAMBERT SMITH HAMPTON GROUP,2521225,03-10-2018,0000080849,2750,0,SL House Car Park - Resurfacing Works,SL House Car Park - Resurfacing Works,Contract payments,999999,Unclassifiable
South Lakeland District Council,http://opendatacommunities.org/id/district-council/south-lakeland,31/10/2018,Development Implementation,Cultural Environmental Regulatory & Planning Services,http://opendatacommunities.org/def/concept/finance/sercop/objective/104,Helen Moriarty,,03-10-2018,0000080850,1245.75,0,Project Management Officer for,Project Management Officer for,Other Consultants,151000,Consultancy Business
South Lakeland District Council,http://opendatacommunities.org/id/district-council/south-lakeland,31/10/2018,Development Implementation,Cultural Environmental Regulatory & Planning Services,http://opendatacommunities.org/def/concept/finance/sercop/objective/104,Wayne Scurrah,,03-10-2018,0000080851,200,0,"Performance at Prom Art, The Glebe,","Performance at Prom Art, The Glebe,",Other Consultants,291300,Arts & Leisure Services Performing Arts
South Lakeland District Council,http://opendatacommunities.org/id/district-council/south-lakeland,31/10/2018,Business Support Community Services,Housing Services,http://opendatacommunities.org/def/concept/finance/sercop/objective/108,Rentokil Initial,301044,03-10-2018,0000080852,388,0,Room Cleaning and disposal of hazardous,Room Cleaning and disposal of hazardous,Cleaning Supplies & Services,130000,Cleanine & Janitorial
South Lakeland District Council,http://opendatacommunities.org/id/district-council/south-lakeland,31/10/2018,Kendal Town Hall,Cultural Environmental Regulatory & Planning Services,http://opendatacommunities.org/def/concept/finance/sercop/objective/104,Staveley Crystal,,03-10-2018,0000080853,48,0,To engraving 6 flasks for Kendal Town,To engraving 6 flasks for Kendal Town,Equipment Furniture Materials,119999,Catering Not Elsewhere Classified
South Lakeland District Council,http://opendatacommunities.org/id/district-council/south-lakeland,31/10/2018,Development Implementation,SLDC as Agent,,KENDAL TOWN COUNCIL,,03-10-2018,0000080855,2500,0,Contribution towards Kendal leaflets,Contribution towards Kendal leaflets,General,908000,Public Bodies Council support services
South Lakeland District Council,http://opendatacommunities.org/id/district-council/south-lakeland,31/10/2018,Development Implementation,External Trading Accounts,,John Wade Groundworks Ltd,4836715,03-10-2018,0000080856,9400,0,Additional Works at New Road,Additional Works at New Road,Unforseen Mtce Infrastructure,100000,Building Construction materials
South Lakeland District Council,http://opendatacommunities.org/id/district-council/south-lakeland,31/10/2018,Development Implementation,Transport,http://opendatacommunities.org/def/concept/finance/sercop/objective/107,LAMBERT SMITH HAMPTON GROUP,2521225,03-10-2018,0000080857,1746,0,Car Park Resurfacing Works @ Buxton,Car Park Resurfacing Works @ Buxton,Contract payments,999999,Unclassifiable
South Lakeland District Council,http://opendatacommunities.org/id/district-council/south-lakeland,31/10/2018,Development Implementation,Transport,http://opendatacommunities.org/def/concept/finance/sercop/objective/107,LAMBERT SMITH HAMPTON GROUP,2521225,03-10-2018,0000080859,2625,0,SL House Car Park - Resurfacing Works,SL House Car Park - Resurfacing Works,Contract payments,999999,Unclassifiable
South Lakeland District Council,http://opendatacommunities.org/id/district-council/south-lakeland,31/10/2018,Environment and Housing,Housing Services,http://opendatacommunities.org/def/concept/finance/sercop/objective/108,G B BURROW & SON,,08-10-2018,0000080863,132,0,Storage costs for S G,Storage costs for S G,Homelessness Prevention,192300,Facilities Storage
South Lakeland District Council,http://opendatacommunities.org/id/district-council/south-lakeland,31/10/2018,Environment and Housing,Housing Services,http://opendatacommunities.org/def/concept/finance/sercop/objective/108,G B BURROW & SON,,08-10-2018,0000080864,104,0,Storage costs for S B,Storage costs for S B,Homelessness Prevention,192300,Facilities Storage
South Lakeland District Council,http://opendatacommunities.org/id/district-council/south-lakeland,31/10/2018,Environment and Housing,Housing Services,http://opendatacommunities.org/def/concept/finance/sercop/objective/108,G B BURROW & SON,,08-10-2018,0000080865,44,0,Storage costs for F A,Storage costs for F A,Homelessness Prevention,192300,Facilities Storage
South Lakeland District Council,http://opendatacommunities.org/id/district-council/south-lakeland,31/10/2018,Business Support Community Services,Cultural Environmental Regulatory & Planning Services,http://opendatacommunities.org/def/concept/finance/sercop/objective/104,Carrington West,,08-10-2018,0000080866,2464.2,0,Supply of agency staff for post of,Supply of agency staff for post of,Contract & Agency staff,159999,Consultancy Not Elsewhere Classified
South Lakeland District Council,http://opendatacommunities.org/id/district-council/south-lakeland,31/10/2018,Business Support Community Services,Cultural Environmental Regulatory & Planning Services,http://opendatacommunities.org/def/concept/finance/sercop/objective/104,Macdonald & Company Freelance Ltd,03882135,08-10-2018,0000080867,4325.4,0,Supply of Contract Worker for Planning,Supply of Contract Worker for Planning,Contract & Agency staff,261400,HR Temporary & Agency Staff
South Lakeland District Council,http://opendatacommunities.org/id/district-council/south-lakeland,31/10/2018,Business Support Community Services,Internal Trading Accounts,,NORTHGATE VEHICLE HIRE LTD,01434157,15-10-2018,0000080868,121,0,Car hire,Car hire,Training Costs,381600,Vehicle Mgt Leasing
South Lakeland District Council,http://opendatacommunities.org/id/district-council/south-lakeland,31/10/2018,Development Implementation,Transport,http://opendatacommunities.org/def/concept/finance/sercop/objective/107,LAMBERT SMITH HAMPTON GROUP,2521225,08-10-2018,0000080869,1500,0,Surfacing works at Car Park off,Surfacing works at Car Park off,Contract payments,999999,Unclassifiable
South Lakeland District Council,http://opendatacommunities.org/id/district-council/south-lakeland,31/10/2018,Development Implementation,Central Services,http://opendatacommunities.org/def/concept/finance/sercop/objective/102,ENVIROFIRST LTD,05999123,10-10-2018,0000080870,136.32,0,Lowther Street Wheelie Bin Mixed,Lowther Street Wheelie Bin Mixed,Allocation Refuse Costs,182012,Environment Waste Management Recycling
South Lakeland District Council,http://opendatacommunities.org/id/district-council/south-lakeland,31/10/2018,Policy & Partnerships,Central Services,http://opendatacommunities.org/def/concept/finance/sercop/objective/102,Digital Hearing Care Solutions Ltd,05659065,08-10-2018,0000080871,3794,0,Phonak Roger Select transmitter in,Phonak Roger Select transmitter in,Equipment Furniture Materials,311300,Healthcare-Equipment
South Lakeland District Council,http://opendatacommunities.org/id/district-council/south-lakeland,31/10/2018,Development Implementation,Culture and Related Serv,http://opendatacommunities.org/def/concept/finance/sercop/objective/104,LAMBERT SMITH HAMPTON GROUP,2521225,08-10-2018,0000080872,2000,0,Braithwaite Fold Caravan Park -,Braithwaite Fold Caravan Park -,Contract payments,999999,Unclassifiable
South Lakeland District Council,http://opendatacommunities.org/id/district-council/south-lakeland,31/10/2018,Development Implementation,Environment Regulatory,,LAMBERT SMITH HAMPTON GROUP,2521225,08-10-2018,0000080873,1344.38,0,"Rothay Park, Ambleside - Structural","Rothay Park, Ambleside - Structural",Contract payments,999999,Unclassifiable
South Lakeland District Council,http://opendatacommunities.org/id/district-council/south-lakeland,31/10/2018,Social Enterprise Admin,Culture and Related Serv,http://opendatacommunities.org/def/concept/finance/sercop/objective/104,Eamonn Byrne Landscape Architecture,,15-10-2018,0000080874,250,0,Additional progress meetings and site,Additional progress meetings and site,Contract payments,391300,Construction Open Spaces
South Lakeland District Council,http://opendatacommunities.org/id/district-council/south-lakeland,31/10/2018,Development Implementation,Highways & Transport Services,http://opendatacommunities.org/def/concept/finance/sercop/objective/107,LAMBERT SMITH HAMPTON GROUP,2521225,08-10-2018,0000080875,750,0,WSC Multi Storey Car Park - Structural,WSC Multi Storey Car Park - Structural,Other Consultants,999999,Unclassifiable
South Lakeland District Council,http://opendatacommunities.org/id/district-council/south-lakeland,31/10/2018,Social Enterprise Admin,Highways & Transport Services,http://opendatacommunities.org/def/concept/finance/sercop/objective/107,BEMROSE BOOTH PARAGON LTD,04891375,24-10-2018,0000080876,2212.5,0,"375,000 Aura Self Adhesive Single Issue","375,000 Aura Self Adhesive Single Issue",Printing,191600,Facilities Printing
South Lakeland District Council,http://opendatacommunities.org/id/district-council/south-lakeland,31/10/2018,Social Enterprise Admin,Highways & Transport Services,http://opendatacommunities.org/def/concept/finance/sercop/objective/107,BEMROSE BOOTH PARAGON LTD,04891375,24-10-2018,0000080877,-1687.5,0,"375,000 Aura Self Adhesive Single Issue","375,000 Aura Self Adhesive Single Issue",Printing,191600,Facilities Printing
South Lakeland District Council,http://opendatacommunities.org/id/district-council/south-lakeland,31/10/2018,Development Implementation,Cultural Environmental Regulatory & Planning Services,http://opendatacommunities.org/def/concept/finance/sercop/objective/104,Just H Design,,08-10-2018,0000080878,223,0,Bowness & W'mere Forward - Map T-Shirts,Bowness & W'mere Forward - Map T-Shirts,Other Consultants,191100,Facilities Design & Photography
South Lakeland District Council,http://opendatacommunities.org/id/district-council/south-lakeland,31/10/2018,Leisure and Wellbeing,Culture and Related Serv,http://opendatacommunities.org/def/concept/finance/sercop/objective/104,CONTINENTAL LANDSCAPES LTD,2108452,24-10-2018,0000080879,12037.5,0,"As per quote 6AA, Bowness Promenade","As per quote 6AA, Bowness Promenade",Contract payments,391310,Construction Open Spaces Construction
South Lakeland District Council,http://opendatacommunities.org/id/district-council/south-lakeland,31/10/2018,Development Implementation,Central Services,http://opendatacommunities.org/def/concept/finance/sercop/objective/102,J S Cleaning Services,,08-10-2018,0000080880,384,0,Cleaner for SLDC,Cleaner for SLDC,Contract & Agency staff,131010,Cleaning & Janitorial Cleaning Materials
South Lakeland District Council,http://opendatacommunities.org/id/district-council/south-lakeland,31/10/2018,Leisure and Wellbeing,External Trading Accounts,,CONTINENTAL LANDSCAPES LTD,2108452,24-10-2018,0000080881,1331.29,0,New Road maintenance for 2018-19,New Road maintenance for 2018-19,Grounds,391310,Construction Open Spaces Construction
South Lakeland District Council,http://opendatacommunities.org/id/district-council/south-lakeland,31/10/2018,ICT Group,Central Services,http://opendatacommunities.org/def/concept/finance/sercop/objective/102,VODAFONE LIMITED,01471587,08-10-2018,0000080883,4402.98,0,"Mobile phone charges, up to 31/3/19","Mobile phone charges, up to 31/3/19",Mobile Phones,271800,ICT Telecommunications Mobile
South Lakeland District Council,http://opendatacommunities.org/id/district-council/south-lakeland,31/10/2018,Environment and Housing,Housing Services,http://opendatacommunities.org/def/concept/finance/sercop/objective/108,James Andrews Recruitment Solutions,06834852,08-10-2018,0000080884,854.92,0,Payment for J H,Payment for J H,Contract & Agency staff,261400,HR Temporary & Agency Staff
South Lakeland District Council,http://opendatacommunities.org/id/district-council/south-lakeland,31/10/2018,Business Support Community Services,Cultural Environmental Regulatory & Planning Services,http://opendatacommunities.org/def/concept/finance/sercop/objective/104,SOUTH CUMBRIA MUSICAL FESTIVAL,,08-10-2018,0000080885,500,0,18-19 community grant funding,18-19 community grant funding,Grants & Contribut to Vol Orga,291000,Arts & Leisure Services Events
South Lakeland District Council,http://opendatacommunities.org/id/district-council/south-lakeland,31/10/2018,Business Support Community Services,Internal Trading Accounts,,A & W COMMERCIALS LTD,02630625,10-10-2018,0000080886,80,0,Hoses,Hoses,Transport-Repair & Maintenance,381400,Vehicle Mgt Maintenance
South Lakeland District Council,http://opendatacommunities.org/id/district-council/south-lakeland,31/10/2018,Business Support Community Services,Cultural Environmental Regulatory & Planning Services,http://opendatacommunities.org/def/concept/finance/sercop/objective/104,PENNINGTONS (KENDAL) LIMITED,00434649,08-10-2018,0000080889,2000,0,Annual Charge for use of Link Road at,Annual Charge for use of Link Road at,Tipping & Disposal Charges,182013,Environment Waste Mgt Waste Collection
South Lakeland District Council,http://opendatacommunities.org/id/district-council/south-lakeland,31/10/2018,Business Support Community Services,Housing Services,http://opendatacommunities.org/def/concept/finance/sercop/objective/108,BUNZL CLEANING & HYGIENE SUPPLIES,2902454,08-10-2018,0000080890,20.1,0,034209 Premiere Ovenclean Cold Oven,034209 Premiere Ovenclean Cold Oven,Cleaning Supplies & Services,131011,Cleaning & Janitorial Cleaning Materials
South Lakeland District Council,http://opendatacommunities.org/id/district-council/south-lakeland,31/10/2018,ICT Group,Central Services,http://opendatacommunities.org/def/concept/finance/sercop/objective/102,Insight Direct (Uk) Ltd,2579852,08-10-2018,0000080891,1497.36,0,Adobe VIPG Creative Cloud for teams All,Adobe VIPG Creative Cloud for teams All,Computer-Licences,271200,ICT Hardware
South Lakeland District Council,http://opendatacommunities.org/id/district-council/south-lakeland,31/10/2018,Social Enterprise Admin,Highways & Transport Services,http://opendatacommunities.org/def/concept/finance/sercop/objective/107,THOMAS GRAHAM & SONS LTD,00656879,08-10-2018,0000080892,62.71,0,1 Jangro Neutral Floor Cleaner Product,1 Jangro Neutral Floor Cleaner Product,Cleaning Supplies & Services,101400,Building General Materials
South Lakeland District Council,http://opendatacommunities.org/id/district-council/south-lakeland,31/10/2018,Social Enterprise Admin,Highways & Transport Services,http://opendatacommunities.org/def/concept/finance/sercop/objective/107,METRIC GROUP LIMITED,02560839,15-10-2018,0000080897,735,0,Web hosting and web tariff editor for,Web hosting and web tariff editor for,Fixed Plant & Machinery Maint,359999,Street & Traffic Not Elsewhere Classifie
South Lakeland District Council,http://opendatacommunities.org/id/district-council/south-lakeland,31/10/2018,Lake Wardens,Cultural Environmental Regulatory & Planning Services,http://opendatacommunities.org/def/concept/finance/sercop/objective/104,TECHNIJET LTD,02776601,08-10-2018,0000080900,86.31,0,Bi-Annual Service of Pressure Washers,Bi-Annual Service of Pressure Washers,Piers,139999,Cleaning & Janitorial Not Elsewhere Clas
South Lakeland District Council,http://opendatacommunities.org/id/district-council/south-lakeland,31/10/2018,Lake Wardens,Cultural Environmental Regulatory & Planning Services,http://opendatacommunities.org/def/concept/finance/sercop/objective/104,TECHNIJET LTD,02776601,15-10-2018,0000080901,122.36,0,Bi-Annual Service of Pressure Washers,Bi-Annual Service of Pressure Washers,Piers,139999,Cleaning & Janitorial Not Elsewhere Clas
South Lakeland District Council,http://opendatacommunities.org/id/district-council/south-lakeland,31/10/2018,Kendal Town Hall,Cultural Environmental Regulatory & Planning Services,http://opendatacommunities.org/def/concept/finance/sercop/objective/104,CUMBRIA - C P CATERING EQUIPMENT LTD,,15-10-2018,0000080902,110.9,0,6 x 1.5 litre vacuum flasks for KTH,6 x 1.5 litre vacuum flasks for KTH,Equipment Furniture Materials,111100,Catering Equipment & Utensils
South Lakeland District Council,http://opendatacommunities.org/id/district-council/south-lakeland,31/10/2018,Lake Wardens,Cultural Environmental Regulatory & Planning Services,http://opendatacommunities.org/def/concept/finance/sercop/objective/104,PHS GROUP PLC,,08-10-2018,0000080903,24.5,0,Annual Contract Fee for Sanitary,Annual Contract Fee for Sanitary,PSC Service Contracts,131312,Cleaning & Janitorial Washroom Sanitat
South Lakeland District Council,http://opendatacommunities.org/id/district-council/south-lakeland,31/10/2018,Business Support Community Services,Central Services,http://opendatacommunities.org/def/concept/finance/sercop/objective/102,INSTITUTE OF LICENSING (EVENTS) LTD,05710898,08-10-2018,0000080904,20,0,Online GDPR Course,Online GDPR Course,Training Costs,202100,Financial Services Subscriptions
South Lakeland District Council,http://opendatacommunities.org/id/district-council/south-lakeland,31/10/2018,Social Enterprise Admin,Cultural Environmental Regulatory & Planning Services,http://opendatacommunities.org/def/concept/finance/sercop/objective/104,NEWSQUEST MEDIA GROUP LTD,03102566,08-10-2018,0000080905,189,0,PUBLIC NOTICES FOR PLANNING 1 APRIL - 31,PUBLIC NOTICES FOR PLANNING 1 APRIL - 31,Advertising,191000,Facilities Advertising
South Lakeland District Council,http://opendatacommunities.org/id/district-council/south-lakeland,31/10/2018,Social Enterprise Admin,Cultural Environmental Regulatory & Planning Services,http://opendatacommunities.org/def/concept/finance/sercop/objective/104,NEWSQUEST MEDIA GROUP LTD,03102566,08-10-2018,0000080906,148.12,0,PUBLIC NOTICES FOR PLANNING 1 APRIL - 31,PUBLIC NOTICES FOR PLANNING 1 APRIL - 31,Advertising,191000,Facilities Advertising
South Lakeland District Council,http://opendatacommunities.org/id/district-council/south-lakeland,31/10/2018,Social Enterprise Admin,Cultural Environmental Regulatory & Planning Services,http://opendatacommunities.org/def/concept/finance/sercop/objective/104,NEWSQUEST MEDIA GROUP LTD,03102566,08-10-2018,0000080907,216,0,PUBLIC NOTICES FOR PLANNING 1 APRIL - 31,PUBLIC NOTICES FOR PLANNING 1 APRIL - 31,Advertising,191000,Facilities Advertising
South Lakeland District Council,http://opendatacommunities.org/id/district-council/south-lakeland,31/10/2018,Business Support Community Services,SLDC as Agent,,BREWERY ARTS CENTRE,,24-10-2018,0000080911,12694,0,Year 1 ATiC Project funding - 1st,Year 1 ATiC Project funding - 1st,General,291000,Arts & Leisure Services Events
South Lakeland District Council,http://opendatacommunities.org/id/district-council/south-lakeland,31/10/2018,Democratic and Member Services,Central Services,http://opendatacommunities.org/def/concept/finance/sercop/objective/102,18 St John Street Chambers,,08-10-2018,0000080912,90,0,R v  Advice,R v  Advice,Legal & Counsels Fees,281300,Legal Services Legal Opinion
South Lakeland District Council,http://opendatacommunities.org/id/district-council/south-lakeland,31/10/2018,Business Support Community Services,Cultural Environmental Regulatory & Planning Services,http://opendatacommunities.org/def/concept/finance/sercop/objective/104,CANNON HYGIENE LTD,01298292,08-10-2018,0000080913,2658.07,0,Clinical waste collections - 2018/19,Clinical waste collections - 2018/19,Clinincal Waste Disposal Costs,131011,Cleaning & Janitorial Cleaning Materials
South Lakeland District Council,http://opendatacommunities.org/id/district-council/south-lakeland,31/10/2018,Business Support Community Services,Transport Planning Policy,http://opendatacommunities.org/def/concept/finance/sercop/objective/107,ARCO LIMITED,00133804,08-10-2018,0000080914,20.29,0,Cleaning materials,Cleaning materials,Cleaning Supplies & Services,141100,Clothing Protective
South Lakeland District Council,http://opendatacommunities.org/id/district-council/south-lakeland,31/10/2018,Business Support Community Services,Cultural Environmental Regulatory & Planning Services,http://opendatacommunities.org/def/concept/finance/sercop/objective/104,ARCO LIMITED,00133804,08-10-2018,0000080914,37.48,0,Cleaning materials,Cleaning materials,Equipment Furniture Materials,141100,Clothing Protective
South Lakeland District Council,http://opendatacommunities.org/id/district-council/south-lakeland,31/10/2018,Business Support Community Services,Cultural Environmental Regulatory & Planning Services,http://opendatacommunities.org/def/concept/finance/sercop/objective/104,ARCO LIMITED,00133804,08-10-2018,0000080915,163.11,0,Cleaning materials,Cleaning materials,Protective Clothing & Uniforms,141100,Clothing Protective
South Lakeland District Council,http://opendatacommunities.org/id/district-council/south-lakeland,31/10/2018,Business Support Community Services,Transport Planning Policy,http://opendatacommunities.org/def/concept/finance/sercop/objective/107,ARCO LIMITED,00133804,08-10-2018,0000080916,12.73,0,Cleaning materials,Cleaning materials,Cleaning Supplies & Services,141100,Clothing Protective
South Lakeland District Council,http://opendatacommunities.org/id/district-council/south-lakeland,31/10/2018,Business Support Community Services,Cultural Environmental Regulatory & Planning Services,http://opendatacommunities.org/def/concept/finance/sercop/objective/104,ARCO LIMITED,00133804,08-10-2018,0000080916,138.9,0,Cleaning materials,Cleaning materials,Job Consumables,141100,Clothing Protective
South Lakeland District Council,http://opendatacommunities.org/id/district-council/south-lakeland,31/10/2018,Business Support Community Services,Cultural Environmental Regulatory & Planning Services,http://opendatacommunities.org/def/concept/finance/sercop/objective/104,ARCO LIMITED,00133804,08-10-2018,0000080916,689.64,0,Cleaning materials,Cleaning materials,Protective Clothing & Uniforms,141100,Clothing Protective
South Lakeland District Council,http://opendatacommunities.org/id/district-council/south-lakeland,31/10/2018,Business Support Community Services,Cultural Environmental Regulatory & Planning Services,http://opendatacommunities.org/def/concept/finance/sercop/objective/104,ARCO LIMITED,00133804,08-10-2018,0000080917,16.9,0,Cleaning materials,Cleaning materials,Job Consumables,141100,Clothing Protective
South Lakeland District Council,http://opendatacommunities.org/id/district-council/south-lakeland,31/10/2018,Business Support Community Services,Internal Trading Accounts,,TPS Preston,,08-10-2018,0000080918,490.9,0,Parts,Parts,Transport-Repair & Maintenance,381400,Vehicle Mgt Maintenance
South Lakeland District Council,http://opendatacommunities.org/id/district-council/south-lakeland,31/10/2018,Business Support Community Services,Internal Trading Accounts,,TPS Preston,,08-10-2018,0000080919,-174.79,0,Parts,Parts,Transport-Repair & Maintenance,381400,Vehicle Mgt Maintenance
South Lakeland District Council,http://opendatacommunities.org/id/district-council/south-lakeland,31/10/2018,Business Support Community Services,Cultural Environmental Regulatory & Planning Services,http://opendatacommunities.org/def/concept/finance/sercop/objective/104,ARCO LIMITED,00133804,08-10-2018,0000080920,90.45,0,Cleaning materials,Cleaning materials,Protective Clothing & Uniforms,141100,Clothing Protective
South Lakeland District Council,http://opendatacommunities.org/id/district-council/south-lakeland,31/10/2018,Business Support Community Services,Internal Trading Accounts,,DENNIS EAGLE LTD,03794455,08-10-2018,0000080921,298.16,0,Parts,Parts,Transport-Repair & Maintenance,381300,Vehicle Mgt Industrial
South Lakeland District Council,http://opendatacommunities.org/id/district-council/south-lakeland,31/10/2018,Business Support Community Services,Internal Trading Accounts,,LANCASHIRE DAF,,08-10-2018,0000080922,33.19,0,Parts,Parts,Transport-Repair & Maintenance,381400,Vehicle Mgt Maintenance
South Lakeland District Council,http://opendatacommunities.org/id/district-council/south-lakeland,31/10/2018,Business Support Community Services,Internal Trading Accounts,,FAUN ZOELLER (UK) LTD,00751804,08-10-2018,0000080923,200.6,0,Brushes,Brushes,Transport-Repair & Maintenance,381400,Vehicle Mgt Maintenance
South Lakeland District Council,http://opendatacommunities.org/id/district-council/south-lakeland,31/10/2018,Business Support Community Services,Internal Trading Accounts,,FAUN ZOELLER (UK) LTD,00751804,24-10-2018,0000080925,113.05,0,Brushes,Brushes,Transport-Repair & Maintenance,381400,Vehicle Mgt Maintenance
South Lakeland District Council,http://opendatacommunities.org/id/district-council/south-lakeland,31/10/2018,Business Support Community Services,Internal Trading Accounts,,DENNIS EAGLE LTD,03794455,08-10-2018,0000080926,77.07,0,Parts,Parts,Transport-Repair & Maintenance,381300,Vehicle Mgt Industrial
South Lakeland District Council,http://opendatacommunities.org/id/district-council/south-lakeland,31/10/2018,Business Support Community Services,Cultural Environmental Regulatory & Planning Services,http://opendatacommunities.org/def/concept/finance/sercop/objective/104,CANNON HYGIENE LTD,01298292,08-10-2018,0000080928,2.6,0,Clinical waste collections - 2018/19,Clinical waste collections - 2018/19,Clinincal Waste Disposal Costs,131011,Cleaning & Janitorial Cleaning Materials
South Lakeland District Council,http://opendatacommunities.org/id/district-council/south-lakeland,31/10/2018,Business Support Community Services,Internal Trading Accounts,,Verizon Connect UK Ltd,05265904,08-10-2018,0000080929,32,0,Annual fee for 70 vehicles from 01/06/18,Annual fee for 70 vehicles from 01/06/18,Transport-Repair & Maintenance,361000,Public Transport Fleet Management
South Lakeland District Council,http://opendatacommunities.org/id/district-council/south-lakeland,31/10/2018,Business Support Community Services,Transport Planning Policy,http://opendatacommunities.org/def/concept/finance/sercop/objective/107,ARCO LIMITED,00133804,08-10-2018,0000080930,19.11,0,Cleaning materials,Cleaning materials,Cleaning Supplies & Services,141100,Clothing Protective
South Lakeland District Council,http://opendatacommunities.org/id/district-council/south-lakeland,31/10/2018,Business Support Community Services,Cultural Environmental Regulatory & Planning Services,http://opendatacommunities.org/def/concept/finance/sercop/objective/104,ARCO LIMITED,00133804,08-10-2018,0000080931,20.28,0,Cleaning materials,Cleaning materials,Job Consumables,141100,Clothing Protective
South Lakeland District Council,http://opendatacommunities.org/id/district-council/south-lakeland,31/10/2018,Business Support Community Services,Internal Trading Accounts,,PROBRUSH T/A NORTHERN MUNICIPAL SPARES L,,08-10-2018,0000080933,1046.4,0,Brushes 2018/19,Brushes 2018/19,Transport-Repair & Maintenance,381600,Vehicle Mgt Leasing
South Lakeland District Council,http://opendatacommunities.org/id/district-council/south-lakeland,31/10/2018,Business Support Community Services,Cultural Environmental Regulatory & Planning Services,http://opendatacommunities.org/def/concept/finance/sercop/objective/104,JEWSON LIMITED,00348407,08-10-2018,0000080934,12.35,0,Fixtures & fittings 2017/18,Fixtures & fittings 2017/18,Fixtures & Fittings,101400,Building General Materials
South Lakeland District Council,http://opendatacommunities.org/id/district-council/south-lakeland,31/10/2018,Business Support Community Services,Internal Trading Accounts,,EK MOTOR FACTORS LTD,00838524,08-10-2018,0000080935,32.77,0,Parts,Parts,Transport-Repair & Maintenance,381400,Vehicle Mgt Maintenance
South Lakeland District Council,http://opendatacommunities.org/id/district-council/south-lakeland,31/10/2018,Business Support Community Services,Internal Trading Accounts,,EK MOTOR FACTORS LTD,00838524,08-10-2018,0000080936,-27.17,0,Parts,Parts,Transport-Repair & Maintenance,381400,Vehicle Mgt Maintenance
South Lakeland District Council,http://opendatacommunities.org/id/district-council/south-lakeland,31/10/2018,Business Support Community Services,Internal Trading Accounts,,EK MOTOR FACTORS LTD,00838524,08-10-2018,0000080937,23.13,0,Parts,Parts,Transport-Repair & Maintenance,381400,Vehicle Mgt Maintenance
South Lakeland District Council,http://opendatacommunities.org/id/district-council/south-lakeland,31/10/2018,Business Support Community Services,Internal Trading Accounts,,EK MOTOR FACTORS LTD,00838524,08-10-2018,0000080938,16.65,0,Parts,Parts,Transport-Repair & Maintenance,381400,Vehicle Mgt Maintenance
South Lakeland District Council,http://opendatacommunities.org/id/district-council/south-lakeland,31/10/2018,Business Support Community Services,Internal Trading Accounts,,DENNIS EAGLE LTD,03794455,08-10-2018,0000080939,75.27,0,Parts,Parts,Transport-Repair & Maintenance,381300,Vehicle Mgt Industrial
South Lakeland District Council,http://opendatacommunities.org/id/district-council/south-lakeland,31/10/2018,Business Support Community Services,Internal Trading Accounts,,AINSWORTH'S GARAGE,,08-10-2018,0000080940,39,0,Call outs,Call outs,Vehicle - Tyres,381400,Vehicle Mgt Maintenance
South Lakeland District Council,http://opendatacommunities.org/id/district-council/south-lakeland,31/10/2018,Business Support Community Services,Internal Trading Accounts,,QPS PLASTIC LTD,,08-10-2018,0000080941,249.75,0,Parts,Parts,Transport-Repair & Maintenance,109999,Building Not Elsewhere Classified
South Lakeland District Council,http://opendatacommunities.org/id/district-council/south-lakeland,31/10/2018,Development Strategy,Cultural Environmental Regulatory & Planning Services,http://opendatacommunities.org/def/concept/finance/sercop/objective/104,Programme Officer Solutions Ltd,,08-10-2018,0000080942,200,0,Programme Officer work for AONB and DM,Programme Officer work for AONB and DM,Other Consultants,261413,HR- Temporary Staff- Professional
South Lakeland District Council,http://opendatacommunities.org/id/district-council/south-lakeland,31/10/2018,Development Strategy,Cultural Environmental Regulatory & Planning Services,http://opendatacommunities.org/def/concept/finance/sercop/objective/104,Programme Officer Solutions Ltd,,08-10-2018,0000080943,175,0,Programme Officer work for AONB and DM,Programme Officer work for AONB and DM,Other Consultants,261413,HR- Temporary Staff- Professional
South Lakeland District Council,http://opendatacommunities.org/id/district-council/south-lakeland,31/10/2018,Development Strategy,Cultural Environmental Regulatory & Planning Services,http://opendatacommunities.org/def/concept/finance/sercop/objective/104,Programme Officer Solutions Ltd,,08-10-2018,0000080944,200,0,Programme Officer work for AONB and DM,Programme Officer work for AONB and DM,Other Consultants,261413,HR- Temporary Staff- Professional
South Lakeland District Council,http://opendatacommunities.org/id/district-council/south-lakeland,31/10/2018,Electoral Services,Central Services,http://opendatacommunities.org/def/concept/finance/sercop/objective/102,SCI PRINT LTD,,08-10-2018,0000080945,5314.2,0,"Household enquiry forms - printing,","Household enquiry forms - printing,",Annual Canvass,191600,Facilities Printing
South Lakeland District Council,http://opendatacommunities.org/id/district-council/south-lakeland,31/10/2018,Electoral Services,Central Services,http://opendatacommunities.org/def/concept/finance/sercop/objective/102,THOMSON REUTERS (PROFESSIONAL) UK LTD,01679046,08-10-2018,0000080946,223,0,Schofields Election Law Issue 42,Schofields Election Law Issue 42,Publications,202100,Financial Services Subscriptions
South Lakeland District Council,http://opendatacommunities.org/id/district-council/south-lakeland,31/10/2018,Electoral Services,Central Services,http://opendatacommunities.org/def/concept/finance/sercop/objective/102,SCI PRINT LTD,,08-10-2018,0000080947,364.71,0,"Non-HEF canvass printing - ITRs, weekly","Non-HEF canvass printing - ITRs, weekly",Individual Electoral Registrat,191600,Facilities Printing
South Lakeland District Council,http://opendatacommunities.org/id/district-council/south-lakeland,31/10/2018,Electoral Services,Central Services,http://opendatacommunities.org/def/concept/finance/sercop/objective/102,SCI PRINT LTD,,08-10-2018,0000080948,409.76,0,"Non-HEF canvass printing - ITRs, weekly","Non-HEF canvass printing - ITRs, weekly",Individual Electoral Registrat,191600,Facilities Printing
South Lakeland District Council,http://opendatacommunities.org/id/district-council/south-lakeland,31/10/2018,Electoral Services,Central Services,http://opendatacommunities.org/def/concept/finance/sercop/objective/102,SCI PRINT LTD,,08-10-2018,0000080949,245.8,0,"Non-HEF canvass printing - ITRs, weekly","Non-HEF canvass printing - ITRs, weekly",Individual Electoral Registrat,191600,Facilities Printing
South Lakeland District Council,http://opendatacommunities.org/id/district-council/south-lakeland,31/10/2018,Electoral Services,Central Services,http://opendatacommunities.org/def/concept/finance/sercop/objective/102,ROYAL MAIL GROUP PLC,,08-10-2018,0000080950,2454.55,0,Reponse plus service during canvass -,Reponse plus service during canvass -,Annual Canvass,301200,Mail Services� Postage
South Lakeland District Council,http://opendatacommunities.org/id/district-council/south-lakeland,31/10/2018,ICT Group,Central Services,http://opendatacommunities.org/def/concept/finance/sercop/objective/102,Insight Direct (Uk) Ltd,2579852,08-10-2018,0000080951,1215.2,0,"BenQ BL2405HT - LED monitor - 24""","BenQ BL2405HT - LED monitor - 24""",Computer-Supplies,271200,ICT Hardware
South Lakeland District Council,http://opendatacommunities.org/id/district-council/south-lakeland,31/10/2018,Development Strategy,Cultural Environmental Regulatory & Planning Services,http://opendatacommunities.org/def/concept/finance/sercop/objective/104,LANCASTER CITY COUNCIL,,08-10-2018,0000080952,425,0,50% contribution for SL,50% contribution for SL,Other Consultants,201900,Financial Services Refund
South Lakeland District Council,http://opendatacommunities.org/id/district-council/south-lakeland,31/10/2018,Leisure and Wellbeing,Cultural Environmental Regulatory & Planning Services,http://opendatacommunities.org/def/concept/finance/sercop/objective/104,Bergen Arbortech,,08-10-2018,0000080953,87.5,0,Removal of rowan adj 2 H,Removal of rowan adj 2 H,Arboricultural Work,241210,Horticultural Tree Trimming
South Lakeland District Council,http://opendatacommunities.org/id/district-council/south-lakeland,31/10/2018,Leisure and Wellbeing,Cultural Environmental Regulatory & Planning Services,http://opendatacommunities.org/def/concept/finance/sercop/objective/104,Bergen Arbortech,,08-10-2018,0000080954,3230,0,VW,VW,Arboricultural Work,241210,Horticultural Tree Trimming
South Lakeland District Council,http://opendatacommunities.org/id/district-council/south-lakeland,31/10/2018,Leisure and Wellbeing,Cultural Environmental Regulatory & Planning Services,http://opendatacommunities.org/def/concept/finance/sercop/objective/104,J S Cleaning Services,,08-10-2018,0000080955,60,0,For weekly cleaning of chapel,For weekly cleaning of chapel,Cleaning Supplies & Services,131010,Cleaning & Janitorial Cleaning Materials
South Lakeland District Council,http://opendatacommunities.org/id/district-council/south-lakeland,31/10/2018,Social Enterprise Admin,Cultural Environmental Regulatory & Planning Services,http://opendatacommunities.org/def/concept/finance/sercop/objective/104,AL,,08-10-2018,0000080956,500,0,To carve Sycamore stump in Nobles Rest,To carve Sycamore stump in Nobles Rest,Arboricultural Work,290000,Arts & Leisure Services
South Lakeland District Council,http://opendatacommunities.org/id/district-council/south-lakeland,31/10/2018,Community & Housing Group,Housing Services,http://opendatacommunities.org/def/concept/finance/sercop/objective/108,GROWING CONCERNS LTD,,08-10-2018,0000080957,1827.92,0,For Handy Person Service 2018/19,For Handy Person Service 2018/19,Handyperson,391200,Construction Engineering
South Lakeland District Council,http://opendatacommunities.org/id/district-council/south-lakeland,31/10/2018,Development Implementation,Central Services,http://opendatacommunities.org/def/concept/finance/sercop/objective/102,Southall Associates Limited,05751804,15-10-2018,0000080958,1155,0,"Annual Licence for access to Audit,","Annual Licence for access to Audit,",Health and Safety,202100,Financial Services Subscriptions
South Lakeland District Council,http://opendatacommunities.org/id/district-council/south-lakeland,31/10/2018,Business Support Community Services,Housing Services,http://opendatacommunities.org/def/concept/finance/sercop/objective/108,PHS GROUP PLC,,08-10-2018,0000080959,24.5,0,Duty of Care 01/10/2018 - 30/09/2019,Duty of Care 01/10/2018 - 30/09/2019,Cleaning Supplies & Services,131312,Cleaning & Janitorial Washroom Sanitat
South Lakeland District Council,http://opendatacommunities.org/id/district-council/south-lakeland,31/10/2018,Environment and Housing,Housing Services,http://opendatacommunities.org/def/concept/finance/sercop/objective/108,RB,,08-10-2018,0000080960,400,0,Monthly rent ,Monthly rent ,Homelessness Prevention,250000,Housing
South Lakeland District Council,http://opendatacommunities.org/id/district-council/south-lakeland,31/10/2018,Business Support Community Services,Housing Services,http://opendatacommunities.org/def/concept/finance/sercop/objective/108,POOLE TOWNSEND,07167494,08-10-2018,0000080961,1088,0,"Admin Fee, ","Admin Fee, ",Homelessness Prevention,280000,Legal Services
South Lakeland District Council,http://opendatacommunities.org/id/district-council/south-lakeland,31/10/2018,Lake Wardens,Cultural Environmental Regulatory & Planning Services,http://opendatacommunities.org/def/concept/finance/sercop/objective/104,ENVIROFIRST LTD,05999123,10-10-2018,0000080962,60.64,0,Rental & Emptying of Re-Cycling Bins at,Rental & Emptying of Re-Cycling Bins at,Skip and Bin Hire and Disposal,182012,Environment Waste Management Recycling
South Lakeland District Council,http://opendatacommunities.org/id/district-council/south-lakeland,31/10/2018,Business Support Community Services,Cultural Environmental Regulatory & Planning Services,http://opendatacommunities.org/def/concept/finance/sercop/objective/104,A G & P Jackson,,08-10-2018,0000080963,350,0,Agricultural Appraisal ,Agricultural Appraisal ,Other Consultants,150000,Consultancy
South Lakeland District Council,http://opendatacommunities.org/id/district-council/south-lakeland,31/10/2018,Business Support Community Services,Cultural Environmental Regulatory & Planning Services,http://opendatacommunities.org/def/concept/finance/sercop/objective/104,Macdonald & Company Freelance Ltd,03882135,08-10-2018,0000080964,2043,0,Supply of Contract Worker for Planning,Supply of Contract Worker for Planning,Contract & Agency staff,261400,HR Temporary & Agency Staff
South Lakeland District Council,http://opendatacommunities.org/id/district-council/south-lakeland,31/10/2018,Business Support Community Services,Culture and Related Serv,http://opendatacommunities.org/def/concept/finance/sercop/objective/104,GRANTS- MISCELLANEOUS,,08-10-2018,0000080965,2000,0,One-off LIPs grant for Sensory Garden,One-off LIPs grant for Sensory Garden,Grant Payments,201700,Financial Services Grants
South Lakeland District Council,http://opendatacommunities.org/id/district-council/south-lakeland,31/10/2018,Business Support Community Services,Cultural Environmental Regulatory & Planning Services,http://opendatacommunities.org/def/concept/finance/sercop/objective/104,Masterstaff Limited,02777593,08-10-2018,0000080966,3369.59,0,Agency staff,Agency staff,Contract & Agency staff,261300,HR Recruitment & Assessment
South Lakeland District Council,http://opendatacommunities.org/id/district-council/south-lakeland,31/10/2018,Business Support Community Services,Internal Trading Accounts,,M G D LTD,,08-10-2018,0000080967,35,0,MOTs 2018/19,MOTs 2018/19,MOT/Servicing Costs,381400,Vehicle Mgt Maintenance
South Lakeland District Council,http://opendatacommunities.org/id/district-council/south-lakeland,31/10/2018,Business Support Community Services,Internal Trading Accounts,,EK MOTOR FACTORS LTD,00838524,08-10-2018,0000080968,30.91,0,Parts,Parts,Transport-Repair & Maintenance,381400,Vehicle Mgt Maintenance
South Lakeland District Council,http://opendatacommunities.org/id/district-council/south-lakeland,31/10/2018,Cemeteries Office,Cultural Environmental Regulatory & Planning Services,http://opendatacommunities.org/def/concept/finance/sercop/objective/104,GLASDON UK LTD,02160576,15-10-2018,0000080969,450,0,1 off Glasdon black env. LOWTHER seat,1 off Glasdon black env. LOWTHER seat,Grounds Special,109999,Building Not Elsewhere Classified
South Lakeland District Council,http://opendatacommunities.org/id/district-council/south-lakeland,31/10/2018,Business Support Community Services,Internal Trading Accounts,,RIBBLESDALE AUTO ELECTRICS 1992 LTD,02732686,08-10-2018,0000080970,88.62,0,Parts,Parts,Transport-Repair & Maintenance,381500,Vehicle Mgt Parts
South Lakeland District Council,http://opendatacommunities.org/id/district-council/south-lakeland,31/10/2018,Business Support Community Services,Internal Trading Accounts,,K S INTERNATIONAL LTD,02703321,08-10-2018,0000080971,90,0,Parts,Parts,Transport-Repair & Maintenance,381500,Vehicle Mgt Parts
South Lakeland District Council,http://opendatacommunities.org/id/district-council/south-lakeland,31/10/2018,Business Support Community Services,Internal Trading Accounts,,K S INTERNATIONAL LTD,02703321,08-10-2018,0000080971,15,0,Parts,Parts,Transport-Uninsured Damage,381500,Vehicle Mgt Parts
South Lakeland District Council,http://opendatacommunities.org/id/district-council/south-lakeland,31/10/2018,Social Enterprise Admin,Cultural Environmental Regulatory & Planning Services,http://opendatacommunities.org/def/concept/finance/sercop/objective/104,NEWSQUEST MEDIA GROUP LTD,03102566,08-10-2018,0000080972,317.4,0,PUBLIC NOTICES FOR PLANNING 1 APRIL - 31,PUBLIC NOTICES FOR PLANNING 1 APRIL - 31,Advertising,191000,Facilities Advertising
South Lakeland District Council,http://opendatacommunities.org/id/district-council/south-lakeland,31/10/2018,Business Support Community Services,Cultural Environmental Regulatory & Planning Services,http://opendatacommunities.org/def/concept/finance/sercop/objective/104,ALLSTAR BUSINESS SOLUTIONS LTD (NCR),2631112,01-10-2018,0000080976,41.12,0,Fuel - Private Water Van - 17 September,Fuel - Private Water Van - 17 September,Fuel,381600,Vehicle Mgt Leasing
South Lakeland District Council,http://opendatacommunities.org/id/district-council/south-lakeland,31/10/2018,Business Support Community Services,Housing Services,http://opendatacommunities.org/def/concept/finance/sercop/objective/108,Blue Star Taxis (Kendal) Ltd,06464607,08-10-2018,0000080977,18.15,0,Taxi from Travelodge to Kendal (Return),Taxi from Travelodge to Kendal (Return),Homelessness Prevention,361600,Public Transport Taxi Services Home to S
South Lakeland District Council,http://opendatacommunities.org/id/district-council/south-lakeland,31/10/2018,Revenues and Benefits,Central Services,http://opendatacommunities.org/def/concept/finance/sercop/objective/102,MERITEC LTD,03224622,08-10-2018,0000080978,7920,0,Remote Benefits Processing  360 hrs @,Remote Benefits Processing  360 hrs @,Contract & Agency staff,391200,Construction Engineering
South Lakeland District Council,http://opendatacommunities.org/id/district-council/south-lakeland,31/10/2018,Revenues and Benefits,Central Services,http://opendatacommunities.org/def/concept/finance/sercop/objective/102,ALLPAY.NET LTD (NCR),6871069,01-10-2018,0000080979,331.13,0,2018 - 19 Allpay - Internet Payment /,2018 - 19 Allpay - Internet Payment /,Commission,209999,Financial Services Not Elsewhere Classif
South Lakeland District Council,http://opendatacommunities.org/id/district-council/south-lakeland,31/10/2018,Revenues and Benefits,Central Services,http://opendatacommunities.org/def/concept/finance/sercop/objective/102,ALLPAY.NET LTD (NCR),6871069,01-10-2018,0000080980,14.31,0,2018 - 19 Allpay - Internet Payment /,2018 - 19 Allpay - Internet Payment /,Commission,209999,Financial Services Not Elsewhere Classif
South Lakeland District Council,http://opendatacommunities.org/id/district-council/south-lakeland,31/10/2018,Revenues and Benefits,Central Services,http://opendatacommunities.org/def/concept/finance/sercop/objective/102,ALLPAY.NET LTD (NCR),6871069,01-10-2018,0000080981,929.79,0,2018 - 19 Allpay - Internet Payment /,2018 - 19 Allpay - Internet Payment /,Commission,209999,Financial Services Not Elsewhere Classif
South Lakeland District Council,http://opendatacommunities.org/id/district-council/south-lakeland,31/10/2018,Revenues and Benefits,Central Services,http://opendatacommunities.org/def/concept/finance/sercop/objective/102,ALLPAY.NET LTD (NCR),6871069,01-10-2018,0000080982,20.65,0,2018 - 19 Allpay - Internet Payment /,2018 - 19 Allpay - Internet Payment /,Commission,209999,Financial Services Not Elsewhere Classif
South Lakeland District Council,http://opendatacommunities.org/id/district-council/south-lakeland,31/10/2018,Revenues and Benefits,Central Services,http://opendatacommunities.org/def/concept/finance/sercop/objective/102,ALLPAY.NET LTD (NCR),6871069,01-10-2018,0000080983,14.78,0,2018 - 19 Allpay - Internet Payment /,2018 - 19 Allpay - Internet Payment /,Commission,209999,Financial Services Not Elsewhere Classif
South Lakeland District Council,http://opendatacommunities.org/id/district-council/south-lakeland,31/10/2018,Revenues and Benefits,Central Services,http://opendatacommunities.org/def/concept/finance/sercop/objective/102,ALLPAY.NET LTD (NCR),6871069,01-10-2018,0000080984,12.3,0,2018 - 19 Allpay - Internet Payment /,2018 - 19 Allpay - Internet Payment /,Commission,209999,Financial Services Not Elsewhere Classif
South Lakeland District Council,http://opendatacommunities.org/id/district-council/south-lakeland,31/10/2018,Revenues and Benefits,Central Services,http://opendatacommunities.org/def/concept/finance/sercop/objective/102,ALLPAY.NET LTD (NCR),6871069,01-10-2018,0000080985,10.86,0,2018 - 19 Allpay - Internet Payment /,2018 - 19 Allpay - Internet Payment /,Commission,209999,Financial Services Not Elsewhere Classif
South Lakeland District Council,http://opendatacommunities.org/id/district-council/south-lakeland,31/10/2018,Revenues and Benefits,Central Services,http://opendatacommunities.org/def/concept/finance/sercop/objective/102,ALLPAY.NET LTD (NCR),6871069,01-10-2018,0000080986,16.75,0,2018 - 19 Allpay - Internet Payment /,2018 - 19 Allpay - Internet Payment /,Commission,209999,Financial Services Not Elsewhere Classif
South Lakeland District Council,http://opendatacommunities.org/id/district-council/south-lakeland,31/10/2018,Leisure and Wellbeing,Cultural Environmental Regulatory & Planning Services,http://opendatacommunities.org/def/concept/finance/sercop/objective/104,SOUTH LAKES TREE SURGEONS & LANDSCAPES,05342745,17-10-2018,0000080987,680,0,Pruning beech trees at Grange Prom play,Pruning beech trees at Grange Prom play,Arboricultural Work,241210,Horticultural Tree Trimming
South Lakeland District Council,http://opendatacommunities.org/id/district-council/south-lakeland,31/10/2018,Development Implementation,External Trading Accounts,,Bowness & Windermere Community,,15-10-2018,0000080988,5749.22,0,Share of Water Used at Braithwaite Fold,Share of Water Used at Braithwaite Fold,Water & Sewerage Charg,311600,Healthcare Services
South Lakeland District Council,http://opendatacommunities.org/id/district-council/south-lakeland,31/10/2018,Business Support Community Services,Housing Services,http://opendatacommunities.org/def/concept/finance/sercop/objective/108,Ashberry Recruitment,07202591,08-10-2018,0000080990,1003.46,0,Agency staff at Town View Fields,Agency staff at Town View Fields,Contract & Agency staff,261300,HR Recruitment & Assessment
South Lakeland District Council,http://opendatacommunities.org/id/district-council/south-lakeland,31/10/2018,Environment and Housing,Housing Services,http://opendatacommunities.org/def/concept/finance/sercop/objective/108,JLA LTD,01094178,15-10-2018,0000080991,70,0,Machine fault for refrigerator at TVF,Machine fault for refrigerator at TVF,Equipment-Service Contracts,131100,Cleaning & Janitorial Laundry Equipment
South Lakeland District Council,http://opendatacommunities.org/id/district-council/south-lakeland,31/10/2018,Environment and Housing,Housing Services,http://opendatacommunities.org/def/concept/finance/sercop/objective/108,JLA LTD,01094178,15-10-2018,0000080992,128,0,Machine fault for washing machine at TVF,Machine fault for washing machine at TVF,Equipment-Service Contracts,131100,Cleaning & Janitorial Laundry Equipment
South Lakeland District Council,http://opendatacommunities.org/id/district-council/south-lakeland,31/10/2018,Democratic and Member Services,Central Services,http://opendatacommunities.org/def/concept/finance/sercop/objective/102,CUMBRIA COUNTY COUNCIL,,08-10-2018,0000080993,39.75,0,3 register copies and one map,3 register copies and one map,Land Search Fees,908000,Public Bodies Council support services
South Lakeland District Council,http://opendatacommunities.org/id/district-council/south-lakeland,31/10/2018,Democratic and Member Services,Central Services,http://opendatacommunities.org/def/concept/finance/sercop/objective/102,Thomas Fattorini Ltd,153351,15-10-2018,0000080994,252.45,0,replacement case for Vice Chairman's,replacement case for Vice Chairman's,Equipment Furniture Materials,290000,Arts & Leisure Services
South Lakeland District Council,http://opendatacommunities.org/id/district-council/south-lakeland,31/10/2018,Financial Services,Non-Service Payments,,COMPUTERSHARE VOUCHER SERVICES LTD,04968447,08-10-2018,0000080995,1205.93,0,child care vouchers,child care vouchers,General,202100,Financial Services Subscriptions
South Lakeland District Council,http://opendatacommunities.org/id/district-council/south-lakeland,31/10/2018,Financial Services,Central Services,http://opendatacommunities.org/def/concept/finance/sercop/objective/102,BUSY BEES BENEFITS LTD,06758298,08-10-2018,0000080996,45.26,0,CHILD CARE VOUCHER SERVICE CHARGE,CHILD CARE VOUCHER SERVICE CHARGE,Voluntary Deduction Fees,202100,Financial Services Subscriptions
South Lakeland District Council,http://opendatacommunities.org/id/district-council/south-lakeland,31/10/2018,Financial Services,Non-Service Payments,,BUSY BEES BENEFITS LTD,06758298,08-10-2018,0000080997,1293,0,child care vouchers,child care vouchers,General,202100,Financial Services Subscriptions
South Lakeland District Council,http://opendatacommunities.org/id/district-council/south-lakeland,31/10/2018,Policy & Partnerships,Central Services,http://opendatacommunities.org/def/concept/finance/sercop/objective/102,Skillset Limited,,15-10-2018,0000080998,3000,0,GDPR ELearning Module,GDPR ELearning Module,Software Maintenance,261520,Human Resources Training
South Lakeland District Council,http://opendatacommunities.org/id/district-council/south-lakeland,31/10/2018,Lake Wardens,Cultural Environmental Regulatory & Planning Services,http://opendatacommunities.org/def/concept/finance/sercop/objective/104,SMS (SALCOMBE) LTD,04558962,15-10-2018,0000080999,128.7,0,2 x 21 foot Control Cables as per your,2 x 21 foot Control Cables as per your,Transport-Repair & Maintenance,381500,Vehicle Mgt Parts
South Lakeland District Council,http://opendatacommunities.org/id/district-council/south-lakeland,31/10/2018,Development Implementation,Cultural Environmental Regulatory & Planning Services,http://opendatacommunities.org/def/concept/finance/sercop/objective/104,PS BUSINESS MATTERS,08147185,10-10-2018,0000081000,700,0,Marketing Support Project - Mintworks,Marketing Support Project - Mintworks,Publicity Marketing,151900,Consultancy Management
South Lakeland District Council,http://opendatacommunities.org/id/district-council/south-lakeland,31/10/2018,Development Implementation,SLDC as Agent,,PS BUSINESS MATTERS,08147185,10-10-2018,0000081001,2000,0,Kendal Futures Programme - Project,Kendal Futures Programme - Project,General,151900,Consultancy Management
South Lakeland District Council,http://opendatacommunities.org/id/district-council/south-lakeland,31/10/2018,Business Support Community Services,Internal Trading Accounts,,EK MOTOR FACTORS LTD,00838524,10-10-2018,0000081002,18.1,0,Parts,Parts,Transport-Repair & Maintenance,381400,Vehicle Mgt Maintenance
South Lakeland District Council,http://opendatacommunities.org/id/district-council/south-lakeland,31/10/2018,Business Support Community Services,Internal Trading Accounts,,DENNIS EAGLE LTD,03794455,10-10-2018,0000081003,825.13,0,Parts,Parts,Transport-Repair & Maintenance,381300,Vehicle Mgt Industrial
South Lakeland District Council,http://opendatacommunities.org/id/district-council/south-lakeland,31/10/2018,Business Support Community Services,Internal Trading Accounts,,DENNIS EAGLE LTD,03794455,10-10-2018,0000081004,35,0,Parts,Parts,Transport-Repair & Maintenance,381300,Vehicle Mgt Industrial
South Lakeland District Council,http://opendatacommunities.org/id/district-council/south-lakeland,31/10/2018,Business Support Community Services,Internal Trading Accounts,,HYDRAIR TRUCK & TRAILER PARTS LTD,,10-10-2018,0000081005,199.32,0,Parts,Parts,Transport-Repair & Maintenance,381500,Vehicle Mgt Parts
South Lakeland District Council,http://opendatacommunities.org/id/district-council/south-lakeland,31/10/2018,Business Support Community Services,Internal Trading Accounts,,EK MOTOR FACTORS LTD,00838524,10-10-2018,0000081006,76.34,0,Parts,Parts,Transport-Repair & Maintenance,381400,Vehicle Mgt Maintenance
South Lakeland District Council,http://opendatacommunities.org/id/district-council/south-lakeland,31/10/2018,Business Support Community Services,Internal Trading Accounts,,EK MOTOR FACTORS LTD,00838524,10-10-2018,0000081007,24,0,Parts,Parts,Transport-Repair & Maintenance,381400,Vehicle Mgt Maintenance
South Lakeland District Council,http://opendatacommunities.org/id/district-council/south-lakeland,31/10/2018,Business Support Community Services,Internal Trading Accounts,,DENNIS EAGLE LTD,03794455,10-10-2018,0000081008,404.22,0,Parts,Parts,Transport-Repair & Maintenance,381300,Vehicle Mgt Industrial
South Lakeland District Council,http://opendatacommunities.org/id/district-council/south-lakeland,31/10/2018,Business Support Community Services,Cultural Environmental Regulatory & Planning Services,http://opendatacommunities.org/def/concept/finance/sercop/objective/104,ARCO LIMITED,00133804,10-10-2018,0000081009,68.12,0,Cleaning materials,Cleaning materials,Protective Clothing & Uniforms,141100,Clothing Protective
South Lakeland District Council,http://opendatacommunities.org/id/district-council/south-lakeland,31/10/2018,Business Support Community Services,Cultural Environmental Regulatory & Planning Services,http://opendatacommunities.org/def/concept/finance/sercop/objective/104,LANCASTER TRAINING SERVICES LTD,01447612,10-10-2018,0000081010,310,0,Training 2018/19 (GWK),Training 2018/19 (GWK),Training Costs,261500,HR Training & Conferences
South Lakeland District Council,http://opendatacommunities.org/id/district-council/south-lakeland,31/10/2018,Business Support Community Services,Internal Trading Accounts,,HAKO MACHINES LIMITED,01414225,10-10-2018,0000081011,292.24,0,Repair ,Repair ,Transport-Repair & Maintenance,131000,Cleaning & Janitorial Cleaning Materials
South Lakeland District Council,http://opendatacommunities.org/id/district-council/south-lakeland,31/10/2018,Business Support Community Services,Internal Trading Accounts,,A & W COMMERCIALS LTD,02630625,10-10-2018,0000081012,300,0,Hoses,Hoses,Transport-Repair & Maintenance,381400,Vehicle Mgt Maintenance
South Lakeland District Council,http://opendatacommunities.org/id/district-council/south-lakeland,31/10/2018,Business Support Community Services,Internal Trading Accounts,,THOMAS GRAHAM & SONS LTD,00656879,10-10-2018,0000081013,29.57,0,Nuts and bolts,Nuts and bolts,Job Consumables,101400,Building General Materials
South Lakeland District Council,http://opendatacommunities.org/id/district-council/south-lakeland,31/10/2018,Business Support Community Services,Internal Trading Accounts,,THOMAS GRAHAM & SONS LTD,00656879,10-10-2018,0000081014,2.13,0,Nuts and bolts,Nuts and bolts,Job Consumables,101400,Building General Materials
South Lakeland District Council,http://opendatacommunities.org/id/district-council/south-lakeland,31/10/2018,Business Support Community Services,Cultural Environmental Regulatory & Planning Services,http://opendatacommunities.org/def/concept/finance/sercop/objective/104,AAM SERVICES LTD,3176122,10-10-2018,0000081015,615,0,Removal of fly tipped asbestos atA590,Removal of fly tipped asbestos atA590,Hired Services,381500,Vehicle Mgt Parts
South Lakeland District Council,http://opendatacommunities.org/id/district-council/south-lakeland,31/10/2018,Business Support Community Services,Internal Trading Accounts,,AUTOMOTIVE GLAZING SOLUTIONS,05922870,10-10-2018,0000081016,330,0,Replace windscreen,Replace windscreen,Transport-Repair & Maintenance,381400,Vehicle Mgt Maintenance
South Lakeland District Council,http://opendatacommunities.org/id/district-council/south-lakeland,31/10/2018,Business Support Community Services,Housing Services,http://opendatacommunities.org/def/concept/finance/sercop/objective/108,POOLE TOWNSEND,07167494,10-10-2018,0000081017,575,0,Rent in advance,Rent in advance,Homelessness Prevention,280000,Legal Services
South Lakeland District Council,http://opendatacommunities.org/id/district-council/south-lakeland,31/10/2018,Environment and Housing,Housing Services,http://opendatacommunities.org/def/concept/finance/sercop/objective/108,MN,,10-10-2018,0000081018,600,0,Monthly rent ,Monthly rent ,Homelessness Prevention,250000,Housing
South Lakeland District Council,http://opendatacommunities.org/id/district-council/south-lakeland,31/10/2018,Environment and Housing,Housing Services,http://opendatacommunities.org/def/concept/finance/sercop/objective/108,DR JC,,10-10-2018,0000081019,520,0,Monthly rent ,Monthly rent ,Homelessness Prevention,202000,Financial Services Rents
South Lakeland District Council,http://opendatacommunities.org/id/district-council/south-lakeland,31/10/2018,Financial Services,Internal Trading Accounts,,ZURICH MUNICIPAL,,15-10-2018,0000081020,250,0,I9209/1948 zm 08182179714,I9209/1948 zm 08182179714,Vehicle Insured Damage,201800,Financial Services Insurance
South Lakeland District Council,http://opendatacommunities.org/id/district-council/south-lakeland,31/10/2018,Business Support Community Services,Internal Trading Accounts,,RIBBLESDALE AUTO ELECTRICS 1992 LTD,02732686,10-10-2018,0000081022,102,0,Parts,Parts,Transport-Repair & Maintenance,381500,Vehicle Mgt Parts
South Lakeland District Council,http://opendatacommunities.org/id/district-council/south-lakeland,31/10/2018,Revenues and Benefits,Central Services,http://opendatacommunities.org/def/concept/finance/sercop/objective/102,CAPITA BUSINESS SERVICES LTD,02299747,10-10-2018,0000081023,1900,0,Consultancy - 2 Days (Quotation,Consultancy - 2 Days (Quotation,Training Costs,261500,HR Training & Conferences
South Lakeland District Council,http://opendatacommunities.org/id/district-council/south-lakeland,31/10/2018,Environment and Housing,Housing Services,http://opendatacommunities.org/def/concept/finance/sercop/objective/108,Locks Express Limited,,10-10-2018,0000081024,193.2,0,Lock repair ,Lock repair ,Homelessness Prevention,192212,Facilities Security Equipment
South Lakeland District Council,http://opendatacommunities.org/id/district-council/south-lakeland,31/10/2018,Revenues and Benefits,SLDC as Agent,,ROYAL MAIL GROUP PLC,,10-10-2018,0000081025,1856.83,0,2018-19 Postal Charges a/c 0198123013,2018-19 Postal Charges a/c 0198123013,General,301200,Mail Services� Postage
South Lakeland District Council,http://opendatacommunities.org/id/district-council/south-lakeland,31/10/2018,Environment and Housing,Housing Services,http://opendatacommunities.org/def/concept/finance/sercop/objective/108,ULTRACARE PROPERTY MANAGEMENT LTD,05020554,10-10-2018,0000081026,80,0,Garage door repair ,Garage door repair ,Homelessness Prevention,191700,Facilities Property Management
South Lakeland District Council,http://opendatacommunities.org/id/district-council/south-lakeland,31/10/2018,Revenues and Benefits,Central Services,http://opendatacommunities.org/def/concept/finance/sercop/objective/102,ROYAL MAIL GROUP PLC,,10-10-2018,0000081027,174.7,0,2018-19 Postal Charges a/c 0055114000,2018-19 Postal Charges a/c 0055114000,Postages,301200,Mail Services� Postage
South Lakeland District Council,http://opendatacommunities.org/id/district-council/south-lakeland,31/10/2018,Development Management,Cultural Environmental Regulatory & Planning Services,http://opendatacommunities.org/def/concept/finance/sercop/objective/104,Oakmere Homes,04819284,10-10-2018,0000081028,1437.76,0,50% of Document Printing Costs,50% of Document Printing Costs,Other Consultants,390000,Construction
South Lakeland District Council,http://opendatacommunities.org/id/district-council/south-lakeland,31/10/2018,Electoral Services,Central Services,http://opendatacommunities.org/def/concept/finance/sercop/objective/102,Idox Software Ltd,2933889,24-10-2018,0000081029,1602.42,0,Tellus data mining license - annual,Tellus data mining license - annual,Annual Canvass,271600,ICT Software Customised & Bespoke
South Lakeland District Council,http://opendatacommunities.org/id/district-council/south-lakeland,31/10/2018,Financial Services,Central Services,http://opendatacommunities.org/def/concept/finance/sercop/objective/102,CAPITA BUSINESS SERVICES LTD,02299747,10-10-2018,0000081030,200,0,Totals and Reconciliations Webinar,Totals and Reconciliations Webinar,Training Costs,261500,HR Training & Conferences
South Lakeland District Council,http://opendatacommunities.org/id/district-council/south-lakeland,31/10/2018,Social Enterprise Admin,Highways & Transport Services,http://opendatacommunities.org/def/concept/finance/sercop/objective/107,ADECCO UK LIMITED,00593232,24-10-2018,0000081031,455.4,0,Agency Cover Car Park Assistants,Agency Cover Car Park Assistants,Contract & Agency staff,261400,HR Temporary & Agency Staff
South Lakeland District Council,http://opendatacommunities.org/id/district-council/south-lakeland,31/10/2018,Business Support Community Services,Central Services,http://opendatacommunities.org/def/concept/finance/sercop/objective/102,ADECCO UK LIMITED,00593232,10-10-2018,0000081032,387.81,0,PAI Technician from 20/11/2017,PAI Technician from 20/11/2017,Contract & Agency staff,261400,HR Temporary & Agency Staff
South Lakeland District Council,http://opendatacommunities.org/id/district-council/south-lakeland,31/10/2018,Development Implementation,Cultural Environmental Regulatory & Planning Services,http://opendatacommunities.org/def/concept/finance/sercop/objective/104,ADECCO UK LIMITED,00593232,10-10-2018,0000081035,554.17,0,Economic Development Programme Support,Economic Development Programme Support,Other Consultants,261400,HR Temporary & Agency Staff
South Lakeland District Council,http://opendatacommunities.org/id/district-council/south-lakeland,31/10/2018,Development Implementation,Central Services,http://opendatacommunities.org/def/concept/finance/sercop/objective/102,ADECCO UK LIMITED,00593232,10-10-2018,0000081036,280.8,0,Cleaner for SLDC - M P - April,Cleaner for SLDC - M P - April,Contract & Agency staff,261400,HR Temporary & Agency Staff
South Lakeland District Council,http://opendatacommunities.org/id/district-council/south-lakeland,31/10/2018,Social Enterprise Admin,Highways & Transport Services,http://opendatacommunities.org/def/concept/finance/sercop/objective/107,ADECCO UK LIMITED,00593232,29-10-2018,0000081038,414,0,Agency Cover Car Park Assistants,Agency Cover Car Park Assistants,Contract & Agency staff,261400,HR Temporary & Agency Staff
South Lakeland District Council,http://opendatacommunities.org/id/district-council/south-lakeland,31/10/2018,Business Support Community Services,Housing Services,http://opendatacommunities.org/def/concept/finance/sercop/objective/108,BUNZL CLEANING & HYGIENE SUPPLIES,2902454,10-10-2018,0000081040,6.2,0,034209 Premiere Ovenclean Cold Oven,034209 Premiere Ovenclean Cold Oven,Cleaning Supplies & Services,131011,Cleaning & Janitorial Cleaning Materials
South Lakeland District Council,http://opendatacommunities.org/id/district-council/south-lakeland,31/10/2018,ICT Group,Central Services,http://opendatacommunities.org/def/concept/finance/sercop/objective/102,DAISY COMMUNICATIONS LTD,04145329,24-10-2018,0000081041,364.37,0,Daisy Line Rentals,Daisy Line Rentals,Telephones-Rentals,271700,ICT Telecommunications Fixed
South Lakeland District Council,http://opendatacommunities.org/id/district-council/south-lakeland,31/10/2018,ICT Group,Central Services,http://opendatacommunities.org/def/concept/finance/sercop/objective/102,DAISY COMMUNICATIONS LTD,04145329,24-10-2018,0000081041,79.64,0,Daisy Line Rentals,Daisy Line Rentals,Telephones-Calls,271700,ICT Telecommunications Fixed
South Lakeland District Council,http://opendatacommunities.org/id/district-council/south-lakeland,31/10/2018,Financial Services,Central Services,http://opendatacommunities.org/def/concept/finance/sercop/objective/102,CUMBRIA LGPS,,10-10-2018,0000081042,72735.94,0,18/19 CCC Contribution re past pensions,18/19 CCC Contribution re past pensions,Pensions Increase Act,908999,Public Bodies Not Elsewhere Classified
South Lakeland District Council,http://opendatacommunities.org/id/district-council/south-lakeland,31/10/2018,Social Enterprise Admin,Cultural Environmental Regulatory & Planning Services,http://opendatacommunities.org/def/concept/finance/sercop/objective/104,NEWSQUEST MEDIA GROUP LTD,03102566,10-10-2018,0000081044,126.96,0,PUBLIC NOTICES FOR PLANNING 1 APRIL - 31,PUBLIC NOTICES FOR PLANNING 1 APRIL - 31,Advertising,191000,Facilities Advertising
South Lakeland District Council,http://opendatacommunities.org/id/district-council/south-lakeland,31/10/2018,Development Implementation,Cultural Environmental Regulatory & Planning Services,http://opendatacommunities.org/def/concept/finance/sercop/objective/104,CUMBRIAN NEWSPAPERS LIMITED,00002729,10-10-2018,0000081045,300,0,12 Months Advertising in InCumbria,12 Months Advertising in InCumbria,Publicity Marketing,191000,Facilities Advertising
South Lakeland District Council,http://opendatacommunities.org/id/district-council/south-lakeland,31/10/2018,Leisure and Wellbeing,Cultural Environmental Regulatory & Planning Services,http://opendatacommunities.org/def/concept/finance/sercop/objective/104,PPL PRS Ltd,,10-10-2018,0000081046,2242.04,0,Parks performing rights license fee for,Parks performing rights license fee for,Performing Rights,291300,Arts & Leisure Services Performing Arts
South Lakeland District Council,http://opendatacommunities.org/id/district-council/south-lakeland,31/10/2018,Business Support Community Services,Internal Trading Accounts,,ALLSTAR BUSINESS SOLUTIONS LTD (NCR),2631112,01-10-2018,0000081048,4430.34,0,Fuel to 30/09/18,Fuel to 30/09/18,Fuel,381600,Vehicle Mgt Leasing
South Lakeland District Council,http://opendatacommunities.org/id/district-council/south-lakeland,31/10/2018,Business Support Community Services,Cultural Environmental Regulatory & Planning Services,http://opendatacommunities.org/def/concept/finance/sercop/objective/104,ALLSTAR BUSINESS SOLUTIONS LTD (NCR),2631112,01-10-2018,0000081048,16705.3,0,Fuel to 30/09/18,Fuel to 30/09/18,Fuel,381600,Vehicle Mgt Leasing
South Lakeland District Council,http://opendatacommunities.org/id/district-council/south-lakeland,31/10/2018,Business Support Community Services,Internal Trading Accounts,,M G D LTD,,10-10-2018,0000081049,35,0,MOTs 2018/19,MOTs 2018/19,MOT/Servicing Costs,381400,Vehicle Mgt Maintenance
South Lakeland District Council,http://opendatacommunities.org/id/district-council/south-lakeland,31/10/2018,Business Support Community Services,Internal Trading Accounts,,VOLVO GROUP UK LTD,02190944,10-10-2018,0000081050,306.98,0,Parts,Parts,Transport-Repair & Maintenance,381000,Vehicle Mgt Commercial
South Lakeland District Council,http://opendatacommunities.org/id/district-council/south-lakeland,31/10/2018,Business Support Community Services,Transport Planning Policy,http://opendatacommunities.org/def/concept/finance/sercop/objective/107,ARCO LIMITED,00133804,10-10-2018,0000081051,43.45,0,Cleaning materials,Cleaning materials,Cleaning Supplies & Services,141100,Clothing Protective
South Lakeland District Council,http://opendatacommunities.org/id/district-council/south-lakeland,31/10/2018,Business Support Community Services,Internal Trading Accounts,,HAKO MACHINES LIMITED,01414225,10-10-2018,0000081052,587.5,0,6 x compact sweepers,6 x compact sweepers,Transport-Repair & Maintenance,131000,Cleaning & Janitorial Cleaning Materials
South Lakeland District Council,http://opendatacommunities.org/id/district-council/south-lakeland,31/10/2018,Business Support Community Services,Internal Trading Accounts,,FAUN ZOELLER (UK) LTD,00751804,10-10-2018,0000081053,50.35,0,Valve,Valve,Transport-Repair & Maintenance,381400,Vehicle Mgt Maintenance
South Lakeland District Council,http://opendatacommunities.org/id/district-council/south-lakeland,31/10/2018,Business Support Community Services,Internal Trading Accounts,,Romaquip UK,,10-10-2018,0000081054,609,0,Repair SL064 n,Repair SL064 n,Transport-Repair & Maintenance,381000,Vehicle Mgt Commercial
South Lakeland District Council,http://opendatacommunities.org/id/district-council/south-lakeland,31/10/2018,Business Support Community Services,Housing Services,http://opendatacommunities.org/def/concept/finance/sercop/objective/108,W.G R,,15-10-2018,0000081055,500,0,"Rent in advance ,","Rent in advance ,",Homelessness Prevention,250010,Housing Letting Agents
South Lakeland District Council,http://opendatacommunities.org/id/district-council/south-lakeland,31/10/2018,Environment and Housing,Housing Services,http://opendatacommunities.org/def/concept/finance/sercop/objective/108,My Dream Cleaners Ltd,09839482,15-10-2018,0000081056,218.75,0,Cleaning at TVF Hostel,Cleaning at TVF Hostel,Cleaning Supplies & Services,131320,Cleaning & Janitorial Cleaning Service
South Lakeland District Council,http://opendatacommunities.org/id/district-council/south-lakeland,31/10/2018,Business Support Community Services,Internal Trading Accounts,,S J Bargh,00532272,15-10-2018,0000081073,91,0,MOTs 2018/19 & vehicle cleaning,MOTs 2018/19 & vehicle cleaning,MOT/Servicing Costs,381400,Vehicle Mgt Maintenance
South Lakeland District Council,http://opendatacommunities.org/id/district-council/south-lakeland,31/10/2018,Business Support Community Services,Cultural Environmental Regulatory & Planning Services,http://opendatacommunities.org/def/concept/finance/sercop/objective/104,BRIAN ARMISTEAD LTD T/A SINKFALL RECYCLI,04133280,15-10-2018,0000081074,1334.72,0,Green waste tipping - 2018/19,Green waste tipping - 2018/19,Tipping & Disposal Charges,391110,Construction Buildings Construction
South Lakeland District Council,http://opendatacommunities.org/id/district-council/south-lakeland,31/10/2018,Business Support Community Services,Cultural Environmental Regulatory & Planning Services,http://opendatacommunities.org/def/concept/finance/sercop/objective/104,BRIAN ARMISTEAD LTD T/A SINKFALL RECYCLI,04133280,15-10-2018,0000081075,2293.62,0,Green waste tipping - 2018/19,Green waste tipping - 2018/19,Tipping & Disposal Charges,391110,Construction Buildings Construction
South Lakeland District Council,http://opendatacommunities.org/id/district-council/south-lakeland,31/10/2018,Business Support Community Services,Internal Trading Accounts,,COMPASS COMPONENTS,,15-10-2018,0000081076,191.63,0,Consumables 2018/19,Consumables 2018/19,Job Consumables,101400,Building General Materials
South Lakeland District Council,http://opendatacommunities.org/id/district-council/south-lakeland,31/10/2018,Business Support Community Services,Internal Trading Accounts,,C T HAYTON LTD,01212766,15-10-2018,0000081077,31.35,0,Parts,Parts,Transport-Repair & Maintenance,391200,Construction Engineering
South Lakeland District Council,http://opendatacommunities.org/id/district-council/south-lakeland,31/10/2018,Business Support Community Services,Internal Trading Accounts,,EK MOTOR FACTORS LTD,00838524,15-10-2018,0000081078,9.39,0,Parts,Parts,Transport-Repair & Maintenance,381400,Vehicle Mgt Maintenance
South Lakeland District Council,http://opendatacommunities.org/id/district-council/south-lakeland,31/10/2018,Business Support Community Services,Internal Trading Accounts,,Harry Park Tyres Ltd,08131208,15-10-2018,0000081079,67.5,0,Tyres,Tyres,Vehicle - Tyres,381500,Vehicle Mgt Parts
South Lakeland District Council,http://opendatacommunities.org/id/district-council/south-lakeland,31/10/2018,Lake Wardens,Cultural Environmental Regulatory & Planning Services,http://opendatacommunities.org/def/concept/finance/sercop/objective/104,Medical Gas Solutions Ltd T/a,04967365,17-10-2018,0000081084,37.95,0,Monthly Rental of medical gas cylinders,Monthly Rental of medical gas cylinders,Equipment Furniture Materials,221100,Health & Safety� Maintenance
South Lakeland District Council,http://opendatacommunities.org/id/district-council/south-lakeland,31/10/2018,Business Support Community Services,Cultural Environmental Regulatory & Planning Services,http://opendatacommunities.org/def/concept/finance/sercop/objective/104,EPC-UK,00084170,15-10-2018,0000081089,475,0,Calibration for Seismograph,Calibration for Seismograph,Equipment-Service Contracts,180000,Environmental Services
South Lakeland District Council,http://opendatacommunities.org/id/district-council/south-lakeland,31/10/2018,Revenues and Benefits,Central Services,http://opendatacommunities.org/def/concept/finance/sercop/objective/102,MORGAN HUNT UK LIMITED,04349535,17-10-2018,0000081090,953.18,0,T H 12 weeks,T H 12 weeks,Contract & Agency staff,269999,HR Not Elsewhere Classified
South Lakeland District Council,http://opendatacommunities.org/id/district-council/south-lakeland,31/10/2018,Environment and Housing,Housing Services,http://opendatacommunities.org/def/concept/finance/sercop/objective/108,James Andrews Recruitment Solutions,06834852,15-10-2018,0000081091,868.93,0,Payment for J H,Payment for J H,Contract & Agency staff,261400,HR Temporary & Agency Staff
South Lakeland District Council,http://opendatacommunities.org/id/district-council/south-lakeland,31/10/2018,Social Enterprise Admin,Highways & Transport Services,http://opendatacommunities.org/def/concept/finance/sercop/objective/107,ALLSTAR BUSINESS SOLUTIONS LTD (NCR),2631112,01-10-2018,0000081093,115.3,0,Fuel for CEO vans up to 31 March 2019,Fuel for CEO vans up to 31 March 2019,Fuel,381600,Vehicle Mgt Leasing
South Lakeland District Council,http://opendatacommunities.org/id/district-council/south-lakeland,31/10/2018,Social Enterprise Admin,Highways & Transport Services,http://opendatacommunities.org/def/concept/finance/sercop/objective/107,ALLSTAR BUSINESS SOLUTIONS LTD (NCR),2631112,01-10-2018,0000081093,166.39,0,Fuel for CEO vans up to 31 March 2019,Fuel for CEO vans up to 31 March 2019,Fuel,381600,Vehicle Mgt Leasing
South Lakeland District Council,http://opendatacommunities.org/id/district-council/south-lakeland,31/10/2018,Development Implementation,SLDC as Agent,,Lakes Story Ltd,02343429,15-10-2018,0000081094,94.79,0,Delivering of 200 bags for Japan Forum,Delivering of 200 bags for Japan Forum,General,340000,Stationery
South Lakeland District Council,http://opendatacommunities.org/id/district-council/south-lakeland,31/10/2018,Development Implementation,Cultural Environmental Regulatory & Planning Services,http://opendatacommunities.org/def/concept/finance/sercop/objective/104,NEWSQUEST MEDIA GROUP LTD,03102566,15-10-2018,0000081095,266.48,0,Advert for Mintworks Promotion,Advert for Mintworks Promotion,Advertising,191000,Facilities Advertising
South Lakeland District Council,http://opendatacommunities.org/id/district-council/south-lakeland,31/10/2018,Development Implementation,Central Services,http://opendatacommunities.org/def/concept/finance/sercop/objective/102,TriCAD Solutions Ltd,,15-10-2018,0000081096,4550,0,Grange Lido Works,Grange Lido Works,PSC - Design Work,391114,Construction Buildings Surveys
South Lakeland District Council,http://opendatacommunities.org/id/district-council/south-lakeland,31/10/2018,Business Support Community Services,Cultural Environmental Regulatory & Planning Services,http://opendatacommunities.org/def/concept/finance/sercop/objective/104,Westmorland Music Trust,,17-10-2018,0000081106,1000,0,18-19 community grant funding,18-19 community grant funding,Grants & Contribut to Vol Orga,201700,Financial Services Grants
South Lakeland District Council,http://opendatacommunities.org/id/district-council/south-lakeland,31/10/2018,Development Implementation,Central Services,http://opendatacommunities.org/def/concept/finance/sercop/objective/102,CUMBRIA WASTE RECYCLING LTD,03162439,15-10-2018,0000081107,34.52,0,Langstone House 360 ltr Wheelie Bin,Langstone House 360 ltr Wheelie Bin,Skip and Bin Hire and Disposal,182012,Environment Waste Management Recycling
South Lakeland District Council,http://opendatacommunities.org/id/district-council/south-lakeland,31/10/2018,Lake Wardens,Cultural Environmental Regulatory & Planning Services,http://opendatacommunities.org/def/concept/finance/sercop/objective/104,CUMBRIA WASTE RECYCLING LTD,03162439,24-10-2018,0000081108,273.26,0,Emptying of Refuse Wheelie Bins at Lake,Emptying of Refuse Wheelie Bins at Lake,Skip and Bin Hire and Disposal,182012,Environment Waste Management Recycling
South Lakeland District Council,http://opendatacommunities.org/id/district-council/south-lakeland,31/10/2018,Development Implementation,Central Services,http://opendatacommunities.org/def/concept/finance/sercop/objective/102,CUMBRIA WASTE RECYCLING LTD,03162439,15-10-2018,0000081109,235.8,0,South Lakeland House Bin & Skip Emptying,South Lakeland House Bin & Skip Emptying,Skip and Bin Hire and Disposal,182012,Environment Waste Management Recycling
South Lakeland District Council,http://opendatacommunities.org/id/district-council/south-lakeland,31/10/2018,Kendal Town Hall,Cultural Environmental Regulatory & Planning Services,http://opendatacommunities.org/def/concept/finance/sercop/objective/104,CUMBRIA WASTE RECYCLING LTD,03162439,17-10-2018,0000081110,168.5,0,Annual waste collection for Kendal Town,Annual waste collection for Kendal Town,Skip and Bin Hire and Disposal,182012,Environment Waste Management Recycling
South Lakeland District Council,http://opendatacommunities.org/id/district-council/south-lakeland,31/10/2018,Lake Wardens,Cultural Environmental Regulatory & Planning Services,http://opendatacommunities.org/def/concept/finance/sercop/objective/104,CUMBRIA WASTE RECYCLING LTD,03162439,17-10-2018,0000081111,227.2,0,Emptying of Refuse Wheelie Bins at Lake,Emptying of Refuse Wheelie Bins at Lake,Skip and Bin Hire and Disposal,182012,Environment Waste Management Recycling
South Lakeland District Council,http://opendatacommunities.org/id/district-council/south-lakeland,31/10/2018,Leisure and Wellbeing,Highways & Transport Services,http://opendatacommunities.org/def/concept/finance/sercop/objective/107,CUMBRIA WASTE RECYCLING LTD,03162439,17-10-2018,0000081112,52.84,0,660ltr bin at Kendal multi storey car,660ltr bin at Kendal multi storey car,Skip and Bin Hire and Disposal,182012,Environment Waste Management Recycling
South Lakeland District Council,http://opendatacommunities.org/id/district-council/south-lakeland,31/10/2018,Development Implementation,Cultural Environmental Regulatory & Planning Services,http://opendatacommunities.org/def/concept/finance/sercop/objective/104,CUMBRIA WASTE RECYCLING LTD,03162439,15-10-2018,0000081113,116.52,0,"Waste Collection at 124 Highgate,","Waste Collection at 124 Highgate,",Skip and Bin Hire and Disposal,182012,Environment Waste Management Recycling
South Lakeland District Council,http://opendatacommunities.org/id/district-council/south-lakeland,31/10/2018,Cemeteries Office,Cultural Environmental Regulatory & Planning Services,http://opendatacommunities.org/def/concept/finance/sercop/objective/104,CUMBRIA WASTE RECYCLING LTD,03162439,15-10-2018,0000081114,53.64,0,Cemetery Bin Emptying 2018,Cemetery Bin Emptying 2018,Skip and Bin Hire and Disposal,182012,Environment Waste Management Recycling
South Lakeland District Council,http://opendatacommunities.org/id/district-council/south-lakeland,31/10/2018,Cemeteries Office,Cultural Environmental Regulatory & Planning Services,http://opendatacommunities.org/def/concept/finance/sercop/objective/104,CUMBRIA WASTE RECYCLING LTD,03162439,15-10-2018,0000081115,63.72,0,Cemetery Bin Emptying 2018,Cemetery Bin Emptying 2018,Skip and Bin Hire and Disposal,182012,Environment Waste Management Recycling
South Lakeland District Council,http://opendatacommunities.org/id/district-council/south-lakeland,31/10/2018,Cemeteries Office,Cultural Environmental Regulatory & Planning Services,http://opendatacommunities.org/def/concept/finance/sercop/objective/104,CUMBRIA WASTE RECYCLING LTD,03162439,15-10-2018,0000081116,69.04,0,Cemetery Bin Emptying 2018,Cemetery Bin Emptying 2018,Skip and Bin Hire and Disposal,182012,Environment Waste Management Recycling
South Lakeland District Council,http://opendatacommunities.org/id/district-council/south-lakeland,31/10/2018,Cemeteries Office,Cultural Environmental Regulatory & Planning Services,http://opendatacommunities.org/def/concept/finance/sercop/objective/104,CUMBRIA WASTE RECYCLING LTD,03162439,15-10-2018,0000081117,89.12,0,Cemetery Bin Emptying 2018,Cemetery Bin Emptying 2018,Skip and Bin Hire and Disposal,182012,Environment Waste Management Recycling
South Lakeland District Council,http://opendatacommunities.org/id/district-council/south-lakeland,31/10/2018,Cemeteries Office,Cultural Environmental Regulatory & Planning Services,http://opendatacommunities.org/def/concept/finance/sercop/objective/104,CUMBRIA WASTE RECYCLING LTD,03162439,15-10-2018,0000081118,34.52,0,Cemetery Bin Emptying 2018,Cemetery Bin Emptying 2018,Skip and Bin Hire and Disposal,182012,Environment Waste Management Recycling
South Lakeland District Council,http://opendatacommunities.org/id/district-council/south-lakeland,31/10/2018,Cemeteries Office,Cultural Environmental Regulatory & Planning Services,http://opendatacommunities.org/def/concept/finance/sercop/objective/104,CUMBRIA WASTE RECYCLING LTD,03162439,15-10-2018,0000081119,101.12,0,Cemetery Bin Emptying 2018,Cemetery Bin Emptying 2018,Skip and Bin Hire and Disposal,182012,Environment Waste Management Recycling
South Lakeland District Council,http://opendatacommunities.org/id/district-council/south-lakeland,31/10/2018,Cemeteries Office,Cultural Environmental Regulatory & Planning Services,http://opendatacommunities.org/def/concept/finance/sercop/objective/104,CUMBRIA WASTE RECYCLING LTD,03162439,15-10-2018,0000081120,29.92,0,Cemetery Bin Emptying 2018,Cemetery Bin Emptying 2018,Skip and Bin Hire and Disposal,182012,Environment Waste Management Recycling
South Lakeland District Council,http://opendatacommunities.org/id/district-council/south-lakeland,31/10/2018,Business Support Community Services,Cultural Environmental Regulatory & Planning Services,http://opendatacommunities.org/def/concept/finance/sercop/objective/104,ARCO LIMITED,00133804,15-10-2018,0000081123,8.08,0,Cleaning materials,Cleaning materials,Protective Clothing & Uniforms,141100,Clothing Protective
South Lakeland District Council,http://opendatacommunities.org/id/district-council/south-lakeland,31/10/2018,Business Support Community Services,Internal Trading Accounts,,LANCASHIRE DAF,,15-10-2018,0000081124,94.74,0,Parts,Parts,Transport-Repair & Maintenance,381400,Vehicle Mgt Maintenance
South Lakeland District Council,http://opendatacommunities.org/id/district-council/south-lakeland,31/10/2018,Business Support Community Services,Internal Trading Accounts,,LANCASHIRE DAF,,15-10-2018,0000081125,104.61,0,Parts,Parts,Transport-Uninsured Damage,381400,Vehicle Mgt Maintenance
South Lakeland District Council,http://opendatacommunities.org/id/district-council/south-lakeland,31/10/2018,Business Support Community Services,Cultural Environmental Regulatory & Planning Services,http://opendatacommunities.org/def/concept/finance/sercop/objective/104,ARCO LIMITED,00133804,15-10-2018,0000081126,150.75,0,Cleaning materials,Cleaning materials,Protective Clothing & Uniforms,141100,Clothing Protective
South Lakeland District Council,http://opendatacommunities.org/id/district-council/south-lakeland,31/10/2018,Business Support Community Services,Internal Trading Accounts,,PROBRUSH T/A NORTHERN MUNICIPAL SPARES L,,15-10-2018,0000081127,537.6,0,Brushes 2018/19,Brushes 2018/19,Transport-Repair & Maintenance,381600,Vehicle Mgt Leasing
South Lakeland District Council,http://opendatacommunities.org/id/district-council/south-lakeland,31/10/2018,Business Support Community Services,Internal Trading Accounts,,HAKO MACHINES LIMITED,01414225,15-10-2018,0000081128,587.5,0,6 x compact sweepers,6 x compact sweepers,Transport-Repair & Maintenance,131000,Cleaning & Janitorial Cleaning Materials
South Lakeland District Council,http://opendatacommunities.org/id/district-council/south-lakeland,31/10/2018,Business Support Community Services,Cultural Environmental Regulatory & Planning Services,http://opendatacommunities.org/def/concept/finance/sercop/objective/104,ARCO LIMITED,00133804,15-10-2018,0000081129,20.52,0,Cleaning materials,Cleaning materials,Protective Clothing & Uniforms,141100,Clothing Protective
South Lakeland District Council,http://opendatacommunities.org/id/district-council/south-lakeland,31/10/2018,Business Support Community Services,Cultural Environmental Regulatory & Planning Services,http://opendatacommunities.org/def/concept/finance/sercop/objective/104,CUMBRIA WASTE RECYCLING LTD,03162439,15-10-2018,0000081130,1488,0,Skip emptying at Ecclerigg & Ulverston,Skip emptying at Ecclerigg & Ulverston,Tipping & Disposal Charges,182012,Environment Waste Management Recycling
South Lakeland District Council,http://opendatacommunities.org/id/district-council/south-lakeland,31/10/2018,Business Support Community Services,Cultural Environmental Regulatory & Planning Services,http://opendatacommunities.org/def/concept/finance/sercop/objective/104,CUMBRIA WASTE RECYCLING LTD,03162439,15-10-2018,0000081131,248,0,Skip emptying at Ecclerigg & Ulverston,Skip emptying at Ecclerigg & Ulverston,Tipping & Disposal Charges,182012,Environment Waste Management Recycling
South Lakeland District Council,http://opendatacommunities.org/id/district-council/south-lakeland,31/10/2018,Business Support Community Services,Internal Trading Accounts,,Harry Park Tyres Ltd,08131208,15-10-2018,0000081132,1523.5,0,Tyres,Tyres,Vehicle - Tyres,381500,Vehicle Mgt Parts
South Lakeland District Council,http://opendatacommunities.org/id/district-council/south-lakeland,31/10/2018,Democratic and Member Services,Central Services,http://opendatacommunities.org/def/concept/finance/sercop/objective/102,GRANTS- MISCELLANEOUS,,22-10-2018,0000081133,500,0,locality donation to support running of,locality donation to support running of,Contributions to Organisations,201700,Financial Services Grants
South Lakeland District Council,http://opendatacommunities.org/id/district-council/south-lakeland,31/10/2018,Social Enterprise Admin,Cultural Environmental Regulatory & Planning Services,http://opendatacommunities.org/def/concept/finance/sercop/objective/104,Prescott Special Projects Ltd,,15-10-2018,0000081135,250,0,To supply erect and dismantle marquee,To supply erect and dismantle marquee,Other Consultants,391300,Construction Open Spaces
South Lakeland District Council,http://opendatacommunities.org/id/district-council/south-lakeland,31/10/2018,Development Implementation,Central Services,http://opendatacommunities.org/def/concept/finance/sercop/objective/102,Ulverston Properties Limited,,15-10-2018,0000081139,281.67,0,Ulverston Business Centre,Ulverston Business Centre,PSC - Design Work,190000,Facilities & Management Services
South Lakeland District Council,http://opendatacommunities.org/id/district-council/south-lakeland,31/10/2018,Cemeteries Office,Cultural Environmental Regulatory & Planning Services,http://opendatacommunities.org/def/concept/finance/sercop/objective/104,PARKIN & JACKSON LTD,08282892,15-10-2018,0000081140,385,0,Re-fix to make safe headstones in,Re-fix to make safe headstones in,Grounds Special,121000,Cemetery & Crematorium Burial & Crem
South Lakeland District Council,http://opendatacommunities.org/id/district-council/south-lakeland,31/10/2018,Social Enterprise Admin,SLDC as Agent,,PAY BY PHONE (PAYPOINT),,15-10-2018,0000081141,718.43,0,Pay-by-phone charges from 1 April 2018,Pay-by-phone charges from 1 April 2018,General,351400,Street & Traffic Traffic Control
South Lakeland District Council,http://opendatacommunities.org/id/district-council/south-lakeland,31/10/2018,Democratic and Member Services,Central Services,http://opendatacommunities.org/def/concept/finance/sercop/objective/102,KENDAL TOWN COUNCIL,,15-10-2018,0000081144,1297.37,0,SLDC contribution to Torchlight 2018,SLDC contribution to Torchlight 2018,Chairman's Allowance,908000,Public Bodies Council support services
South Lakeland District Council,http://opendatacommunities.org/id/district-council/south-lakeland,31/10/2018,Business Support Community Services,Internal Trading Accounts,,RIBBLESDALE AUTO ELECTRICS 1992 LTD,02732686,17-10-2018,0000081146,18.24,0,Parts,Parts,Transport-Repair & Maintenance,381500,Vehicle Mgt Parts
South Lakeland District Council,http://opendatacommunities.org/id/district-council/south-lakeland,31/10/2018,Business Support Community Services,Internal Trading Accounts,,RIBBLESDALE AUTO ELECTRICS 1992 LTD,02732686,17-10-2018,0000081147,56.64,0,Parts,Parts,Transport-Repair & Maintenance,381500,Vehicle Mgt Parts
South Lakeland District Council,http://opendatacommunities.org/id/district-council/south-lakeland,31/10/2018,Development Implementation,Cultural Environmental Regulatory & Planning Services,http://opendatacommunities.org/def/concept/finance/sercop/objective/104,LAMBERT SMITH HAMPTON GROUP,2521225,17-10-2018,0000081148,73.83,0,Signboard for Mintworks,Signboard for Mintworks,Equipment Furniture Materials,999999,Unclassifiable
South Lakeland District Council,http://opendatacommunities.org/id/district-council/south-lakeland,31/10/2018,Development Implementation,Central Services,http://opendatacommunities.org/def/concept/finance/sercop/objective/102,LAMBERT SMITH HAMPTON GROUP,2521225,17-10-2018,0000081149,41331,0,Property Services Contract April -,Property Services Contract April -,PSC - Property Works,999999,Unclassifiable
South Lakeland District Council,http://opendatacommunities.org/id/district-council/south-lakeland,31/10/2018,ICT Group,Central Services,http://opendatacommunities.org/def/concept/finance/sercop/objective/102,CABLE & WIRELESS UK (VODAFONE),,17-10-2018,0000081150,3634.01,0,Gsi Convergence Framework,Gsi Convergence Framework,Computer-Phone Lines,271700,ICT Telecommunications Fixed
South Lakeland District Council,http://opendatacommunities.org/id/district-council/south-lakeland,31/10/2018,ICT Group,Central Services,http://opendatacommunities.org/def/concept/finance/sercop/objective/102,Insight Direct (Uk) Ltd,2579852,17-10-2018,0000081151,1993.92,0,Samsung Galaxy Tab S2 - tablet -,Samsung Galaxy Tab S2 - tablet -,Equipment Furniture Materials,271200,ICT Hardware
South Lakeland District Council,http://opendatacommunities.org/id/district-council/south-lakeland,31/10/2018,ICT Group,Cultural Environmental Regulatory & Planning Services,http://opendatacommunities.org/def/concept/finance/sercop/objective/104,Insight Direct (Uk) Ltd,2579852,17-10-2018,0000081152,332.32,0,Samsung Galaxy Tab S2,Samsung Galaxy Tab S2,Equipment Furniture Materials,271200,ICT Hardware
South Lakeland District Council,http://opendatacommunities.org/id/district-council/south-lakeland,31/10/2018,ICT Group,Central Services,http://opendatacommunities.org/def/concept/finance/sercop/objective/102,BRITISH TELECOMMUNICATIONS PLC,01800000,17-10-2018,0000081153,98.8,0,Line Rental for Mintworks 01539 735120,Line Rental for Mintworks 01539 735120,Telephones-Rentals,279999,ICT Not Elsewhere Classified
South Lakeland District Council,http://opendatacommunities.org/id/district-council/south-lakeland,31/10/2018,Financial Services,Central Services,http://opendatacommunities.org/def/concept/finance/sercop/objective/102,TIAA Ltd,04546319,15-10-2018,0000081155,4924.95,0,18/19 Internal Audit Service,18/19 Internal Audit Service,Hired Services,201100,Financial Services Audit
South Lakeland District Council,http://opendatacommunities.org/id/district-council/south-lakeland,31/10/2018,Westmorland Centre Parking Office,Highways & Transport Services,http://opendatacommunities.org/def/concept/finance/sercop/objective/107,LOOMIS UK LTD,03200432,15-10-2018,0000081157,1061.79,0,Cash collection October - December 2018,Cash collection October - December 2018,Private Contractos gen,192200,Facilities Security
South Lakeland District Council,http://opendatacommunities.org/id/district-council/south-lakeland,31/10/2018,Development Strategy,Central Services,http://opendatacommunities.org/def/concept/finance/sercop/objective/102,GOVNET COMMUNICATIONS,04970168,29-10-2018,0000081158,395,0,"Effective Strategic Thinking event,","Effective Strategic Thinking event,",Training Costs,261500,HR Training & Conferences
South Lakeland District Council,http://opendatacommunities.org/id/district-council/south-lakeland,31/10/2018,Business Support Community Services,SLDC as Agent,,SOUTH LAKES HOUSING,IP031419,15-10-2018,0000081159,4613.75,0,Cumbria Choice Co-Ordinator Costs,Cumbria Choice Co-Ordinator Costs,General,191700,Facilities Property Management
South Lakeland District Council,http://opendatacommunities.org/id/district-council/south-lakeland,31/10/2018,Revenues and Benefits,Central Services,http://opendatacommunities.org/def/concept/finance/sercop/objective/102,CAPITA BUSINESS SERVICES LTD (NCR),,01-10-2018,0000081160,3129.55,0,2018-19 Internet Payment / bank charges,2018-19 Internet Payment / bank charges,Commission,261500,HR Training & Conferences
South Lakeland District Council,http://opendatacommunities.org/id/district-council/south-lakeland,31/10/2018,Revenues and Benefits,SLDC as Agent,,ROYAL MAIL GROUP PLC,,15-10-2018,0000081161,1598.32,0,2018-19 Postal Charges a/c 0198123013,2018-19 Postal Charges a/c 0198123013,General,301200,Mail Services� Postage
South Lakeland District Council,http://opendatacommunities.org/id/district-council/south-lakeland,31/10/2018,Development Management,Cultural Environmental Regulatory & Planning Services,http://opendatacommunities.org/def/concept/finance/sercop/objective/104,CHRIS BOWKER LTD,01642561,15-10-2018,0000081164,30,0,Inspection of electrical work under,Inspection of electrical work under,Electrican Inspection,101100,Building Electrical
South Lakeland District Council,http://opendatacommunities.org/id/district-council/south-lakeland,31/10/2018,Business Support Community Services,Internal Trading Accounts,,FST CONSUMABLES LTD,01342012,15-10-2018,0000081165,165.41,0,Consumables 2018/19,Consumables 2018/19,Job Consumables,101600,Building Hand Tools
South Lakeland District Council,http://opendatacommunities.org/id/district-council/south-lakeland,31/10/2018,Business Support Community Services,Internal Trading Accounts,,AINSWORTH'S GARAGE,,15-10-2018,0000081166,39,0,Call outs,Call outs,Vehicle - Tyres,381400,Vehicle Mgt Maintenance
South Lakeland District Council,http://opendatacommunities.org/id/district-council/south-lakeland,31/10/2018,Business Support Community Services,Cultural Environmental Regulatory & Planning Services,http://opendatacommunities.org/def/concept/finance/sercop/objective/104,LANCASTER TRAINING SERVICES LTD,01447612,15-10-2018,0000081167,259.17,0,Training 2018/19 (GWK),Training 2018/19 (GWK),Training Costs,261500,HR Training & Conferences
South Lakeland District Council,http://opendatacommunities.org/id/district-council/south-lakeland,31/10/2018,Business Support Community Services,Internal Trading Accounts,,TPS Preston,,15-10-2018,0000081168,14.37,0,Parts,Parts,Transport-Repair & Maintenance,381400,Vehicle Mgt Maintenance
South Lakeland District Council,http://opendatacommunities.org/id/district-council/south-lakeland,31/10/2018,Business Support Community Services,Cultural Environmental Regulatory & Planning Services,http://opendatacommunities.org/def/concept/finance/sercop/objective/104,Masterstaff Limited,02777593,15-10-2018,0000081169,3337.08,0,Agency staff,Agency staff,Contract & Agency staff,261300,HR Recruitment & Assessment
South Lakeland District Council,http://opendatacommunities.org/id/district-council/south-lakeland,31/10/2018,Business Support Community Services,Cultural Environmental Regulatory & Planning Services,http://opendatacommunities.org/def/concept/finance/sercop/objective/104,LAKELAND SUPPLIES,,15-10-2018,0000081170,4.99,0,Fixtures & fittings,Fixtures & fittings,Fixtures & Fittings,101610,Building Hand Tools
South Lakeland District Council,http://opendatacommunities.org/id/district-council/south-lakeland,31/10/2018,Social Enterprise Admin,Highways & Transport Services,http://opendatacommunities.org/def/concept/finance/sercop/objective/107,ARCO LIMITED,00133804,15-10-2018,0000081171,87.44,0,| Pair Safety Boot Size 9 Goliath EL170,| Pair Safety Boot Size 9 Goliath EL170,Protective Clothing & Uniforms,141100,Clothing Protective
South Lakeland District Council,http://opendatacommunities.org/id/district-council/south-lakeland,31/10/2018,Business Support Community Services,Housing Services,http://opendatacommunities.org/def/concept/finance/sercop/objective/108,SOUTH LAKES HOUSING RENT A/C,,15-10-2018,0000081173,83.77,0,Rent in advance,Rent in advance,Homelessness Prevention,191700,Facilities Property Management
South Lakeland District Council,http://opendatacommunities.org/id/district-council/south-lakeland,31/10/2018,Business Support Community Services,Central Services,http://opendatacommunities.org/def/concept/finance/sercop/objective/102,INSTITUTE OF LICENSING (EVENTS) LTD,05710898,17-10-2018,0000081179,155,0,Animal Training 07/09/18,Animal Training 07/09/18,Training Costs,202100,Financial Services Subscriptions
South Lakeland District Council,http://opendatacommunities.org/id/district-council/south-lakeland,31/10/2018,Business Support Community Services,Central Services,http://opendatacommunities.org/def/concept/finance/sercop/objective/102,INSTITUTE OF LICENSING (EVENTS) LTD,05710898,17-10-2018,0000081180,465,0,Animal Licensing 07/09/18,Animal Licensing 07/09/18,Training Costs,202100,Financial Services Subscriptions
South Lakeland District Council,http://opendatacommunities.org/id/district-council/south-lakeland,31/10/2018,Democratic Services,Central Services,http://opendatacommunities.org/def/concept/finance/sercop/objective/102,St John's Chambers,,17-10-2018,0000081185,600,0,Solicitor,Solicitor,Legal & Counsels Fees,281200,Legal Services General Support
South Lakeland District Council,http://opendatacommunities.org/id/district-council/south-lakeland,31/10/2018,Business Support Community Services,Housing Services,http://opendatacommunities.org/def/concept/finance/sercop/objective/108,Ashberry Recruitment,07202591,17-10-2018,0000081186,647.53,0,Agency staff at Town View Fields,Agency staff at Town View Fields,Contract & Agency staff,261300,HR Recruitment & Assessment
South Lakeland District Council,http://opendatacommunities.org/id/district-council/south-lakeland,31/10/2018,Democratic Services,Central Services,http://opendatacommunities.org/def/concept/finance/sercop/objective/102,St John's Chambers,,17-10-2018,0000081187,1700,0,Solicitor,Solicitor,Legal & Counsels Fees,281200,Legal Services General Support
South Lakeland District Council,http://opendatacommunities.org/id/district-council/south-lakeland,31/10/2018,Democratic Services,Central Services,http://opendatacommunities.org/def/concept/finance/sercop/objective/102,ANTHONY COLLINS SOLICITORS,OC313432,17-10-2018,0000081188,1023,0,Fees in connection with Potential Land,Fees in connection with Potential Land,Legal & Counsels Fees,281300,Legal Services Legal Opinion
South Lakeland District Council,http://opendatacommunities.org/id/district-council/south-lakeland,31/10/2018,Environment and Housing,Housing Services,http://opendatacommunities.org/def/concept/finance/sercop/objective/108,My Dream Cleaners Ltd,09839482,17-10-2018,0000081189,220,0,Cleaning at TVF Hostel,Cleaning at TVF Hostel,Cleaning Supplies & Services,131320,Cleaning & Janitorial Cleaning Service
South Lakeland District Council,http://opendatacommunities.org/id/district-council/south-lakeland,31/10/2018,Customer Services,Cultural Environmental Regulatory & Planning Services,http://opendatacommunities.org/def/concept/finance/sercop/objective/104,RIGHT 2 WORK,,31-10-2018,0000081190,4182,0,FOR REMOVAL OF BULKY WASTE,FOR REMOVAL OF BULKY WASTE,Bulky Waste Scheme,321010,Social Care Adult Advice & Counselling
South Lakeland District Council,http://opendatacommunities.org/id/district-council/south-lakeland,31/10/2018,Policy & Partnerships,Central Services,http://opendatacommunities.org/def/concept/finance/sercop/objective/102,CHARTERED MANAGEMENT INSTITUTE,RC000778,17-10-2018,0000081191,175,0, Membership Renewal to Chartered, Membership Renewal to Chartered,Professional Fees,202100,Financial Services Subscriptions
South Lakeland District Council,http://opendatacommunities.org/id/district-council/south-lakeland,31/10/2018,Development Implementation,Central Services,http://opendatacommunities.org/def/concept/finance/sercop/objective/102,HEATONS MBI,,17-10-2018,0000081193,492,0,1 x Pisa circular table with round,1 x Pisa circular table with round,Equipment Furniture Materials,211200,Furniture & Soft Furn Office Furniture
South Lakeland District Council,http://opendatacommunities.org/id/district-council/south-lakeland,31/10/2018,Business Support Community Services,Internal Trading Accounts,,M G D LTD,,17-10-2018,0000081196,35,0,MOTs 2018/19,MOTs 2018/19,MOT/Servicing Costs,381400,Vehicle Mgt Maintenance
South Lakeland District Council,http://opendatacommunities.org/id/district-council/south-lakeland,31/10/2018,Business Support Community Services,Cultural Environmental Regulatory & Planning Services,http://opendatacommunities.org/def/concept/finance/sercop/objective/104,LAKELAND SUPPLIES,,17-10-2018,0000081197,29.86,0,Fixtures & fittings,Fixtures & fittings,Fixtures & Fittings,101610,Building Hand Tools
South Lakeland District Council,http://opendatacommunities.org/id/district-council/south-lakeland,31/10/2018,Business Support Community Services,Cultural Environmental Regulatory & Planning Services,http://opendatacommunities.org/def/concept/finance/sercop/objective/104,LAKELAND SUPPLIES,,17-10-2018,0000081198,4.99,0,Fixtures & fittings,Fixtures & fittings,Fixtures & Fittings,101610,Building Hand Tools
South Lakeland District Council,http://opendatacommunities.org/id/district-council/south-lakeland,31/10/2018,Business Support Community Services,Transport Planning Policy,http://opendatacommunities.org/def/concept/finance/sercop/objective/107,ARCO LIMITED,00133804,17-10-2018,0000081199,45.13,0,Cleaning materials,Cleaning materials,Cleaning Supplies & Services,141100,Clothing Protective
South Lakeland District Council,http://opendatacommunities.org/id/district-council/south-lakeland,31/10/2018,Business Support Community Services,Cultural Environmental Regulatory & Planning Services,http://opendatacommunities.org/def/concept/finance/sercop/objective/104,ARCO LIMITED,00133804,17-10-2018,0000081199,341.1,0,Cleaning materials,Cleaning materials,Protective Clothing & Uniforms,141100,Clothing Protective
South Lakeland District Council,http://opendatacommunities.org/id/district-council/south-lakeland,31/10/2018,Environment and Housing,Housing Services,http://opendatacommunities.org/def/concept/finance/sercop/objective/108,AB,08672920,17-10-2018,0000081205,400,0,Monthly rent ,Monthly rent ,Homelessness Prevention,202000,Financial Services Rents
South Lakeland District Council,http://opendatacommunities.org/id/district-council/south-lakeland,31/10/2018,Environment and Housing,Housing Services,http://opendatacommunities.org/def/concept/finance/sercop/objective/108,FJ A,,17-10-2018,0000081206,890,0,Monthly rent,Monthly rent,Homelessness Prevention,250000,Housing
South Lakeland District Council,http://opendatacommunities.org/id/district-council/south-lakeland,31/10/2018,Environment and Housing,Housing Services,http://opendatacommunities.org/def/concept/finance/sercop/objective/108,M,,17-10-2018,0000081207,1190,0,Monthly rent ,Monthly rent ,Homelessness Prevention,202000,Financial Services Rents
South Lakeland District Council,http://opendatacommunities.org/id/district-council/south-lakeland,31/10/2018,ICT Group,Central Services,http://opendatacommunities.org/def/concept/finance/sercop/objective/102,NORTHGATE VEHICLE HIRE LTD,01434157,31-10-2018,0000081208,57.65,0,"Small panel van hire for 9/10/18, to","Small panel van hire for 9/10/18, to",Car Allowances,381600,Vehicle Mgt Leasing
South Lakeland District Council,http://opendatacommunities.org/id/district-council/south-lakeland,31/10/2018,Business Support Community Services,Internal Trading Accounts,,INNOVATIVE SAFETY SYSTEMS LTD,06875015,22-10-2018,0000081209,137.5,0,Camera,Camera,Transport-Repair & Maintenance,192200,Facilities Security
South Lakeland District Council,http://opendatacommunities.org/id/district-council/south-lakeland,31/10/2018,Social Enterprise Admin,Highways & Transport Services,http://opendatacommunities.org/def/concept/finance/sercop/objective/107,WSP UK Ltd,01383511,17-10-2018,0000081210,45.9,0,DVLA checks from 1 April 2018 to 31,DVLA checks from 1 April 2018 to 31,Software Maintenance,351000,Street & Traffic Parking Car Parks
South Lakeland District Council,http://opendatacommunities.org/id/district-council/south-lakeland,31/10/2018,Development Implementation,Central Services,http://opendatacommunities.org/def/concept/finance/sercop/objective/102,LAMBERT SMITH HAMPTON GROUP,2521225,17-10-2018,0000081211,52475,0,SLDC - South Lakeland House/Kendal Town,SLDC - South Lakeland House/Kendal Town,PSC - Design Work,999999,Unclassifiable
South Lakeland District Council,http://opendatacommunities.org/id/district-council/south-lakeland,31/10/2018,Policy & Partnerships,Central Services,http://opendatacommunities.org/def/concept/finance/sercop/objective/102,RIVERBANK HOSPITALITY CATERING,,22-10-2018,0000081212,108,0,Celebration Event- Wednesday 3rd,Celebration Event- Wednesday 3rd,Catering Supplies,111000,Catering Banquet & Catering
South Lakeland District Council,http://opendatacommunities.org/id/district-council/south-lakeland,31/10/2018,Business Support Community Services,Central Services,http://opendatacommunities.org/def/concept/finance/sercop/objective/102,RIVERBANK HOSPITALITY CATERING,,17-10-2018,0000081213,121,0,Buffet for 22 People -,Buffet for 22 People -,Catering Supplies,111000,Catering Banquet & Catering
South Lakeland District Council,http://opendatacommunities.org/id/district-council/south-lakeland,31/10/2018,Business Support Community Services,Internal Trading Accounts,,DENNIS EAGLE LTD,03794455,17-10-2018,0000081214,426.07,0,Parts,Parts,Transport-Repair & Maintenance,381300,Vehicle Mgt Industrial
South Lakeland District Council,http://opendatacommunities.org/id/district-council/south-lakeland,31/10/2018,Business Support Community Services,Internal Trading Accounts,,A & W COMMERCIALS LTD,02630625,17-10-2018,0000081215,273.06,0,Hoses,Hoses,Transport-Repair & Maintenance,381400,Vehicle Mgt Maintenance
South Lakeland District Council,http://opendatacommunities.org/id/district-council/south-lakeland,31/10/2018,Business Support Community Services,Transport Planning Policy,http://opendatacommunities.org/def/concept/finance/sercop/objective/107,ARCO LIMITED,00133804,17-10-2018,0000081216,28.21,0,Cleaning materials,Cleaning materials,Cleaning Supplies & Services,141100,Clothing Protective
South Lakeland District Council,http://opendatacommunities.org/id/district-council/south-lakeland,31/10/2018,Business Support Community Services,Cultural Environmental Regulatory & Planning Services,http://opendatacommunities.org/def/concept/finance/sercop/objective/104,ARCO LIMITED,00133804,17-10-2018,0000081217,103.87,0,Cleaning materials,Cleaning materials,Protective Clothing & Uniforms,141100,Clothing Protective
South Lakeland District Council,http://opendatacommunities.org/id/district-council/south-lakeland,31/10/2018,Business Support Community Services,Internal Trading Accounts,,S J Bargh,00532272,17-10-2018,0000081218,158,0,MOTs 2018/19 & vehicle cleaning,MOTs 2018/19 & vehicle cleaning,MOT/Servicing Costs,381400,Vehicle Mgt Maintenance
South Lakeland District Council,http://opendatacommunities.org/id/district-council/south-lakeland,31/10/2018,Business Support Community Services,Internal Trading Accounts,,Harry Park Tyres Ltd,08131208,17-10-2018,0000081219,30,0,Tyres,Tyres,Vehicle - Tyres,381500,Vehicle Mgt Parts
South Lakeland District Council,http://opendatacommunities.org/id/district-council/south-lakeland,31/10/2018,Electoral Services,Central Services,http://opendatacommunities.org/def/concept/finance/sercop/objective/102,Idox Software Ltd,2933889,17-10-2018,0000081220,5148.98,0,Eastimated costs for the e-canvass,Eastimated costs for the e-canvass,Annual Canvass,271600,ICT Software Customised & Bespoke
South Lakeland District Council,http://opendatacommunities.org/id/district-council/south-lakeland,31/10/2018,Business Support Community Services,Central Services,http://opendatacommunities.org/def/concept/finance/sercop/objective/102,ADECCO UK LIMITED,00593232,29-10-2018,0000081224,525.42,0,PAI Technician from 20/11/2017,PAI Technician from 20/11/2017,Contract & Agency staff,261400,HR Temporary & Agency Staff
South Lakeland District Council,http://opendatacommunities.org/id/district-council/south-lakeland,31/10/2018,Development Implementation,Cultural Environmental Regulatory & Planning Services,http://opendatacommunities.org/def/concept/finance/sercop/objective/104,ADECCO UK LIMITED,00593232,22-10-2018,0000081225,484.44,0,Economic Development Programme Support,Economic Development Programme Support,Other Consultants,261400,HR Temporary & Agency Staff
South Lakeland District Council,http://opendatacommunities.org/id/district-council/south-lakeland,31/10/2018,Social Enterprise Admin,Highways & Transport Services,http://opendatacommunities.org/def/concept/finance/sercop/objective/107,ADECCO UK LIMITED,00593232,24-10-2018,0000081226,565.8,0,Agency Cover Car Park Assistants,Agency Cover Car Park Assistants,Contract & Agency staff,261400,HR Temporary & Agency Staff
South Lakeland District Council,http://opendatacommunities.org/id/district-council/south-lakeland,31/10/2018,Westmorland Centre Parking Office,Highways & Transport Services,http://opendatacommunities.org/def/concept/finance/sercop/objective/107,ADECCO UK LIMITED,00593232,24-10-2018,0000081227,248.4,0,Agency cover for WMMSCP cleaner,Agency cover for WMMSCP cleaner,Contract & Agency staff,261400,HR Temporary & Agency Staff
South Lakeland District Council,http://opendatacommunities.org/id/district-council/south-lakeland,31/10/2018,Development Implementation,Central Services,http://opendatacommunities.org/def/concept/finance/sercop/objective/102,ADECCO UK LIMITED,00593232,22-10-2018,0000081228,294.84,0,Cleaner for SLDC - M P - April,Cleaner for SLDC - M P - April,Contract & Agency staff,261400,HR Temporary & Agency Staff
South Lakeland District Council,http://opendatacommunities.org/id/district-council/south-lakeland,31/10/2018,Business Support Community Services,Internal Trading Accounts,,RIBBLESDALE AUTO ELECTRICS 1992 LTD,02732686,22-10-2018,0000081229,62.5,0,Parts,Parts,Transport-Repair & Maintenance,381500,Vehicle Mgt Parts
South Lakeland District Council,http://opendatacommunities.org/id/district-council/south-lakeland,31/10/2018,Kendal Town Hall,Cultural Environmental Regulatory & Planning Services,http://opendatacommunities.org/def/concept/finance/sercop/objective/104,FARRERS,09023215,22-10-2018,0000081230,243.78,0,2 boxes of restaurant blend filter,2 boxes of restaurant blend filter,Catering Supplies,111200,Catering Food & Beverages
South Lakeland District Council,http://opendatacommunities.org/id/district-council/south-lakeland,31/10/2018,Kendal Town Hall,External Trading Accounts,,MK Illuminations,04366174,22-10-2018,0000081231,632.12,0,Christmas lights for Kendal Indoor,Christmas lights for Kendal Indoor,Equipment Furniture Materials,109999,Building Not Elsewhere Classified
South Lakeland District Council,http://opendatacommunities.org/id/district-council/south-lakeland,31/10/2018,Electoral Services,Central Services,http://opendatacommunities.org/def/concept/finance/sercop/objective/102,ASSOCIATION OF ELECTORAL ADMINISTRATORS,02406897,22-10-2018,0000081232,47.5,0,Annual AEA memberships for D S,Annual AEA memberships for D S,Subscriptions to Associations,202100,Financial Services Subscriptions
South Lakeland District Council,http://opendatacommunities.org/id/district-council/south-lakeland,31/10/2018,Electoral Services,Central Services,http://opendatacommunities.org/def/concept/finance/sercop/objective/102,ASSOCIATION OF ELECTORAL ADMINISTRATORS,02406897,22-10-2018,0000081232,47.5,0,Annual AEA memberships for D S,Annual AEA memberships for D S,Subscriptions to Associations,202100,Financial Services Subscriptions
South Lakeland District Council,http://opendatacommunities.org/id/district-council/south-lakeland,31/10/2018,Electoral Services,Central Services,http://opendatacommunities.org/def/concept/finance/sercop/objective/102,ASSOCIATION OF ELECTORAL ADMINISTRATORS,02406897,22-10-2018,0000081232,237.5,0,Annual AEA memberships for DS,Annual AEA memberships for DS,Subscriptions to Associations,202100,Financial Services Subscriptions
South Lakeland District Council,http://opendatacommunities.org/id/district-council/south-lakeland,31/10/2018,Business Support Community Services,Internal Trading Accounts,,EK MOTOR FACTORS LTD,00838524,22-10-2018,0000081235,20.49,0,Parts,Parts,Transport-Repair & Maintenance,381400,Vehicle Mgt Maintenance
South Lakeland District Council,http://opendatacommunities.org/id/district-council/south-lakeland,31/10/2018,Electoral Services,Central Services,http://opendatacommunities.org/def/concept/finance/sercop/objective/102,ROYAL MAIL GROUP PLC,,22-10-2018,0000081236,711.2,0,Annual canvass response plus service,Annual canvass response plus service,Annual Canvass,301200,Mail Services� Postage
South Lakeland District Council,http://opendatacommunities.org/id/district-council/south-lakeland,31/10/2018,Business Support Community Services,Internal Trading Accounts,,EK MOTOR FACTORS LTD,00838524,22-10-2018,0000081237,5.95,0,Parts,Parts,Transport-Repair & Maintenance,381400,Vehicle Mgt Maintenance
South Lakeland District Council,http://opendatacommunities.org/id/district-council/south-lakeland,31/10/2018,Business Support Community Services,Internal Trading Accounts,,EK MOTOR FACTORS LTD,00838524,22-10-2018,0000081239,91.65,0,Parts,Parts,Job Consumables,381400,Vehicle Mgt Maintenance
South Lakeland District Council,http://opendatacommunities.org/id/district-council/south-lakeland,31/10/2018,Electoral Services,Central Services,http://opendatacommunities.org/def/concept/finance/sercop/objective/102,ROYAL MAIL GROUP PLC,,22-10-2018,0000081240,4.2,0,Response plus w/e 01 Sep 2018,Response plus w/e 01 Sep 2018,Postages,301200,Mail Services� Postage
South Lakeland District Council,http://opendatacommunities.org/id/district-council/south-lakeland,31/10/2018,Business Support Community Services,SLDC as Agent,,Cumbria Housing Partners,,22-10-2018,0000081242,1875,0,Services in support of Cumbria Choice,Services in support of Cumbria Choice,General,250000,Housing
South Lakeland District Council,http://opendatacommunities.org/id/district-council/south-lakeland,31/10/2018,Development Implementation,Central Services,http://opendatacommunities.org/def/concept/finance/sercop/objective/102,Health & Safety Executive,,22-10-2018,0000081243,495,0,HSE Inspectors Guide to Risk Assessment,HSE Inspectors Guide to Risk Assessment,Training Costs,281300,Legal Services Legal Opinion
South Lakeland District Council,http://opendatacommunities.org/id/district-council/south-lakeland,31/10/2018,Policy & Partnerships,Central Services,http://opendatacommunities.org/def/concept/finance/sercop/objective/102,Kendal Rugby Union Football Club,,22-10-2018,0000081245,208.33,0,Catering fees for Council Plan away day,Catering fees for Council Plan away day,Room Hire,261510,HR- Conferences
South Lakeland District Council,http://opendatacommunities.org/id/district-council/south-lakeland,31/10/2018,Policy & Partnerships,Central Services,http://opendatacommunities.org/def/concept/finance/sercop/objective/102,Kendal Rugby Union Football Club,,22-10-2018,0000081245,282.5,0,Catering fees for Council Plan away day,Catering fees for Council Plan away day,Hospitality,261510,HR- Conferences
South Lakeland District Council,http://opendatacommunities.org/id/district-council/south-lakeland,31/10/2018,Revenues and Benefits,Non-Service Payments,,Kendal BID Ltd,08986243,22-10-2018,0000081252,2814.64,0,BID Levy - Collection figures for July,BID Levy - Collection figures for July,Payment to BID,201700,Financial Services Grants
South Lakeland District Council,http://opendatacommunities.org/id/district-council/south-lakeland,31/10/2018,Business Support Community Services,Cultural Environmental Regulatory & Planning Services,http://opendatacommunities.org/def/concept/finance/sercop/objective/104,COPELAND BOROUGH COUNCIL,,29-10-2018,0000081253,70,0,JB Legal Training at,JB Legal Training at,Training Costs,908000,Public Bodies Council support services
South Lakeland District Council,http://opendatacommunities.org/id/district-council/south-lakeland,31/10/2018,Business Support Community Services,Housing Services,http://opendatacommunities.org/def/concept/finance/sercop/objective/108,KENDAL SECURITY CENTRE LTD,03179893,29-10-2018,0000081254,85,0,Call out to fix office door lock,Call out to fix office door lock,Building Day-to-Day Repairs,192212,Facilities Security Equipment
South Lakeland District Council,http://opendatacommunities.org/id/district-council/south-lakeland,31/10/2018,Business Support Community Services,Central Services,http://opendatacommunities.org/def/concept/finance/sercop/objective/102,COPELAND BOROUGH COUNCIL,,22-10-2018,0000081255,70,0,One-day JB Legal Training at,One-day JB Legal Training at,Training Costs,908000,Public Bodies Council support services
South Lakeland District Council,http://opendatacommunities.org/id/district-council/south-lakeland,31/10/2018,Business Support Community Services,Housing Services,http://opendatacommunities.org/def/concept/finance/sercop/objective/108,KENDAL HOSTEL,,22-10-2018,0000081257,30,0,Accommodation for 1 night on 11/10/2018,Accommodation for 1 night on 11/10/2018,Homelessness B&B,261000,HR Accommodation
South Lakeland District Council,http://opendatacommunities.org/id/district-council/south-lakeland,31/10/2018,Business Support Community Services,Housing Services,http://opendatacommunities.org/def/concept/finance/sercop/objective/108,KENDAL HOSTEL,,22-10-2018,0000081258,60,0,Accommodation for 2 nights (OOH),Accommodation for 2 nights (OOH),Homelessness B&B,261000,HR Accommodation
South Lakeland District Council,http://opendatacommunities.org/id/district-council/south-lakeland,31/10/2018,Policy & Partnerships,Central Services,http://opendatacommunities.org/def/concept/finance/sercop/objective/102,IOSH SERVICES LTD,01816826,22-10-2018,0000081259,160,0,IOSH Working Safely Wed 19th Sept,IOSH Working Safely Wed 19th Sept,Health and Safety,221100,Health & Safety� Maintenance
South Lakeland District Council,http://opendatacommunities.org/id/district-council/south-lakeland,31/10/2018,Business Support Community Services,Culture and Related Serv,http://opendatacommunities.org/def/concept/finance/sercop/objective/104,CROSTHWAITE & LYTH PARISH COUNCIL,,29-10-2018,0000081264,1250,0,One-off LIPs contribution to village,One-off LIPs contribution to village,Grant Payments,908000,Public Bodies Council support services
South Lakeland District Council,http://opendatacommunities.org/id/district-council/south-lakeland,31/10/2018,Leisure and Wellbeing,Cultural Environmental Regulatory & Planning Services,http://opendatacommunities.org/def/concept/finance/sercop/objective/104,Lakes Arts Festivals Ltd,08320981,22-10-2018,0000081265,10000,0,Payment for Lakes International Comic,Payment for Lakes International Comic,Grants & Contribut to Vol Orga,291000,Arts & Leisure Services Events
South Lakeland District Council,http://opendatacommunities.org/id/district-council/south-lakeland,31/10/2018,Business Support Community Services,Central Services,http://opendatacommunities.org/def/concept/finance/sercop/objective/102,CRAEMER UK LTD,02574815,22-10-2018,0000081266,11734.4,0,"2,340 wheeled bins as tendered under","2,340 wheeled bins as tendered under",Purchase of Plant Machinery,182012,Environment Waste Management Recycling
South Lakeland District Council,http://opendatacommunities.org/id/district-council/south-lakeland,31/10/2018,Business Support Community Services,Cultural Environmental Regulatory & Planning Services,http://opendatacommunities.org/def/concept/finance/sercop/objective/104,ARCO LIMITED,00133804,22-10-2018,0000081267,144,0,Cleaning materials,Cleaning materials,Protective Clothing & Uniforms,141100,Clothing Protective
South Lakeland District Council,http://opendatacommunities.org/id/district-council/south-lakeland,31/10/2018,Business Support Community Services,Internal Trading Accounts,,LANCASHIRE DAF,,22-10-2018,0000081268,311.08,0,Parts,Parts,Transport-Uninsured Damage,381400,Vehicle Mgt Maintenance
South Lakeland District Council,http://opendatacommunities.org/id/district-council/south-lakeland,31/10/2018,Business Support Community Services,Cultural Environmental Regulatory & Planning Services,http://opendatacommunities.org/def/concept/finance/sercop/objective/104,BRIAN ARMISTEAD LTD T/A SINKFALL RECYCLI,04133280,22-10-2018,0000081269,1536.39,0,Green waste tipping - 2018/19,Green waste tipping - 2018/19,Tipping & Disposal Charges,391110,Construction Buildings Construction
South Lakeland District Council,http://opendatacommunities.org/id/district-council/south-lakeland,31/10/2018,Business Support Community Services,Cultural Environmental Regulatory & Planning Services,http://opendatacommunities.org/def/concept/finance/sercop/objective/104,RPC BPI RECYCLED PRODUCTS,350729,22-10-2018,0000081270,271,0,"FL0034. Heavy Duty Bin Liner. 27"" x 46""","FL0034. Heavy Duty Bin Liner. 27"" x 46""",Job Consumables,182013,Environment Waste Mgt Waste Collection
South Lakeland District Council,http://opendatacommunities.org/id/district-council/south-lakeland,31/10/2018,Business Support Community Services,Internal Trading Accounts,,RIBBLESDALE AUTO ELECTRICS 1992 LTD,02732686,22-10-2018,0000081271,36.75,0,Parts,Parts,Transport-Repair & Maintenance,381500,Vehicle Mgt Parts
South Lakeland District Council,http://opendatacommunities.org/id/district-council/south-lakeland,31/10/2018,Development Implementation,Environment Regulatory,,Metcalfe Plant Hire Ltd,02093086,24-10-2018,0000081272,44461.33,0,"Rothay Park River Works, Ambleside","Rothay Park River Works, Ambleside",Contract payments,100000,Building Construction materials
South Lakeland District Council,http://opendatacommunities.org/id/district-council/south-lakeland,31/10/2018,Development Implementation,Cultural Environmental Regulatory & Planning Services,http://opendatacommunities.org/def/concept/finance/sercop/objective/104,CUMBRIA TOURISM,03027358,24-10-2018,0000081274,4785,0,Cumbria Tourism Partnership,Cumbria Tourism Partnership,Economic Development Fund,291400,Arts & Leisure Services Sport & Fitness
South Lakeland District Council,http://opendatacommunities.org/id/district-council/south-lakeland,31/10/2018,Westmorland Centre Parking Office,Highways & Transport Services,http://opendatacommunities.org/def/concept/finance/sercop/objective/107,LOOMIS UK LTD,03200432,24-10-2018,0000081276,1061.79,0,Cash collection October - December 2018,Cash collection October - December 2018,Private Contractos gen,192200,Facilities Security
South Lakeland District Council,http://opendatacommunities.org/id/district-council/south-lakeland,31/10/2018,Social Enterprise Admin,Highways & Transport Services,http://opendatacommunities.org/def/concept/finance/sercop/objective/107,Orbility,,22-10-2018,0000081277,5032.44,0,Quarterly maintenance charge for,Quarterly maintenance charge for,Fixed Plant & Machinery Maint,111200,Catering Food & Beverages
South Lakeland District Council,http://opendatacommunities.org/id/district-council/south-lakeland,31/10/2018,Business Support Community Services,Central Services,http://opendatacommunities.org/def/concept/finance/sercop/objective/102,APSE,06735100,22-10-2018,0000081282,239,0,Priniciples of Fleet Management,Priniciples of Fleet Management,Training Costs,202100,Financial Services Subscriptions
South Lakeland District Council,http://opendatacommunities.org/id/district-council/south-lakeland,31/10/2018,Business Support Community Services,Internal Trading Accounts,,APSE,06735100,22-10-2018,0000081282,239,0,Priniciples of Fleet Management,Priniciples of Fleet Management,Training Costs,202100,Financial Services Subscriptions
South Lakeland District Council,http://opendatacommunities.org/id/district-council/south-lakeland,31/10/2018,Business Support Community Services,Internal Trading Accounts,,CUMBRIA RADIATORS LTD,05580363,22-10-2018,0000081283,439,0,Fuel tank,Fuel tank,Transport-Repair & Maintenance,381500,Vehicle Mgt Parts
South Lakeland District Council,http://opendatacommunities.org/id/district-council/south-lakeland,31/10/2018,ICT Group,Central Services,http://opendatacommunities.org/def/concept/finance/sercop/objective/102,ITPS Professional Services Ltd (DD),,01-10-2018,0000081284,109.8,0,Installation of PSTN Line,Installation of PSTN Line,Software Maintenance,271700,ICT Telecommunications Fixed
South Lakeland District Council,http://opendatacommunities.org/id/district-council/south-lakeland,31/10/2018,ICT Group,Central Services,http://opendatacommunities.org/def/concept/finance/sercop/objective/102,ITPS Professional Services Ltd (DD),,01-10-2018,0000081284,46,0,Installation of PSTN Line,Installation of PSTN Line,Computer-Phone Lines,271700,ICT Telecommunications Fixed
South Lakeland District Council,http://opendatacommunities.org/id/district-council/south-lakeland,31/10/2018,ICT Group,Central Services,http://opendatacommunities.org/def/concept/finance/sercop/objective/102,ITPS Professional Services Ltd (DD),,01-10-2018,0000081284,15.21,0,Installation of PSTN Line,Installation of PSTN Line,Telephones-Calls,271700,ICT Telecommunications Fixed
South Lakeland District Council,http://opendatacommunities.org/id/district-council/south-lakeland,31/10/2018,ICT Group,Central Services,http://opendatacommunities.org/def/concept/finance/sercop/objective/102,IT PROFESSIONAL SERVICES (ITPS),,29-10-2018,0000081285,115.92,0,SIP calls not covered by SIP rental,SIP calls not covered by SIP rental,Telephones-Calls,279999,ICT Not Elsewhere Classified
South Lakeland District Council,http://opendatacommunities.org/id/district-council/south-lakeland,31/10/2018,Development Implementation,Cultural Environmental Regulatory & Planning Services,http://opendatacommunities.org/def/concept/finance/sercop/objective/104,WiFi Spark Ltd,,24-10-2018,0000081286,402.18,0,Kendal Town Centre Wifi Maintenance,Kendal Town Centre Wifi Maintenance,Other Consultants,271800,ICT Telecommunications Mobile
South Lakeland District Council,http://opendatacommunities.org/id/district-council/south-lakeland,31/10/2018,Development Implementation,SLDC as Agent,,KENDAL TOWN COUNCIL,,24-10-2018,0000081287,3600,0,Contribution to Kendal Website Support,Contribution to Kendal Website Support,General,908000,Public Bodies Council support services
South Lakeland District Council,http://opendatacommunities.org/id/district-council/south-lakeland,31/10/2018,Kendal Town Hall,Cultural Environmental Regulatory & Planning Services,http://opendatacommunities.org/def/concept/finance/sercop/objective/104,THE CATERING PARTNERSHIP,03150517,24-10-2018,0000081288,111.64,0,Call out to fridge in the Assembly Room,Call out to fridge in the Assembly Room,Equipment Furniture Materials,111100,Catering Equipment & Utensils
South Lakeland District Council,http://opendatacommunities.org/id/district-council/south-lakeland,31/10/2018,Kendal Town Hall,Central Services,http://opendatacommunities.org/def/concept/finance/sercop/objective/102,W MCCLURE LTD,00685360,24-10-2018,0000081290,13.9,0,2 boxes of UHT milk sticks for SL House,2 boxes of UHT milk sticks for SL House,Catering Supplies,111200,Catering Food & Beverages
South Lakeland District Council,http://opendatacommunities.org/id/district-council/south-lakeland,31/10/2018,Kendal Town Hall,Cultural Environmental Regulatory & Planning Services,http://opendatacommunities.org/def/concept/finance/sercop/objective/104,W MCCLURE LTD,00685360,24-10-2018,0000081290,29.6,0,2 boxes of UHT milk sticks for SL House,2 boxes of UHT milk sticks for SL House,Catering Supplies,111200,Catering Food & Beverages
South Lakeland District Council,http://opendatacommunities.org/id/district-council/south-lakeland,31/10/2018,Business Support Community Services,Cultural Environmental Regulatory & Planning Services,http://opendatacommunities.org/def/concept/finance/sercop/objective/104,Masterstaff Limited,02777593,24-10-2018,0000081293,3831.42,0,Agency staff,Agency staff,Contract & Agency staff,261300,HR Recruitment & Assessment
South Lakeland District Council,http://opendatacommunities.org/id/district-council/south-lakeland,31/10/2018,Business Support Community Services,Cultural Environmental Regulatory & Planning Services,http://opendatacommunities.org/def/concept/finance/sercop/objective/104,ARCO LIMITED,00133804,24-10-2018,0000081294,39.27,0,Cleaning materials,Cleaning materials,Protective Clothing & Uniforms,141100,Clothing Protective
South Lakeland District Council,http://opendatacommunities.org/id/district-council/south-lakeland,31/10/2018,Business Support Community Services,Internal Trading Accounts,,AINSWORTH'S GARAGE,,24-10-2018,0000081295,29.25,0,Call outs,Call outs,Vehicle - Tyres,381400,Vehicle Mgt Maintenance
South Lakeland District Council,http://opendatacommunities.org/id/district-council/south-lakeland,31/10/2018,Business Support Community Services,Internal Trading Accounts,,HYDRAIR TRUCK & TRAILER PARTS LTD,,24-10-2018,0000081296,293.68,0,Parts,Parts,Transport-Repair & Maintenance,381500,Vehicle Mgt Parts
South Lakeland District Council,http://opendatacommunities.org/id/district-council/south-lakeland,31/10/2018,Business Support Community Services,Internal Trading Accounts,,EK MOTOR FACTORS LTD,00838524,24-10-2018,0000081297,89.09,0,Parts,Parts,Transport-Repair & Maintenance,381400,Vehicle Mgt Maintenance
South Lakeland District Council,http://opendatacommunities.org/id/district-council/south-lakeland,31/10/2018,Business Support Community Services,Internal Trading Accounts,,HYDRAIR TRUCK & TRAILER PARTS LTD,,24-10-2018,0000081298,42.06,0,Parts,Parts,Transport-Repair & Maintenance,381500,Vehicle Mgt Parts
South Lakeland District Council,http://opendatacommunities.org/id/district-council/south-lakeland,31/10/2018,Business Support Community Services,Cultural Environmental Regulatory & Planning Services,http://opendatacommunities.org/def/concept/finance/sercop/objective/104,GB Sign Solutions Ltd,09609330,24-10-2018,0000081299,633.82,0,Street nameplates,Street nameplates,Fixtures & Fittings,102400,Building Signage
South Lakeland District Council,http://opendatacommunities.org/id/district-council/south-lakeland,31/10/2018,Business Support Community Services,Cultural Environmental Regulatory & Planning Services,http://opendatacommunities.org/def/concept/finance/sercop/objective/104,GB Sign Solutions Ltd,09609330,24-10-2018,0000081300,80,0,Street nameplates,Street nameplates,Fixtures & Fittings,102400,Building Signage
South Lakeland District Council,http://opendatacommunities.org/id/district-council/south-lakeland,31/10/2018,Business Support Community Services,Cultural Environmental Regulatory & Planning Services,http://opendatacommunities.org/def/concept/finance/sercop/objective/104,GB Sign Solutions Ltd,09609330,24-10-2018,0000081301,384.8,0,Street nameplates,Street nameplates,Fixtures & Fittings,102400,Building Signage
South Lakeland District Council,http://opendatacommunities.org/id/district-council/south-lakeland,31/10/2018,Business Support Community Services,Internal Trading Accounts,,TPS Preston,,24-10-2018,0000081302,16.85,0,Parts,Parts,Transport-Repair & Maintenance,381400,Vehicle Mgt Maintenance
South Lakeland District Council,http://opendatacommunities.org/id/district-council/south-lakeland,31/10/2018,Business Support Community Services,Internal Trading Accounts,,Harry Park Tyres Ltd,08131208,24-10-2018,0000081303,100,0,Tyres,Tyres,Vehicle - Tyres,381500,Vehicle Mgt Parts
South Lakeland District Council,http://opendatacommunities.org/id/district-council/south-lakeland,31/10/2018,Democratic and Member Services,Central Services,http://opendatacommunities.org/def/concept/finance/sercop/objective/102,RIVERBANK HOSPITALITY CATERING,,24-10-2018,0000081305,110,0,buffet for pre council customer connect,buffet for pre council customer connect,Training Costs,111000,Catering Banquet & Catering
South Lakeland District Council,http://opendatacommunities.org/id/district-council/south-lakeland,31/10/2018,Environment and Housing,Housing Services,http://opendatacommunities.org/def/concept/finance/sercop/objective/108,MS,,24-10-2018,0000081310,700,0,Monthly rent,Monthly rent,Homelessness Prevention,250000,Housing
South Lakeland District Council,http://opendatacommunities.org/id/district-council/south-lakeland,31/10/2018,Business Support Community Services,Internal Trading Accounts,,HAKO MACHINES LIMITED,01414225,24-10-2018,0000081312,60.93,0,Parts,Parts,Transport-Repair & Maintenance,131000,Cleaning & Janitorial Cleaning Materials
South Lakeland District Council,http://opendatacommunities.org/id/district-council/south-lakeland,31/10/2018,Business Support Community Services,Internal Trading Accounts,,S J Bargh,00532272,24-10-2018,0000081313,158,0,MOTs 2018/19 & vehicle cleaning,MOTs 2018/19 & vehicle cleaning,MOT/Servicing Costs,381400,Vehicle Mgt Maintenance
South Lakeland District Council,http://opendatacommunities.org/id/district-council/south-lakeland,31/10/2018,Business Support Community Services,Cultural Environmental Regulatory & Planning Services,http://opendatacommunities.org/def/concept/finance/sercop/objective/104,ARCO LIMITED,00133804,24-10-2018,0000081314,40.2,0,Cleaning materials,Cleaning materials,Protective Clothing & Uniforms,141100,Clothing Protective
South Lakeland District Council,http://opendatacommunities.org/id/district-council/south-lakeland,31/10/2018,Environment and Housing,Housing Services,http://opendatacommunities.org/def/concept/finance/sercop/objective/108,My Dream Cleaners Ltd,09839482,24-10-2018,0000081316,223.25,0,Cleaning at TVF Hostel,Cleaning at TVF Hostel,Cleaning Supplies & Services,131320,Cleaning & Janitorial Cleaning Service
South Lakeland District Council,http://opendatacommunities.org/id/district-council/south-lakeland,31/10/2018,Policy & Partnerships,Central Services,http://opendatacommunities.org/def/concept/finance/sercop/objective/102,IOSH SERVICES LTD,01816826,29-10-2018,0000081317,120,0,"IOSH Working Safely, 7 people","IOSH Working Safely, 7 people",Health and Safety,221100,Health & Safety� Maintenance
South Lakeland District Council,http://opendatacommunities.org/id/district-council/south-lakeland,31/10/2018,Development Implementation,Central Services,http://opendatacommunities.org/def/concept/finance/sercop/objective/102,ADECCO UK LIMITED,00593232,31-10-2018,0000081320,252.72,0,Cleaner for SLDC - M P - April,Cleaner for SLDC - M P - April,Contract & Agency staff,261400,HR Temporary & Agency Staff
South Lakeland District Council,http://opendatacommunities.org/id/district-council/south-lakeland,31/10/2018,Social Enterprise Admin,Highways & Transport Services,http://opendatacommunities.org/def/concept/finance/sercop/objective/107,ADECCO UK LIMITED,00593232,29-10-2018,0000081321,565.8,0,Agency Cover Car Park Assistants,Agency Cover Car Park Assistants,Contract & Agency staff,261400,HR Temporary & Agency Staff
South Lakeland District Council,http://opendatacommunities.org/id/district-council/south-lakeland,31/10/2018,Westmorland Centre Parking Office,Highways & Transport Services,http://opendatacommunities.org/def/concept/finance/sercop/objective/107,ADECCO UK LIMITED,00593232,29-10-2018,0000081322,82.8,0,Agency cover for WMMSCP cleaner,Agency cover for WMMSCP cleaner,Contract & Agency staff,261400,HR Temporary & Agency Staff
South Lakeland District Council,http://opendatacommunities.org/id/district-council/south-lakeland,31/10/2018,Policy & Partnerships,Central Services,http://opendatacommunities.org/def/concept/finance/sercop/objective/102,Digital Hearing Care Solutions Ltd,05659065,24-10-2018,0000081324,400,0,Phonak Roger Select transmitter in,Phonak Roger Select transmitter in,Equipment Furniture Materials,311300,Healthcare-Equipment
South Lakeland District Council,http://opendatacommunities.org/id/district-council/south-lakeland,31/10/2018,Environment and Housing,Housing Services,http://opendatacommunities.org/def/concept/finance/sercop/objective/108,Lakeside Taxis,,24-10-2018,0000081325,271,0,Taxis ordered between 20/09/18 and,Taxis ordered between 20/09/18 and,Homelessness Prevention,361600,Public Transport Taxi Services Home to S
South Lakeland District Council,http://opendatacommunities.org/id/district-council/south-lakeland,31/10/2018,Democratic and Member Services,Central Services,http://opendatacommunities.org/def/concept/finance/sercop/objective/102,A RICHARDSON - CRACKING SPREAD,,24-10-2018,0000081327,19,0,catering for Member training on,catering for Member training on,Training Costs,291000,Arts & Leisure Services Events
South Lakeland District Council,http://opendatacommunities.org/id/district-council/south-lakeland,31/10/2018,Revenues and Benefits,Non-Service Payments,,Ulverston BID Company Ltd,09761005,24-10-2018,0000081328,8637.21,0,BID Levy - Collection figures for,BID Levy - Collection figures for,Payment to BID,201700,Financial Services Grants
South Lakeland District Council,http://opendatacommunities.org/id/district-council/south-lakeland,31/10/2018,Democratic and Member Services,Central Services,http://opendatacommunities.org/def/concept/finance/sercop/objective/102,18 St John Street Chambers,,24-10-2018,0000081329,275,0,Professional Fees Brief,Professional Fees Brief,Legal & Counsels Fees,281300,Legal Services Legal Opinion
South Lakeland District Council,http://opendatacommunities.org/id/district-council/south-lakeland,31/10/2018,Democratic and Member Services,Central Services,http://opendatacommunities.org/def/concept/finance/sercop/objective/102,18 St John Street Chambers,,24-10-2018,0000081330,275,0,Professional Fees Brief,Professional Fees Brief,Legal & Counsels Fees,281300,Legal Services Legal Opinion
South Lakeland District Council,http://opendatacommunities.org/id/district-council/south-lakeland,31/10/2018,Business Support Community Services,Cultural Environmental Regulatory & Planning Services,http://opendatacommunities.org/def/concept/finance/sercop/objective/104,CANNON HYGIENE LTD,01298292,24-10-2018,0000081331,630,0,Clinical waste collections - 2018/19,Clinical waste collections - 2018/19,Clinincal Waste Disposal Costs,131011,Cleaning & Janitorial Cleaning Materials
South Lakeland District Council,http://opendatacommunities.org/id/district-council/south-lakeland,31/10/2018,Revenues and Benefits,Central Services,http://opendatacommunities.org/def/concept/finance/sercop/objective/102,Victoria Pink Transcription,,29-10-2018,0000081336,103.6,0,Transcription Interview 04.10.18,Transcription Interview 04.10.18,Private Contractos gen,271400,ICT Office & Reprographics Equipment
South Lakeland District Council,http://opendatacommunities.org/id/district-council/south-lakeland,31/10/2018,Business Support Community Services,Central Services,http://opendatacommunities.org/def/concept/finance/sercop/objective/102,COMMUNICATE TECHNOLOGY PLC,04844444,24-10-2018,0000081339,106.77,0,Call charges 2017/18,Call charges 2017/18,Telephones-Rentals,271700,ICT Telecommunications Fixed
South Lakeland District Council,http://opendatacommunities.org/id/district-council/south-lakeland,31/10/2018,Business Support Community Services,Internal Trading Accounts,,ARCO LIMITED,00133804,29-10-2018,0000081340,11.97,0,T shirts & sweatshirts,T shirts & sweatshirts,Protective Clothing & Uniforms,141100,Clothing Protective
South Lakeland District Council,http://opendatacommunities.org/id/district-council/south-lakeland,31/10/2018,Business Support Community Services,Internal Trading Accounts,,C T HAYTON LTD,01212766,29-10-2018,0000081341,40.16,0,Parts,Parts,Transport-Repair & Maintenance,391200,Construction Engineering
South Lakeland District Council,http://opendatacommunities.org/id/district-council/south-lakeland,31/10/2018,Business Support Community Services,Cultural Environmental Regulatory & Planning Services,http://opendatacommunities.org/def/concept/finance/sercop/objective/104,C M SIGNS,,29-10-2018,0000081342,1526,0,Poppy campaign,Poppy campaign,Advertising,102400,Building Signage
South Lakeland District Council,http://opendatacommunities.org/id/district-council/south-lakeland,31/10/2018,Business Support Community Services,Internal Trading Accounts,,ARCO LIMITED,00133804,29-10-2018,0000081343,26.97,0,T shirts & sweatshirts,T shirts & sweatshirts,Protective Clothing & Uniforms,141100,Clothing Protective
South Lakeland District Council,http://opendatacommunities.org/id/district-council/south-lakeland,31/10/2018,Business Support Community Services,Internal Trading Accounts,,ARCO LIMITED,00133804,24-10-2018,0000081344,8.99,0,T shirts & sweatshirts,T shirts & sweatshirts,Protective Clothing & Uniforms,141100,Clothing Protective
South Lakeland District Council,http://opendatacommunities.org/id/district-council/south-lakeland,31/10/2018,Business Support Community Services,Internal Trading Accounts,,ARCO LIMITED,00133804,29-10-2018,0000081345,125.86,0,T shirts & sweatshirts,T shirts & sweatshirts,Protective Clothing & Uniforms,141100,Clothing Protective
South Lakeland District Council,http://opendatacommunities.org/id/district-council/south-lakeland,31/10/2018,Business Support Community Services,Cultural Environmental Regulatory & Planning Services,http://opendatacommunities.org/def/concept/finance/sercop/objective/104,ARCO LIMITED,00133804,29-10-2018,0000081346,22.26,0,Cleaning materials,Cleaning materials,Equipment Furniture Materials,141100,Clothing Protective
South Lakeland District Council,http://opendatacommunities.org/id/district-council/south-lakeland,31/10/2018,Business Support Community Services,Internal Trading Accounts,,LANCASHIRE DAF,,29-10-2018,0000081347,54,0,Parts,Parts,Transport-Repair & Maintenance,381400,Vehicle Mgt Maintenance
South Lakeland District Council,http://opendatacommunities.org/id/district-council/south-lakeland,31/10/2018,Business Support Community Services,Central Services,http://opendatacommunities.org/def/concept/finance/sercop/objective/102,INSTITUTE OF LICENSING (EVENTS) LTD,05710898,29-10-2018,0000081350,155,0,Animal Licensing 05/11/18 ,Animal Licensing 05/11/18 ,Training Costs,202100,Financial Services Subscriptions
South Lakeland District Council,http://opendatacommunities.org/id/district-council/south-lakeland,31/10/2018,Revenues and Benefits,Central Services,http://opendatacommunities.org/def/concept/finance/sercop/objective/102,ROYAL MAIL GROUP PLC,,29-10-2018,0000081352,39.2,0,2018-19 Postal Charges a/c 0055114000,2018-19 Postal Charges a/c 0055114000,Postages,301200,Mail Services� Postage
South Lakeland District Council,http://opendatacommunities.org/id/district-council/south-lakeland,31/10/2018,Revenues and Benefits,SLDC as Agent,,ROYAL MAIL GROUP PLC,,29-10-2018,0000081353,1296.21,0,2018-19 Postal Charges a/c 0198123013,2018-19 Postal Charges a/c 0198123013,General,301200,Mail Services� Postage
South Lakeland District Council,http://opendatacommunities.org/id/district-council/south-lakeland,31/10/2018,Leisure and Wellbeing,Cultural Environmental Regulatory & Planning Services,http://opendatacommunities.org/def/concept/finance/sercop/objective/104,SOUTH LAKES TREE SURGEONS & LANDSCAPES,05342745,31-10-2018,0000081354,60,0,"Kendal Leisure Centre, fell 2 cherry","Kendal Leisure Centre, fell 2 cherry",Arboricultural Work,241210,Horticultural Tree Trimming
South Lakeland District Council,http://opendatacommunities.org/id/district-council/south-lakeland,31/10/2018,Westmorland Centre Parking Office,Transport,http://opendatacommunities.org/def/concept/finance/sercop/objective/107,CAPITA BUSINESS SERVICES LTD,02299747,29-10-2018,0000081355,2195,0,Amendments to the Hosted EOD import in,Amendments to the Hosted EOD import in,Contract payments,261500,HR Training & Conferences
South Lakeland District Council,http://opendatacommunities.org/id/district-council/south-lakeland,31/10/2018,Social Enterprise Admin,Cultural Environmental Regulatory & Planning Services,http://opendatacommunities.org/def/concept/finance/sercop/objective/104,NEWSQUEST MEDIA GROUP LTD,03102566,29-10-2018,0000081356,232.76,0,PUBLIC NOTICES FOR PLANNING 1 APRIL - 31,PUBLIC NOTICES FOR PLANNING 1 APRIL - 31,Advertising,191000,Facilities Advertising
South Lakeland District Council,http://opendatacommunities.org/id/district-council/south-lakeland,31/10/2018,Business Support Community Services,Cultural Environmental Regulatory & Planning Services,http://opendatacommunities.org/def/concept/finance/sercop/objective/104,JEWSON LIMITED,00348407,29-10-2018,0000081358,35.78,0,Fixtures & fittings 2017/18,Fixtures & fittings 2017/18,Fixtures & Fittings,101400,Building General Materials
South Lakeland District Council,http://opendatacommunities.org/id/district-council/south-lakeland,31/10/2018,Electoral Services,Central Services,http://opendatacommunities.org/def/concept/finance/sercop/objective/102,SCI PRINT LTD,,31-10-2018,0000081359,1037.26,0,"Non-HEF canvass printing - ITRs, weekly","Non-HEF canvass printing - ITRs, weekly",Individual Electoral Registrat,191600,Facilities Printing
South Lakeland District Council,http://opendatacommunities.org/id/district-council/south-lakeland,31/10/2018,Electoral Services,Central Services,http://opendatacommunities.org/def/concept/finance/sercop/objective/102,SCI PRINT LTD,,31-10-2018,0000081360,262.02,0,"Non-HEF canvass printing - ITRs, weekly","Non-HEF canvass printing - ITRs, weekly",Individual Electoral Registrat,191600,Facilities Printing
South Lakeland District Council,http://opendatacommunities.org/id/district-council/south-lakeland,31/10/2018,Business Support Community Services,Cultural Environmental Regulatory & Planning Services,http://opendatacommunities.org/def/concept/finance/sercop/objective/104,UNITED UTILITIES WATER PLC,2366678,29-10-2018,0000081367,1833.9,0,Private Water Analysis - September 2018,Private Water Analysis - September 2018,Sampling & Inspection fees,371300,Utilities Water
South Lakeland District Council,http://opendatacommunities.org/id/district-council/south-lakeland,31/10/2018,Environment and Housing,Housing Services,http://opendatacommunities.org/def/concept/finance/sercop/objective/108,ULTRACARE PROPERTY MANAGEMENT LTD,05020554,29-10-2018,0000081369,375,0,Clear and clean ,Clear and clean ,Homelessness Prevention,191700,Facilities Property Management
South Lakeland District Council,http://opendatacommunities.org/id/district-council/south-lakeland,31/10/2018,Business Support Community Services,Internal Trading Accounts,,S J Bargh,00532272,29-10-2018,0000081375,158,0,MOTs 2018/19 & vehicle cleaning,MOTs 2018/19 & vehicle cleaning,MOT/Servicing Costs,381400,Vehicle Mgt Maintenance
South Lakeland District Council,http://opendatacommunities.org/id/district-council/south-lakeland,31/10/2018,Business Support Community Services,Cultural Environmental Regulatory & Planning Services,http://opendatacommunities.org/def/concept/finance/sercop/objective/104,CUMBRIA WASTE RECYCLING LTD,03162439,29-10-2018,0000081376,11300,0,Empty recycling banks in 2018/19,Empty recycling banks in 2018/19,Empty recycling banks,182012,Environment Waste Management Recycling
South Lakeland District Council,http://opendatacommunities.org/id/district-council/south-lakeland,31/10/2018,Environment and Housing,Housing Services,http://opendatacommunities.org/def/concept/finance/sercop/objective/108,James Andrews Recruitment Solutions,06834852,29-10-2018,0000081379,868.93,0,Payment for JH,Payment for JH,Contract & Agency staff,261400,HR Temporary & Agency Staff
South Lakeland District Council,http://opendatacommunities.org/id/district-council/south-lakeland,31/10/2018,Leisure and Wellbeing,Culture and Related Serv,http://opendatacommunities.org/def/concept/finance/sercop/objective/104,HAGS-SMP Ltd,00908021,29-10-2018,0000081380,45293.49,0,"Howe Bank Play area - design,","Howe Bank Play area - design,",Purchase of Plant Machinery,331000,Sports Playground Equipment
South Lakeland District Council,http://opendatacommunities.org/id/district-council/south-lakeland,31/10/2018,Social Enterprise Admin,Culture and Related Serv,http://opendatacommunities.org/def/concept/finance/sercop/objective/104,BURGESS ROUGHTON,03082939,29-10-2018,0000081385,600,0,Services provided to inspect drainage,Services provided to inspect drainage,Contract payments,391114,Construction Buildings Surveys
South Lakeland District Council,http://opendatacommunities.org/id/district-council/south-lakeland,31/10/2018,ICT Group,Central Services,http://opendatacommunities.org/def/concept/finance/sercop/objective/102,Insight Direct (Uk) Ltd,2579852,29-10-2018,0000081386,529.28,0,Logitech Wireless Combo MK270 -,Logitech Wireless Combo MK270 -,Equipment Furniture Materials,271200,ICT Hardware
South Lakeland District Council,http://opendatacommunities.org/id/district-council/south-lakeland,31/10/2018,ICT Group,Central Services,http://opendatacommunities.org/def/concept/finance/sercop/objective/102,Insight Direct (Uk) Ltd,2579852,29-10-2018,0000081386,186.5,0,Logitech Wireless Combo MK270 -,Logitech Wireless Combo MK270 -,Computer-Supplies,271200,ICT Hardware
South Lakeland District Council,http://opendatacommunities.org/id/district-council/south-lakeland,31/10/2018,Social Enterprise Admin,Cultural Environmental Regulatory & Planning Services,http://opendatacommunities.org/def/concept/finance/sercop/objective/104,NEWSQUEST MEDIA GROUP LTD,03102566,29-10-2018,0000081387,135,0,PUBLIC NOTICES FOR PLANNING 1 APRIL - 31,PUBLIC NOTICES FOR PLANNING 1 APRIL - 31,Advertising,191000,Facilities Advertising
